Workbook

Sheet INTRODUCTION
C2: MODALITÉS D'UTILISATION DU FICHIER DE DÉCLARATION DES ÉMISSIONS DE GAZ À EFFET DE SERRE GÉNÉRÉES PAR LES PRESTATIONS DE TRANSPORT MOBILISÉES DANS LE MARCHÉ
C3: Version 08.11.2024 - Direction des Achats de l’État (DAE) / Bureau Achats Responsables
A6: Le présent fichier permet de réaliser une évaluation simplifiée et automatisée des émissions de gaz à effet de serre générées par des opérations de transport mobilisés dans le cadre du marche (transport réalisé en propre et externalisé). Les résultats générés permettent de répondre aux dispositions de la norme ISO 14083:2023 "Gaz à effet de serre — Quantification et déclaration des émissions de gaz à effet de serre résultant des opérations des chaînes de transport" et du GLEC Framework en matière de déclaration.
A7: Les facteurs d'émission utilisés pour les calculs du présent classeur sont issus de la Base Empreinte de l'ADEME, dont les données s'appuyent principalement sur la base Ecoinvent et sur le rapport du GLEC Framework. Les facteurs d'émission et données utilisés dans le tableau pourront faire l'objet de mises à jour.
A8: Les accès aux différentes pages de ce présent outil se font uniquement via les différentes boutons cliquables dans chaque page. Nous vous invitons à lire les informations ci-dessous détaillant les différentes étapes por renseigner les données, puis à cliquer sur le bouton "Saisissez vos informations". Pour éviter toute perte de données, nous vous invitons à enregistrer le document régulièrement, des boutons "Enregistrer" sont disponibles dans les différentes pages de calculs.
A12: Etapes | B12: Nom de la page | C12: Contenu
A13: 1 | B13: Infos générales | C13: En premier lieu, le titulaire est invité à renseigner ces données d’informations générales sur la structure du titulaire et le périmètre de couverture de la prestation
A14: 2 | B14: Menu principal | C14: Le titulaire est invité à sélectionner le mode de transport utilisé dans le cadre de la prestation objet du marché (transport routier, ferroviaire, fluvial, maritime ou aérien)
A15: 3 | B15: Routier, Ferroviaire, fluvial, maritime, aérien | C15: En fonction du mode de transport sélectionné, le titulaire peut sélectionner une méthode de calcul : Distance parcourue OU Carburant consommé Si le transport de marchandises est externalisé, le titulaire est invité à récupérer les données auprès du prestataire, co-traitants, sous-traitants.
A16: 4 | B16: Routier, Ferroviaire, fluvial, maritime, aérien | C16: En fonction de la méthode de calcul sélectionnée, le titulaire est invité à renseigner les données d'entrées suivantes : Pour la méthode de calcul de la distance parcourue : le titulaire renseigne pour chaque étape de transport dans le cadre de la prestation objet du marché, le type de véhicule, le type de carburant, le nombre de véhicules, la distance parcourue (en km) et la masse totale transportée (en tonnes). Pour la méthode de calcul du carburant consommé : le titulaire renseigne pour chaque étape de transport dans le cadre de la prestation objet du marché, le type de véhicule, le type de carburant, le nombre de véhicules, la quantité totale de carburant consommée (en litres ou kWh, kg) La formule générique pour le calcul est la suivante : Émissions de GES [KgCO2eq] = donnée d'activité [unité] x Facteur d'émissions [KgCO2eq/unité]
A17: 5 | B17: Synthèse | C17: Le titulaire est invité à vérifier les données de synthèse. En cas d’erreur, il peut revenir aux étapes précédentes.
A18: 6 | B18: Lexique | C18: Si nécessaire, le titulaire peut se référer au lexique qui détaille les types de véhicules, le lexique est accessible via la bouton dans chaque feuille de calcul.

Sheet Feuil1 à supprimmer (hidden)
H2: FICHIER DE DÉCLARATION DES ÉMISSIONS DE GES GÉNÉRÉES PAR LES PRESTATIONS DE TRANSPORT MOBILISÉES DANS LE MARCHÉ
A5: Le présent fichier permet de réaliser une évaluation simplifiée et automatisée des émissions de gaz à effet de serre générées par des opérations de transport. Les résultats générés permettent de répondre aux dispositions de la norme ISO 14083:2023 "Gaz à effet de serre — Quantification et déclaration des émissions de gaz à effet de serre résultant des opérations des chaînes de transport" et du GLEC Framework en matière de déclaration.
A6: Le présent classeur contient 9 onglets outre celui-ci. L'onglet '0_SYNTHESE' restitue une déclaration synthétique des émissions de gaz à effet de serre (GES) du titulaire sur la base des informations renseignées dans les autres onglets. Aucune action n'est attendue de la part du titulaire sur cet onglet qui se complète automatiquement. L'onglet '1_Infos_generales' regroupe les informations relatives au titulaire, au périmètre de couverture de la déclaration ainsi qu'aux informations relatives à sa vérification. Le titulaire est invité à renseigner cet onglet en premier, compte tenu des informations qu'il sera en mesure de renseigner dans les onglets suivants. Les onglets numérotés de 2 à 7 sont construits de manière analogue. Une première partie "DONNÉES D'ENTRÉE" contient un tableau dont les cellules que le titulaire est invité à renseigner sont identifiés en jaune. Le tableau distingue les prestations dites internalisées, c'est-à-dire réalisées par des moyens internes au titulaire (véhicules / sites logistiques appartenant au titulaire) ou externalisées. Une deuxième partie "RÉSULTATS" restitue automatiquement la quantification des émissions de gaz à effet de serre liée aux données renseignées. Le titulaire renseigne en séparant par mode de transport (routier, ferroviaire, fluvial, maritime, aérien) les prestations réalisées au cours de l'exécution du marché dans la période de référence indiquée en onglet '1_Infos_generales' - ex. recommandé : une année. Le titulaire ne renseigne que les modes de transport auxquels il recourt et laisse les autres onglets vides. À sa convenance, il peut choisir de renseigner ou non les données relatives aux sites logistiques (onglet '7_Sites_logistiques') intervenant dans la chaîne de transport pour les inclure à la quantification GES totale. Au sein d'un mode de transport défini (ex. routier dans l'onglet '2_Routier'), le titulaire peut, à sa convenance, regrouper sur une même ligne du tableau "DONNÉES D'ENTRÉE" les prestations de transport répondant à des caractéristiques communes (ex. une ligne regroupant toutes les prestations de transport externalisées par VUL électrique à température dirigée sur l'année). Il définit en colonne B de ladite ligne un identifiant de son propre choix (ex. nom de la prestation / numéro / périmètre géographique, etc.). Le titulaire est responsable des données qu'il renseigne dans les champs proposés. Il est invité à collecter les données d'entrée les plus précises possibles (données primaires = données mesurées) et à solliciler ses prestataires externes à cette fin lorsqu'elles concernent des prestations externalisées. À défaut, le titulaire pourra indiquer "Non" dans les champs "Données primaires ?" prévus dans chacun des onglets 2 à 7, ce qui ne bloque en rien la réalisation des calculs. La quantification GES reposera alors sur des données modélisées par défaut issues de la Base Empreinte de l'ADEME et/ou le GLEC Framework. Enfin, l'onglet 'Lexique' explicite davantage les intitulés sélectionnables des listes figurant en colonne C des tableaux "DONNÉES D'ENTRÉE".
A7: N° de l'onglet | B7: Nom de l'onglet | C7: Contenu
A8: 1 | B8: Informations générales | C8: Cet onglet regroupe les informations relatives au titulaire, au périmètre de couverture de la déclaration ainsi qu'aux informations relatives à sa vérification. Le titulaire est invité à renseigner cet onglet en premier, compte tenu des informations qu'il sera en mesure de renseigner dans les onglets suivants.
A9: 2 à 7 | B9: Routier, Ferrovaire, fluvial, maritime, aerien
A10: 8 | B10: Synthèse

Sheet LISEZ-MOI (hidden)
B2: FICHIER DE DÉCLARATION DES ÉMISSIONS DE GAZ À EFFET DE SERRE GÉNÉRÉES PAR LES PRESTATIONS DE TRANSPORT MOBILISÉES DANS LE MARCHÉ
B4: Le présent fichier permet de réaliser une évaluation simplifiée et automatisée des émissions de gaz à effet de serre générées par des opérations de transport. Les résultats générés permettent de répondre aux dispositions de la norme ISO 14083:2023 "Gaz à effet de serre — Quantification et déclaration des émissions de gaz à effet de serre résultant des opérations des chaînes de transport" et du GLEC Framework en matière de déclaration.
B6: Lien vers la norme ISO 14083
B7: Lien vers le GLEC Framework
B9: Le présent classeur contient 9 onglets outre celui-ci. L'onglet '0_SYNTHESE' restitue une déclaration synthétique des émissions de gaz à effet de serre (GES) du titulaire sur la base des informations renseignées dans les autres onglets. Aucune action n'est attendue de la part du titulaire sur cet onglet qui se complète automatiquement. L'onglet '1_Infos_generales' regroupe les informations relatives au titulaire, au périmètre de couverture de la déclaration ainsi qu'aux informations relatives à sa vérification. Le titulaire est invité à renseigner cet onglet en premier, compte tenu des informations qu'il sera en mesure de renseigner dans les onglets suivants. Les onglets numérotés de 2 à 7 sont construits de manière analogue. Une première partie "DONNÉES D'ENTRÉE" contient un tableau dont les cellules que le titulaire est invité à renseigner sont identifiés en jaune. Le tableau distingue les prestations dites internalisées, c'est-à-dire réalisées par des moyens internes au titulaire (véhicules / sites logistiques appartenant au titulaire) ou externalisées. Une deuxième partie "RÉSULTATS" restitue automatiquement la quantification des émissions de gaz à effet de serre liée aux données renseignées. Le titulaire renseigne en séparant par mode de transport (routier, ferroviaire, fluvial, maritime, aérien) les prestations réalisées au cours de l'exécution du marché dans la période de référence indiquée en onglet '1_Infos_generales' - ex. recommandé : une année. Le titulaire ne renseigne que les modes de transport auxquels il recourt et laisse les autres onglets vides. À sa convenance, il peut choisir de renseigner ou non les données relatives aux sites logistiques (onglet '7_Sites_logistiques') intervenant dans la chaîne de transport pour les inclure à la quantification GES totale. Au sein d'un mode de transport défini (ex. routier dans l'onglet '2_Routier'), le titulaire peut, à sa convenance, regrouper sur une même ligne du tableau "DONNÉES D'ENTRÉE" les prestations de transport répondant à des caractéristiques communes (ex. une ligne regroupant toutes les prestations de transport externalisées par VUL électrique à température dirigée sur l'année). Il définit en colonne B de ladite ligne un identifiant de son propre choix (ex. nom de la prestation / numéro / périmètre géographique, etc.). Le titulaire est responsable des données qu'il renseigne dans les champs proposés. Il est invité à collecter les données d'entrée les plus précises possibles (données primaires = données mesurées) et à solliciler ses prestataires externes à cette fin lorsqu'elles concernent des prestations externalisées. À défaut, le titulaire pourra indiquer "Non" dans les champs "Données primaires ?" prévus dans chacun des onglets 2 à 7, ce qui ne bloque en rien la réalisation des calculs. La quantification GES reposera alors sur des données modélisées par défaut issues de la Base Empreinte de l'ADEME et/ou le GLEC Framework. Enfin, l'onglet 'Lexique' explicite davantage les intitulés sélectionnables des listes figurant en colonne C des tableaux "DONNÉES D'ENTRÉE".
B10: Lien vers la Base Empreinte de l'ADEME
B12: La quantification des émissions de GES repose sur le principe de calcul ci-dessous : Émissions GES (kgCO2e) = donnée d'activité (unité) × facteur d'émission (kgCO2e/unité) La donnée d'activité peut concerner la quantité mesurée de carburant consommé (ex. gazole en litres - auquel cas le facteur d'émission sera exprimé en kgCO2e/l) ou une quantité d'activité de transport (ex. activité de transport routier en tonne kilométrique (tkm) - auquel cas le facteur d'émission modélisé sera exprimé en kgCO2e/tkm). Les facteurs d'émission utilisés pour les calculs du présent classeur sont en premier lieu issus de la Base Empreinte de l'ADEME, complétés dans certains cas par ceux de la norme ISO 14083:2023, de la base Ecoinvent et du GLEC Framework.
B14: Lien vers Ecoinvent

Sheet 1_Infos générales
E2: DÉCLARATION DES ÉMISSIONS DE GES GÉNÉRÉES PAR LES PRESTATIONS DE TRANSPORT MOBILISÉES DANS LE MARCHÉ
B5: INFORMATIONS GÉNÉRALES
B7: Le titulaire est invité à renseigner les cellules vertes claires
B9: Raison sociale du titulaire
B11: Siège social du titulaire | C11: (Adresse)
C12: (complément d'adresse)
C13: (code postal, ville et pays)
B15: Période de référence | C15: Année
A17: Couverture de la déclaration* | J17: Sélectionner
C18: Chaîne d'approvisionnement (Logistique amont) | N18: Oui
C19: Activités de transport intégrées dans les prestations de services logistiques mobilisées par le marché (Logistique intermédiaire) | N19: Non
C20: Activités de livraison par les transporteurs finaux (Logistique aval)
A21: *Activités logisitiques couvertes dans le cadre de la prestation objet du présent marché
A22: Est-ce que les données saisies dans les tableaux de calculs sont vérifiées par un tiers indépendant ?
C24: Sélectionner
C27: Si oui, préciser la raison sociale du tiers indépendant et le référentiel méthodologique appliqué pour la vérification

Sheet _Menu
F2: MENU PRINCIPAL
C7: Le titulaire est invité à sélectionner le mode de transport utilisé dans le cadre de la prestation objet du marché (transport routier, ferroviaire, fluvial, maritime ou aérien). Dans le cas où plusieurs modes de transport sont utilisés, le titulaire pourra les renseigner dans les étapes suivantes

Sheet _Menu routier
F2: MENU ROUTIER CHOIX DE CALCUL
B4: TRANSPORT ROUTIER
E6: En fonction du mode de transport sélectionné, le titulaire séléctionne une méthode de calcul uniquement : Distance parcourue OU Carburant consommé

Sheet 2_Routier (hidden)
B2: DÉTERMINATION DES ÉMISSIONS DE GAZ À EFFET DE SERRE GÉNÉRÉES PAR LES PRESTATIONS DE TRANSPORT ROUTIER MOBILISÉES DANS LE MARCHÉ
B4: Raison sociale du titulaire | C4: ='1_Infos générales'!$C$9:$J$9 -> 0
B6: Période de référence | C6: ='1_Infos générales'!$C$15 -> Année
B8: DONNÉES D'ENTRÉE
B10: Le titulaire est invité à renseigner les cellules jaunes ci-dessous | I10: Les données primaires sont les données mesurées ou obtenues par calcul à la suite de mesure
B11: Les cellules bleues sont automatiquement complétées et ne peuvent être manuellement modifiées | I11: En cellule J17, le titulaire indique s'il dispose de données primaires de suivi des consommations de la flotte détenue pour les prestations de transport internalisées
I12: → Si oui, le titulaire renseigne les consommations en colonne I ; si non, il laisse la colonne I vide et les calculs seront réalisés selon des modélisations par défaut
B13: Le titulaire peut regrouper à sa convenance les prestations de transport répondant à des caractéristiques communes (ex. externalisé, par type de véhicule et carburant commun) | I13: En cellule N17, le titulaire indique s'il dispose de données primaires de suivi des consommations des flottes mobilisées pour les prestations externalisées
B14: Le nombre de lignes disponibles dans le tableau ci-dessous est limité sans possibilité d'ajouter de ligne supplémentaire ; | I14: → Si oui, le titulaire renseigne les consommations en colonne M ; si non, il laisse la colonne M vide et les calculs seront réalisés selon des modélisations par défaut
B15: le titulaire est donc invité à réduire aux maximum le nombre de lignes utilisées
F16: Prestations de transport internalisées (réalisées avec des véhicules appartenant au titulaire) | K16: Prestations de transport externalisées
B17: La colonne B sert à donner un intitulé (nom, numéro, etc. au choix du titulaire) à la ligne de données renseignée | F17: Informations sur l'activité de la flotte interne pour les prestations de transport visées | I17: Données primaires? | J17: Non | K17: Informations sur l'activité externalisée pour les prestations de transport visées | M17: Données primaires? | N17: Non
B18: Prestation de transport (agrégation possible à la convenance du titulaire - ex. une ligne regroupant tous les transports effectués en VUL électriques à température dirigée sur l'année) | C18: Type de véhicule | D18: Type de carburant | E18: Transport sous température dirigée? | F18: Nombre de véhicules | G18: Distance totale cumulée (km) | H18: Masse totale de marchandises transportées (t) | I18: Quantité totale d'énergie consommée | J18: Unité | K18: Distance totale cumulée (km) | L18: Masse totale de marchandises transportées (t) | M18: Quantité totale d'énergie consommée | N18: Unité | V18: Type de véhicule | W18: Type de carburant | X18: Unité | Y18: Facteur d'émission (WTT) (kgCO2e/unité) | Z18: Facteur d'émission (TTW) (kgCO2e/unité) | AA18: Facteur d'émission (WTW) (kgCO2e/unité) | AB18: Intensité des émissions issues de la fabrication (kgCO2e/tkm) | AC18: Intensité des émissions WTT de GES (kgCO2e/tkm) | AD18: Intensité des émissions TTW de GES (kgCO2e/tkm) | AE18: Intensité des émissions de GES (WTW + fabrication) (kgCO2e/tkm) | AH18: Véhicule_utilitaire_léger_VUL_PTAC≤3,5t | AI18: Camion_rigide_PL_PTAC≤7,5t | AJ18: Camion_rigide_PL_PTAC≤12t | AK18: Camion_rigide_PL_PTAC≤20t | AL18: Camion_rigide_PL_PTAC≤26t | AM18: Camion_rigide_PL_PTAC≤32t | AN18: Ensemble_articulé_PL_PTRA≤34t | AO18: Ensemble_articulé_PL_PTRA≤40t | AP18: Ensemble_articulé_PL_PTRA≤44t | AQ18: Ensemble_articulé_PL_PTRA≤60t | AR18: Ensemble_articulé_PL_PTRA≤72t | AS18: Vélo | AT18: Vélo_électrique
C19: Vélo | D19: Aucun | E19: Non | G19: 50 | H19: 1 | J19: =IF(ISBLANK(D19),"",VLOOKUP($D19,$AG$32:$AH$40,2,FALSE)) -> - | N19: =J19 -> - | U19: =V19&W19 -> Véhicule_utilitaire_léger_VUL_PTAC≤3,5tGazole | V19: Véhicule_utilitaire_léger_VUL_PTAC≤3,5t | W19: Gazole | X19: l | Y19: 0.609 | Z19: 2.49 | AA19: =Y19+Z19 -> 3.099 | AB19: 0.153 | AC19: 0.132 | AD19: 0.541 | AE19: =AB19+AC19+AD19 -> 0.826 | AG19: Véhicule_utilitaire_léger_VUL_PTAC≤3,5t | AH19: Gazole | AI19: Gazole | AJ19: Gazole | AK19: Gazole | AL19: Gazole | AM19: Gazole | AN19: Gazole | AO19: Gazole | AP19: Gazole | AQ19: Gazole | AR19: Gazole | AS19: Aucun | AT19: Électricité
C20: Ensemble_articulé_PL_PTRA≤40t | D20: Gaz_naturel_comprimé_GNC | J20: =IF(ISBLANK(D20),"",VLOOKUP($D20,$AG$32:$AH$40,2,FALSE)) -> kg | N20: =J20 -> kg | U20: =V20&W20 -> Véhicule_utilitaire_léger_VUL_PTAC≤3,5tEssence | V20: Véhicule_utilitaire_léger_VUL_PTAC≤3,5t | W20: Essence | X20: l | Y20: 0.494 | Z20: 2.2 | AA20: =Y20+Z20 -> 2.694 | AB20: 0.153 | AC20: 0.16 | AD20: 0.85 | AE20: =AB20+AC20+AD20 -> 1.163 | AG20: Camion_rigide_PL_PTAC≤7,5t | AH20: Essence | AI20: Gaz_naturel_comprimé_GNC | AJ20: Gaz_naturel_comprimé_GNC | AK20: Gaz_naturel_comprimé_GNC | AL20: Gaz_naturel_comprimé_GNC | AO20: Gaz_naturel_comprimé_GNC
U21: Véhicule_utilitaire_léger_VUL_PTAC≤3,5tGaz_naturel_comprimé_GNC | V21: Véhicule_utilitaire_léger_VUL_PTAC≤3,5t | W21: Gaz_naturel_comprimé_GNC | X21: kg | Y21: 0.55 | Z21: 2.41 | AA21: 2.96 | AB21: 0.153 | AC21: 0.08 | AD21: 0.54 | AE21: 0.773 | AG21: Camion_rigide_PL_PTAC≤12t | AH21: Gaz_naturel_comprimé_GNC | AI21: Hybride_électricité_gazole | AK21: Gaz_naturel_liquéfié_GNL | AL21: Gaz_naturel_liquéfié_GNL | AO21: Gaz_naturel_liquéfié_GNL
U22: Véhicule_utilitaire_léger_VUL_PTAC≤3,5tGaz_de_pétrole_liquéfié_GPL | V22: Véhicule_utilitaire_léger_VUL_PTAC≤3,5t | W22: Gaz_de_pétrole_liquéfié_GPL | X22: l | Y22: 0.262 | Z22: 1.6 | AA22: 1.862 | AB22: 0.153 | AC22: 0.07 | AD22: 0.59 | AE22: 0.813 | AG22: Camion_rigide_PL_PTAC≤20t | AH22: Gaz_de_pétrole_liquéfié_GPL | AI22: Électricité
U23: Véhicule_utilitaire_léger_VUL_PTAC≤3,5tÉlectricité | V23: Véhicule_utilitaire_léger_VUL_PTAC≤3,5t | W23: Électricité | X23: kWh | Y23: 0.0513 | Z23: 0 | AA23: 0.0513 | AB23: 0.153 | AC23: =1.1*Y23 -> 0.05643 | AD23: 0 | AE23: 0.20943 | AG23: Camion_rigide_PL_PTAC≤26t | AH23: Électricité
U24: Véhicule_utilitaire_léger_VUL_PTAC≤3,5tHydrogène | V24: Véhicule_utilitaire_léger_VUL_PTAC≤3,5t | W24: Hydrogène | X24: kg | Y24: 13.7 | Z24: 0 | AA24: 13.7 | AB24: 0.0883 | AC24: 0.303 | AD24: 0 | AE24: 0.3913 | AG24: Camion_rigide_PL_PTAC≤32t | AH24: Hydrogène
U25: Camion_rigide_PL_PTAC≤7,5tGazole | V25: Camion_rigide_PL_PTAC≤7,5t | W25: Gazole | X25: l | Y25: 0.609 | Z25: 2.49 | AA25: 3.099 | AB25: 0.0113 | AC25: 0.0719 | AD25: 0.294 | AE25: 0.3772 | AG25: Ensemble_articulé_PL_PTRA≤34t
U26: Camion_rigide_PL_PTAC≤7,5tGaz_naturel_comprimé_GNC | V26: Camion_rigide_PL_PTAC≤7,5t | W26: Gaz_naturel_comprimé_GNC | X26: kg | Y26: 0.55 | Z26: 2.41 | AA26: 2.96 | AB26: 0.0113 | AC26: 0.045 | AD26: 0.31 | AE26: 0.3663 | AG26: Ensemble_articulé_PL_PTRA≤40t
U27: Camion_rigide_PL_PTAC≤7,5tHybride_électricité_gazole | V27: Camion_rigide_PL_PTAC≤7,5t | W27: Hybride_électricité_gazole | X27: l | Y27: 0.548 | Z27: 2.24 | AA27: 2.788 | AB27: 0.0113 | AC27: 0.0475 | AD27: 0.24 | AE27: 0.2988 | AG27: Ensemble_articulé_PL_PTRA≤44t
U28: Camion_rigide_PL_PTAC≤7,5tÉlectricité | V28: Camion_rigide_PL_PTAC≤7,5t | W28: Électricité | X28: kWh | Y28: 0.0513 | Z28: 0 | AA28: 0.0513 | AB28: 0.0113 | AC28: 0.0467 | AD28: 0 | AE28: 0.058 | AG28: Ensemble_articulé_PL_PTRA≤60t
U29: Camion_rigide_PL_PTAC≤12tGazole | V29: Camion_rigide_PL_PTAC≤12t | W29: Gazole | X29: l | Y29: 0.609 | Z29: 2.49 | AA29: 3.099 | AB29: 0.0097 | AC29: 0.0455 | AD29: 0.186 | AE29: 0.2412 | AG29: Ensemble_articulé_PL_PTRA≤72t
U30: Camion_rigide_PL_PTAC≤12tGaz_naturel_comprimé_GNC | V30: Camion_rigide_PL_PTAC≤12t | W30: Gaz_naturel_comprimé_GNC | X30: kg | Y30: 0.55 | Z30: 2.41 | AA30: 2.96 | AB30: 0.0097 | AC30: 0.028 | AD30: 0.19 | AE30: 0.2277 | AG30: Vélo
U31: Camion_rigide_PL_PTAC≤20tGazole | V31: Camion_rigide_PL_PTAC≤20t | W31: Gazole | X31: l | Y31: 0.609 | Z31: 2.49 | AA31: 3.099 | AB31: 0.0105 | AC31: 0.0293 | AD31: 0.12 | AE31: 0.1598 | AG31: Vélo_électrique
U32: Camion_rigide_PL_PTAC≤20tGaz_naturel_comprimé_GNC | V32: Camion_rigide_PL_PTAC≤20t | W32: Gaz_naturel_comprimé_GNC | X32: kg | Y32: 0.55 | Z32: 2.41 | AA32: 2.96 | AB32: 0.0105 | AC32: 0.015 | AD32: 0.13 | AE32: 0.1555 | AG32: Électricité | AH32: kWh
U33: Camion_rigide_PL_PTAC≤20tGaz_naturel_liquéfié_GNL | V33: Camion_rigide_PL_PTAC≤20t | W33: Gaz_naturel_liquéfié_GNL | X33: kg | Y33: 0.697 | Z33: 2.58 | AA33: 3.277 | AB33: 0.0105 | AC33: 0.046 | AD33: 0.13 | AE33: 0.1865 | AG33: Hybride_électricité_gazole | AH33: l
U34: Camion_rigide_PL_PTAC≤26tGazole | V34: Camion_rigide_PL_PTAC≤26t | W34: Gazole | X34: l | Y34: 0.609 | Z34: 2.49 | AA34: 3.099 | AB34: 0.0113 | AC34: 0.0242 | AD34: 0.0991 | AE34: 0.1346 | AG34: Gazole | AH34: l
U35: Camion_rigide_PL_PTAC≤26tGaz_naturel_comprimé_GNC | V35: Camion_rigide_PL_PTAC≤26t | W35: Gaz_naturel_comprimé_GNC | X35: kg | Y35: 0.55 | Z35: 2.41 | AA35: 2.96 | AB35: 0.0113 | AC35: 0.015 | AD35: 0.12 | AE35: 0.1463 | AG35: Essence | AH35: l
U36: Camion_rigide_PL_PTAC≤26tGaz_naturel_liquéfié_GNL | V36: Camion_rigide_PL_PTAC≤26t | W36: Gaz_naturel_liquéfié_GNL | X36: kg | Y36: 0.697 | Z36: 2.58 | AA36: 3.277 | AB36: 0.0113 | AC36: 0.036 | AD36: 0.14 | AE36: 0.1873 | AG36: Gaz_de_pétrole_liquéfié_GPL | AH36: l
U37: Camion_rigide_PL_PTAC≤32tGazole | V37: Camion_rigide_PL_PTAC≤32t | W37: Gazole | X37: l | Y37: 0.609 | Z37: 2.49 | AA37: 3.099 | AB37: 0.008 | AC37: 0.0191 | AD37: 0.0781 | AE37: 0.1052 | AG37: Gaz_naturel_comprimé_GNC | AH37: kg
U38: Ensemble_articulé_PL_PTRA≤34tGazole | V38: Ensemble_articulé_PL_PTRA≤34t | W38: Gazole | X38: l | Y38: 0.609 | Z38: 2.49 | AA38: 3.099 | AB38: 0.0037 | AC38: 0.0176 | AD38: 0.064 | AE38: 0.0853 | AG38: Gaz_naturel_liquéfié_GNL | AH38: kg
U39: Ensemble_articulé_PL_PTRA≤40tGazole | V39: Ensemble_articulé_PL_PTRA≤40t | W39: Gazole | X39: l | Y39: 0.609 | Z39: 2.49 | AA39: 3.099 | AB39: 0.0038 | AC39: 0.0154 | AD39: 0.0631 | AE39: 0.0823 | AG39: Hydrogène | AH39: kg
U40: Ensemble_articulé_PL_PTRA≤40tGaz_naturel_comprimé_GNC | V40: Ensemble_articulé_PL_PTRA≤40t | W40: Gaz_naturel_comprimé_GNC | X40: kg | Y40: 0.55 | Z40: 2.41 | AA40: 2.96 | AB40: 0.0038 | AC40: 0.01 | AD40: 0.066 | AE40: 0.0798 | AG40: Aucun | AH40: -
U41: Ensemble_articulé_PL_PTRA≤40tGaz_naturel_liquéfié_GNL | V41: Ensemble_articulé_PL_PTRA≤40t | W41: Gaz_naturel_liquéfié_GNL | X41: kg | Y41: 0.697 | Z41: 2.58 | AA41: 3.277 | AB41: 0.0038 | AC41: 0.023 | AD41: 0.065 | AE41: 0.0918
U42: Ensemble_articulé_PL_PTRA≤44tGazole | V42: Ensemble_articulé_PL_PTRA≤44t | W42: Gazole | X42: l | Y42: 0.609 | Z42: 2.49 | AA42: 3.099 | AB42: 0.0038 | AC42: 0.0132 | AD42: 0.0541 | AE42: 0.0711 | AG42: Oui
U43: Ensemble_articulé_PL_PTRA≤60tGazole | V43: Ensemble_articulé_PL_PTRA≤60t | W43: Gazole | X43: l | Y43: 0.609 | Z43: 2.49 | AA43: 3.099 | AB43: 0.0039 | AC43: 0.0125 | AD43: 0.0511 | AE43: 0.0675 | AG43: Non
U44: Ensemble_articulé_PL_PTRA≤72tGazole | V44: Ensemble_articulé_PL_PTRA≤72t | W44: Gazole | X44: l | Y44: 0.609 | Z44: 2.49 | AA44: =Y44+Z44 -> 3.099 | AB44: 0.004 | AC44: 0.0125 | AD44: 0.0511 | AE44: =AB44+AC44+AD44 -> 0.0676
U45: VéloAucun | V45: Vélo | W45: Aucun | Y45: 0 | Z45: 0 | AA45: 0 | AB45: 0.02 | AC45: 0 | AD45: 0 | AE45: =AB45+AC45+AD45 -> 0.02
B46: RÉSULTATS | U46: Vélo_électriqueÉlectricité | V46: Vélo_électrique | W46: Électricité | X46: kWh | Y46: 0.0513 | Z46: 0 | AA46: 0.0513 | AB46: 0.02 | AC46: 0.00482 | AD46: 0 | AE46: 0.02482
B48: Scope 1 : émissions directes de GES | J48: TTW (tank-to-wheel) = émissions "du réservoir à la roue" (combustion)
B49: Scope 2 : émissions indirectes de GES issues de l'électricité consommée | J49: WTT (well-to-tank) = émissions "du puits au réservoir" (production de l'énergie en amont)
B50: Scope 3 : autres émissions indirectes de GES - incluent les émissions amont de production des carburants et des véhicules ainsi que toutes les émissions du transport externalisé | J50: WTW (well-to-wheel) = émissions "du puits à la roue" (cycle de vie complet de l'énergie)
B52: Pour le transport sous température dirigée, les émissions totales de GES sont majorées de 15 % sous l'effet des fuites de fluides frigorigènes
F54: Prestations de transport internalisées | L54: Prestations de transport externalisées | N54: BILAN GLOBAL
F55: Scope 1 | H55: Scope 2 | I55: Scope 3
B56: Prestation de transport | C56: Type de véhicule | D56: Type de carburant | E56: Transport sous température dirigée? | F56: Activité totale de transport internalisée (tkm) | G56: Émissions directes (TTW) de GES (kgCO2e) | H56: Émissions indirectes (WTT) de GES issues de l'électricité consommée (kgCO2e) | I56: Rappel activité totale de transport internalisée (tkm) | J56: Émissions indirectes de GES issues de la fabrication des véhicules (kgCO2e) | K56: Émissions indirectes (WTT) de GES issues du carburant consommé (kgCO2e) | L56: Activité totale de transport externalisée (tkm) | M56: Émissions de GES (WTW + fabrication) (kgCO2e) | N56: Activité totale de transport (tkm) | O56: Émissions de GES (kgCO2e) | P56: Intensité des émissions de GES (kgCO2e/tkm)
B57: =B19 -> 0 | C57: Vélo | D57: Aucun | E57: Non | F57: =G19*H19 -> 50 | G57: =IF(OR($C57=0,$D57=0),0,IF($J$17="Oui",$I19*VLOOKUP($C57&$D57,$U$19:$AE$46,6,FALSE),$F57*VLOOKUP($C57&$D57,$U$19:$AE$46,10,FALSE))) -> 0 | H57: =IF($D57<>"Électricité",0,IF($J$17="Oui",$I19*VLOOKUP($C57&$D57,$U$19:$AE$46,5,FALSE),$F57*VLOOKUP($C57&$D57,$U$19:$AE$46,9,FALSE))) -> 0 | I57: =F57 -> 50 | J57: =IF(OR($C57=0,$D57=0),0,$F57*VLOOKUP($C57&$D57,$U$19:$AE$46,8,FALSE)) -> 1 | K57: =IF(OR($C57=0,$D57=0),0,IF($D57="Électricité",0,IF($J$17="Oui",$I19*VLOOKUP($C57&$D57,$U$19:$AE$46,5,FALSE),$F57*VLOOKUP($C57&$D57,$U$19:$AE$46,9,FALSE)))) -> 0 | L57: =K19*L19 -> 0 | M57: =IF(OR($C57=0,$D57=0),0,IF($N$17="Oui",$M19*VLOOKUP($C57&$D57,$U$19:$AE$46,7,FALSE)+$L57*VLOOKUP(C57&D57,$U$19:$AE$46,8,FALSE),$L57*VLOOKUP($C57&$D57,$U$19:$AE$46,11,FALSE))) -> 0 | N57: =I57+L57 -> 50 | O57: =IF(E57="Non",G57+H57+J57+K57+M57,1.15*(G57+H57+J57+K57+M57)) -> 1 | P57: =O57/N57 -> 0.02
B58: 0 | C58: Ensemble_articulé_PL_PTRA≤40t | D58: Gaz_naturel_comprimé_GNC | E58: 0 | F58: 0 | G58: 0 | H58: 0 | I58: =F58 -> 0 | J58: 0 | K58: 0 | L58: 0 | M58: =IF(O42OU(L60=0,$D58=0),0,IF($N$17="Oui",$M20*VLOOKUP($C58&$D58,$U$19:$AE$46,7,FALSE)+$L58*VLOOKUP(C58&D58,$U$19:$AE$46,8,FALSE),$L58*VLOOKUP($C58&$D58,$U$19:$AE$46,11,FALSE))) ->  | N58: =I58+L58 -> 0 | O58: =IF(E58="Non",G58+H58+J58+K58+M58,1.15*(G58+H58+J58+K58+M58)) ->  | P58: =O58/N58 -> 
B59: 0 | C59: 0 | D59: 0 | E59: 0 | F59: 0 | G59: 0 | H59: 0 | I59: 0 | J59: 0 | K59: 0 | L59: 0 | M59: 0 | N59: 0 | O59: 0
B60: 0 | C60: 0 | D60: 0 | E60: 0 | F60: 0 | G60: 0 | H60: 0 | I60: 0 | J60: 0 | K60: 0 | L60: 0 | M60: 0 | N60: 0 | O60: 0
B61: 0 | C61: 0 | D61: 0 | E61: 0 | F61: 0 | G61: 0 | H61: 0 | I61: 0 | J61: 0 | K61: 0 | L61: 0 | M61: 0 | N61: 0 | O61: 0
B62: 0 | C62: 0 | D62: 0 | E62: 0 | F62: 0 | G62: 0 | H62: 0 | I62: 0 | J62: 0 | K62: 0 | L62: 0 | M62: 0 | N62: 0 | O62: 0
B63: 0 | C63: 0 | D63: 0 | E63: 0 | F63: 0 | G63: 0 | H63: 0 | I63: 0 | J63: 0 | K63: 0 | L63: 0 | M63: 0 | N63: 0 | O63: 0
B64: 0 | C64: 0 | D64: 0 | E64: 0 | F64: 0 | G64: 0 | H64: 0 | I64: 0 | J64: 0 | K64: 0 | L64: 0 | M64: 0 | N64: 0 | O64: 0
B65: 0 | C65: 0 | D65: 0 | E65: 0 | F65: 0 | G65: 0 | H65: 0 | I65: 0 | J65: 0 | K65: 0 | L65: 0 | M65: 0 | N65: 0 | O65: 0
B66: 0 | C66: 0 | D66: 0 | E66: 0 | F66: 0 | G66: 0 | H66: 0 | I66: 0 | J66: 0 | K66: 0 | L66: 0 | M66: 0 | N66: 0 | O66: 0
B67: 0 | C67: 0 | D67: 0 | E67: 0 | F67: 0 | G67: 0 | H67: 0 | I67: 0 | J67: 0 | K67: 0 | L67: 0 | M67: 0 | N67: 0 | O67: 0
B68: 0 | C68: 0 | D68: 0 | E68: 0 | F68: 0 | G68: 0 | H68: 0 | I68: 0 | J68: 0 | K68: 0 | L68: 0 | M68: 0 | N68: 0 | O68: 0
B69: 0 | C69: 0 | D69: 0 | E69: 0 | F69: 0 | G69: 0 | H69: 0 | I69: 0 | J69: 0 | K69: 0 | L69: 0 | M69: 0 | N69: 0 | O69: 0
B70: 0 | C70: 0 | D70: 0 | E70: 0 | F70: 0 | G70: 0 | H70: 0 | I70: 0 | J70: 0 | K70: 0 | L70: 0 | M70: 0 | N70: 0 | O70: 0
B71: 0 | C71: 0 | D71: 0 | E71: 0 | F71: 0 | G71: 0 | H71: 0 | I71: 0 | J71: 0 | K71: 0 | L71: 0 | M71: 0 | N71: 0 | O71: 0
B72: 0 | C72: 0 | D72: 0 | E72: 0 | F72: 0 | G72: 0 | H72: 0 | I72: 0 | J72: 0 | K72: 0 | L72: 0 | M72: 0 | N72: 0 | O72: 0
B73: 0 | C73: 0 | D73: 0 | E73: 0 | F73: 0 | G73: 0 | H73: 0 | I73: 0 | J73: 0 | K73: 0 | L73: 0 | M73: 0 | N73: 0 | O73: 0
B74: 0 | C74: 0 | D74: 0 | E74: 0 | F74: 0 | G74: 0 | H74: 0 | I74: 0 | J74: 0 | K74: 0 | L74: 0 | M74: 0 | N74: 0 | O74: 0
B75: 0 | C75: 0 | D75: 0 | E75: 0 | F75: 0 | G75: 0 | H75: 0 | I75: 0 | J75: 0 | K75: 0 | L75: 0 | M75: 0 | N75: 0 | O75: 0
B76: 0 | C76: 0 | D76: 0 | E76: 0 | F76: 0 | G76: 0 | H76: 0 | I76: 0 | J76: 0 | K76: 0 | L76: 0 | M76: 0 | N76: 0 | O76: 0
B77: 0 | C77: 0 | D77: 0 | E77: 0 | F77: 0 | G77: 0 | H77: 0 | I77: 0 | J77: 0 | K77: 0 | L77: 0 | M77: 0 | N77: 0 | O77: 0
B78: 0 | C78: 0 | D78: 0 | E78: 0 | F78: 0 | G78: 0 | H78: 0 | I78: 0 | J78: 0 | K78: 0 | L78: 0 | M78: 0 | N78: 0 | O78: 0
B79: 0 | C79: 0 | D79: 0 | E79: 0 | F79: 0 | G79: 0 | H79: 0 | I79: 0 | J79: 0 | K79: 0 | L79: 0 | M79: 0 | N79: 0 | O79: 0
B80: 0 | C80: 0 | D80: 0 | E80: 0 | F80: 0 | G80: 0 | H80: 0 | I80: 0 | J80: 0 | K80: 0 | L80: 0 | M80: 0 | N80: 0 | O80: 0
B81: 0 | C81: 0 | D81: 0 | E81: 0 | F81: 0 | G81: 0 | H81: 0 | I81: 0 | J81: 0 | K81: 0 | L81: 0 | M81: 0 | N81: 0 | O81: 0
B82: 0 | C82: 0 | D82: 0 | E82: 0 | F82: 0 | G82: 0 | H82: 0 | I82: =F82 -> 0 | J82: 0 | K82: 0 | L82: 0 | M82: 0 | N82: 0 | O82: 0
B84: TOTAL | F84: =SUM(F57:F82) -> 50 | G84: 0 | H84: 0 | I84: 50 | J84: 1 | K84: 0 | L84: 0 | N84: 50 | O84: =SUM(O57:O82) ->  | P84: =O84/N84 -> 

Sheet 2_Routier_v2 (hidden)
D1: DÉTERMINATION DES ÉMISSIONS DE GAZ À EFFET DE SERRE GÉNÉRÉES PAR LES PRESTATIONS DE TRANSPORT ROUTIER MOBILISÉES DANS LE MARCHÉ
B5: Raison sociale du titulaire | C5: ='1_Infos générales'!$C$9:$J$9 -> 0
B7: Période de référence | C7: ='1_Infos générales'!$C$15 -> Année
B9: DONNÉES D'ENTRÉE
B11: Le titulaire est invité à renseigner les cellules jaunes ci-dessous | I11: Les données primaires sont les données mesurées ou obtenues par calcul à la suite de mesure
B12: Les cellules bleues sont automatiquement complétées et ne peuvent être manuellement modifiées | I12: En cellule J17, le titulaire indique s'il dispose de données primaires de suivi des consommations de la flotte détenue pour les prestations de transport internalisées
I13: → Si oui, le titulaire renseigne les consommations en colonne I ; si non, il laisse la colonne I vide et les calculs seront réalisés selon des modélisations par défaut
B14: Le titulaire peut regrouper à sa convenance les prestations de transport répondant à des caractéristiques communes (ex. externalisé, par type de véhicule et carburant commun) | I14: En cellule N17, le titulaire indique s'il dispose de données primaires de suivi des consommations des flottes mobilisées pour les prestations externalisées
B15: Le nombre de lignes disponibles dans le tableau ci-dessous est limité sans possibilité d'ajouter de ligne supplémentaire ; | I15: → Si oui, le titulaire renseigne les consommations en colonne M ; si non, il laisse la colonne M vide et les calculs seront réalisés selon des modélisations par défaut
B16: le titulaire est donc invité à réduire aux maximum le nombre de lignes utilisées
F17: Prestations de transport internalisées (réalisées avec des véhicules appartenant au titulaire) | K17: Prestations de transport externalisées
B18: La colonne B sert à donner un intitulé (nom, numéro, etc. au choix du titulaire) à la ligne de données renseignée | F18: Informations sur l'activité de la flotte interne pour les prestations de transport visées | I18: Données primaires? | J18: Oui | K18: Informations sur l'activité externalisée pour les prestations de transport visées | M18: Données primaires? | N18: Oui
B19: Prestation de transport (agrégation possible à la convenance du titulaire - ex. une ligne regroupant tous les transports effectués en VUL électriques à température dirigée sur l'année) | C19: Type de véhicule | D19: Type de carburant | E19: Transport sous température dirigée? | F19: Nombre de véhicules | G19: Distance totale cumulée (km) | H19: Masse totale de marchandises transportées (t) | I19: Quantité totale d'énergie consommée | J19: Unité | K19: Distance totale cumulée (km) | L19: Masse totale de marchandises transportées (t) | M19: Quantité totale d'énergie consommée | N19: Unité | V19: Type de véhicule | W19: Type de carburant | X19: Unité | Y19: Facteur d'émission (WTT) (kgCO2e/unité) | Z19: Facteur d'émission (TTW) (kgCO2e/unité) | AA19: Facteur d'émission (WTW) (kgCO2e/unité) | AB19: Intensité des émissions issues de la fabrication (kgCO2e/tkm) | AC19: Intensité des émissions WTT de GES (kgCO2e/tkm) | AD19: Intensité des émissions TTW de GES (kgCO2e/tkm) | AE19: Intensité des émissions de GES (WTW + fabrication) (kgCO2e/tkm) | AH19: Véhicule_utilitaire_léger_VUL_PTAC≤3,5t | AI19: Camion_rigide_PL_PTAC≤7,5t | AJ19: Camion_rigide_PL_PTAC≤12t | AK19: Camion_rigide_PL_PTAC≤20t | AL19: Camion_rigide_PL_PTAC≤26t | AM19: Camion_rigide_PL_PTAC≤32t | AN19: Ensemble_articulé_PL_PTRA≤34t | AO19: Ensemble_articulé_PL_PTRA≤40t | AP19: Ensemble_articulé_PL_PTRA≤44t | AQ19: Ensemble_articulé_PL_PTRA≤60t | AR19: Ensemble_articulé_PL_PTRA≤72t | AS19: Vélo | AT19: Vélo_électrique
C20: Camion_rigide_PL_PTAC≤7,5t | D20: Gazole | E20: Non | H20: 10 | I20: 10 | J20: =IF(ISBLANK(D20),"",VLOOKUP($D20,$AG$33:$AH$41,2,FALSE)) -> l | N20: =J20 -> l | U20: =V20&W20 -> Véhicule_utilitaire_léger_VUL_PTAC≤3,5tGazole | V20: Véhicule_utilitaire_léger_VUL_PTAC≤3,5t | W20: Gazole | X20: l | Y20: 0.609 | Z20: 2.49 | AA20: =Y20+Z20 -> 3.099 | AB20: 0.153 | AC20: 0.132 | AD20: 0.541 | AE20: =AB20+AC20+AD20 -> 0.826 | AG20: Véhicule_utilitaire_léger_VUL_PTAC≤3,5t | AH20: Gazole | AI20: Gazole | AJ20: Gazole | AK20: Gazole | AL20: Gazole | AM20: Gazole | AN20: Gazole | AO20: Gazole | AP20: Gazole | AQ20: Gazole | AR20: Gazole | AS20: Aucun | AT20: Électricité
C21: Véhicule_utilitaire_léger_VUL_PTAC≤3,5t | D21: Électricité | H21: 10 | I21: 1000 | J21: =IF(ISBLANK(D21),"",VLOOKUP($D21,$AG$33:$AH$41,2,FALSE)) -> kWh | N21: =J21 -> kWh | U21: =V21&W21 -> Véhicule_utilitaire_léger_VUL_PTAC≤3,5tEssence | V21: Véhicule_utilitaire_léger_VUL_PTAC≤3,5t | W21: Essence | X21: l | Y21: 0.494 | Z21: 2.2 | AA21: =Y21+Z21 -> 2.694 | AB21: 0.153 | AC21: 0.16 | AD21: 0.85 | AE21: =AB21+AC21+AD21 -> 1.163 | AG21: Camion_rigide_PL_PTAC≤7,5t | AH21: Essence | AI21: Gaz_naturel_comprimé_GNC | AJ21: Gaz_naturel_comprimé_GNC | AK21: Gaz_naturel_comprimé_GNC | AL21: Gaz_naturel_comprimé_GNC | AO21: Gaz_naturel_comprimé_GNC
U22: Véhicule_utilitaire_léger_VUL_PTAC≤3,5tGaz_naturel_comprimé_GNC | V22: Véhicule_utilitaire_léger_VUL_PTAC≤3,5t | W22: Gaz_naturel_comprimé_GNC | X22: kg | Y22: 0.55 | Z22: 2.41 | AA22: 2.96 | AB22: 0.153 | AC22: 0.08 | AD22: 0.54 | AE22: 0.773 | AG22: Camion_rigide_PL_PTAC≤12t | AH22: Gaz_naturel_comprimé_GNC | AI22: Hybride_électricité_gazole | AK22: Gaz_naturel_liquéfié_GNL | AL22: Gaz_naturel_liquéfié_GNL | AO22: Gaz_naturel_liquéfié_GNL
U23: Véhicule_utilitaire_léger_VUL_PTAC≤3,5tGaz_de_pétrole_liquéfié_GPL | V23: Véhicule_utilitaire_léger_VUL_PTAC≤3,5t | W23: Gaz_de_pétrole_liquéfié_GPL | X23: l | Y23: 0.262 | Z23: 1.6 | AA23: 1.862 | AB23: 0.153 | AC23: 0.07 | AD23: 0.59 | AE23: 0.813 | AG23: Camion_rigide_PL_PTAC≤20t | AH23: Gaz_de_pétrole_liquéfié_GPL | AI23: Électricité
U24: Véhicule_utilitaire_léger_VUL_PTAC≤3,5tÉlectricité | V24: Véhicule_utilitaire_léger_VUL_PTAC≤3,5t | W24: Électricité | X24: kWh | Y24: 0.0513 | Z24: 0 | AA24: 0.0513 | AB24: 0.153 | AC24: =1.1*Y24 -> 0.05643 | AD24: 0 | AE24: 0.20943 | AG24: Camion_rigide_PL_PTAC≤26t | AH24: Électricité
U25: Véhicule_utilitaire_léger_VUL_PTAC≤3,5tHydrogène | V25: Véhicule_utilitaire_léger_VUL_PTAC≤3,5t | W25: Hydrogène | X25: kg | Y25: 13.7 | Z25: 0 | AA25: 13.7 | AB25: 0.0883 | AC25: 0.303 | AD25: 0 | AE25: 0.3913 | AG25: Camion_rigide_PL_PTAC≤32t | AH25: Hydrogène
U26: Camion_rigide_PL_PTAC≤7,5tGazole | V26: Camion_rigide_PL_PTAC≤7,5t | W26: Gazole | X26: l | Y26: 0.609 | Z26: 2.49 | AA26: 3.099 | AB26: 0.0113 | AC26: 0.0719 | AD26: 0.294 | AE26: 0.3772 | AG26: Ensemble_articulé_PL_PTRA≤34t
U27: Camion_rigide_PL_PTAC≤7,5tGaz_naturel_comprimé_GNC | V27: Camion_rigide_PL_PTAC≤7,5t | W27: Gaz_naturel_comprimé_GNC | X27: kg | Y27: 0.55 | Z27: 2.41 | AA27: 2.96 | AB27: 0.0113 | AC27: 0.045 | AD27: 0.31 | AE27: 0.3663 | AG27: Ensemble_articulé_PL_PTRA≤40t
U28: Camion_rigide_PL_PTAC≤7,5tHybride_électricité_gazole | V28: Camion_rigide_PL_PTAC≤7,5t | W28: Hybride_électricité_gazole | X28: l | Y28: 0.548 | Z28: 2.24 | AA28: 2.788 | AB28: 0.0113 | AC28: 0.0475 | AD28: 0.24 | AE28: 0.2988 | AG28: Ensemble_articulé_PL_PTRA≤44t
U29: Camion_rigide_PL_PTAC≤7,5tÉlectricité | V29: Camion_rigide_PL_PTAC≤7,5t | W29: Électricité | X29: kWh | Y29: 0.0513 | Z29: 0 | AA29: 0.0513 | AB29: 0.0113 | AC29: 0.0467 | AD29: 0 | AE29: 0.058 | AG29: Ensemble_articulé_PL_PTRA≤60t
U30: Camion_rigide_PL_PTAC≤12tGazole | V30: Camion_rigide_PL_PTAC≤12t | W30: Gazole | X30: l | Y30: 0.609 | Z30: 2.49 | AA30: 3.099 | AB30: 0.0097 | AC30: 0.0455 | AD30: 0.186 | AE30: 0.2412 | AG30: Ensemble_articulé_PL_PTRA≤72t
U31: Camion_rigide_PL_PTAC≤12tGaz_naturel_comprimé_GNC | V31: Camion_rigide_PL_PTAC≤12t | W31: Gaz_naturel_comprimé_GNC | X31: kg | Y31: 0.55 | Z31: 2.41 | AA31: 2.96 | AB31: 0.0097 | AC31: 0.028 | AD31: 0.19 | AE31: 0.2277 | AG31: Vélo
U32: Camion_rigide_PL_PTAC≤20tGazole | V32: Camion_rigide_PL_PTAC≤20t | W32: Gazole | X32: l | Y32: 0.609 | Z32: 2.49 | AA32: 3.099 | AB32: 0.0105 | AC32: 0.0293 | AD32: 0.12 | AE32: 0.1598 | AG32: Vélo_électrique
U33: Camion_rigide_PL_PTAC≤20tGaz_naturel_comprimé_GNC | V33: Camion_rigide_PL_PTAC≤20t | W33: Gaz_naturel_comprimé_GNC | X33: kg | Y33: 0.55 | Z33: 2.41 | AA33: 2.96 | AB33: 0.0105 | AC33: 0.015 | AD33: 0.13 | AE33: 0.1555 | AG33: Électricité | AH33: kWh
U34: Camion_rigide_PL_PTAC≤20tGaz_naturel_liquéfié_GNL | V34: Camion_rigide_PL_PTAC≤20t | W34: Gaz_naturel_liquéfié_GNL | X34: kg | Y34: 0.697 | Z34: 2.58 | AA34: 3.277 | AB34: 0.0105 | AC34: 0.046 | AD34: 0.13 | AE34: 0.1865 | AG34: Hybride_électricité_gazole | AH34: l
U35: Camion_rigide_PL_PTAC≤26tGazole | V35: Camion_rigide_PL_PTAC≤26t | W35: Gazole | X35: l | Y35: 0.609 | Z35: 2.49 | AA35: 3.099 | AB35: 0.0113 | AC35: 0.0242 | AD35: 0.0991 | AE35: 0.1346 | AG35: Gazole | AH35: l
U36: Camion_rigide_PL_PTAC≤26tGaz_naturel_comprimé_GNC | V36: Camion_rigide_PL_PTAC≤26t | W36: Gaz_naturel_comprimé_GNC | X36: kg | Y36: 0.55 | Z36: 2.41 | AA36: 2.96 | AB36: 0.0113 | AC36: 0.015 | AD36: 0.12 | AE36: 0.1463 | AG36: Essence | AH36: l
U37: Camion_rigide_PL_PTAC≤26tGaz_naturel_liquéfié_GNL | V37: Camion_rigide_PL_PTAC≤26t | W37: Gaz_naturel_liquéfié_GNL | X37: kg | Y37: 0.697 | Z37: 2.58 | AA37: 3.277 | AB37: 0.0113 | AC37: 0.036 | AD37: 0.14 | AE37: 0.1873 | AG37: Gaz_de_pétrole_liquéfié_GPL | AH37: l
U38: Camion_rigide_PL_PTAC≤32tGazole | V38: Camion_rigide_PL_PTAC≤32t | W38: Gazole | X38: l | Y38: 0.609 | Z38: 2.49 | AA38: 3.099 | AB38: 0.008 | AC38: 0.0191 | AD38: 0.0781 | AE38: 0.1052 | AG38: Gaz_naturel_comprimé_GNC | AH38: kg
U39: Ensemble_articulé_PL_PTRA≤34tGazole | V39: Ensemble_articulé_PL_PTRA≤34t | W39: Gazole | X39: l | Y39: 0.609 | Z39: 2.49 | AA39: 3.099 | AB39: 0.0037 | AC39: 0.0176 | AD39: 0.064 | AE39: 0.0853 | AG39: Gaz_naturel_liquéfié_GNL | AH39: kg
U40: Ensemble_articulé_PL_PTRA≤40tGazole | V40: Ensemble_articulé_PL_PTRA≤40t | W40: Gazole | X40: l | Y40: 0.609 | Z40: 2.49 | AA40: 3.099 | AB40: 0.0038 | AC40: 0.0154 | AD40: 0.0631 | AE40: 0.0823 | AG40: Hydrogène | AH40: kg
U41: Ensemble_articulé_PL_PTRA≤40tGaz_naturel_comprimé_GNC | V41: Ensemble_articulé_PL_PTRA≤40t | W41: Gaz_naturel_comprimé_GNC | X41: kg | Y41: 0.55 | Z41: 2.41 | AA41: 2.96 | AB41: 0.0038 | AC41: 0.01 | AD41: 0.066 | AE41: 0.0798 | AG41: Aucun | AH41: -
U42: Ensemble_articulé_PL_PTRA≤40tGaz_naturel_liquéfié_GNL | V42: Ensemble_articulé_PL_PTRA≤40t | W42: Gaz_naturel_liquéfié_GNL | X42: kg | Y42: 0.697 | Z42: 2.58 | AA42: 3.277 | AB42: 0.0038 | AC42: 0.023 | AD42: 0.065 | AE42: 0.0918
U43: Ensemble_articulé_PL_PTRA≤44tGazole | V43: Ensemble_articulé_PL_PTRA≤44t | W43: Gazole | X43: l | Y43: 0.609 | Z43: 2.49 | AA43: 3.099 | AB43: 0.0038 | AC43: 0.0132 | AD43: 0.0541 | AE43: 0.0711 | AG43: Oui
U44: Ensemble_articulé_PL_PTRA≤60tGazole | V44: Ensemble_articulé_PL_PTRA≤60t | W44: Gazole | X44: l | Y44: 0.609 | Z44: 2.49 | AA44: 3.099 | AB44: 0.0039 | AC44: 0.0125 | AD44: 0.0511 | AE44: 0.0675 | AG44: Non
U45: Ensemble_articulé_PL_PTRA≤72tGazole | V45: Ensemble_articulé_PL_PTRA≤72t | W45: Gazole | X45: l | Y45: 0.609 | Z45: 2.49 | AA45: 3.099 | AB45: 0.004 | AC45: 0.0125 | AD45: 0.0511 | AE45: 0.0676
U46: VéloAucun | V46: Vélo | W46: Aucun | Y46: 0 | Z46: 0 | AA46: 0 | AB46: 0.02 | AC46: 0 | AD46: 0 | AE46: =AB46+AC46+AD46 -> 0.02
B47: RÉSULTATS | U47: Vélo_électriqueÉlectricité | V47: Vélo_électrique | W47: Électricité | X47: kWh | Y47: 0.0513 | Z47: 0 | AA47: 0.0513 | AB47: 0.02 | AC47: 0.00482 | AD47: 0 | AE47: 0.02482
B49: Scope 1 : émissions directes de GES | J49: TTW (tank-to-wheel) = émissions "du réservoir à la roue" (combustion)
B50: Scope 2 : émissions indirectes de GES issues de l'électricité consommée | J50: WTT (well-to-tank) = émissions "du puits au réservoir" (production de l'énergie en amont)
B51: Scope 3 : autres émissions indirectes de GES - incluent les émissions amont de production des carburants et des véhicules ainsi que toutes les émissions du transport externalisé | J51: WTW (well-to-wheel) = émissions "du puits à la roue" (cycle de vie complet de l'énergie)
B53: Pour le transport sous température dirigée, les émissions totales de GES sont majorées de 15 % sous l'effet des fuites de fluides frigorigènes
F55: Prestations de transport internalisées | L55: Prestations de transport externalisées | N55: BILAN GLOBAL
F56: Scope 1 | H56: Scope 2 | I56: Scope 3
B57: Prestation de transport | C57: Type de véhicule | D57: Type de carburant | E57: Transport sous température dirigée? | F57: Activité totale de transport internalisée (tkm) | G57: Émissions directes (TTW) de GES (kgCO2e) | H57: Émissions indirectes (WTT) de GES issues de l'électricité consommée (kgCO2e) | I57: Rappel activité totale de transport internalisée (tkm) | J57: Émissions indirectes de GES issues de la fabrication des véhicules (kgCO2e) | K57: Émissions indirectes (WTT) de GES issues du carburant consommé (kgCO2e) | L57: Activité totale de transport externalisée (tkm) | M57: Émissions de GES (WTW + fabrication) (kgCO2e) | N57: Activité totale de transport (tkm) | O57: Émissions de GES (kgCO2e) | P57: Intensité des émissions de GES (kgCO2e/tkm)
B58: =B20 -> 0 | C58: Camion_rigide_PL_PTAC≤7,5t | D58: Gazole | E58: Non | F58: =G20*H20 -> 0 | G58: =IF(OR($C58=0,$D58=0),0,IF($J$18="Oui",$I20*VLOOKUP($C58&$D58,$U$20:$AE$47,6,FALSE),$F58*VLOOKUP($C58&$D58,$U$20:$AE$47,10,FALSE))) -> 24.9 | H58: =IF($D58<>"Électricité",0,IF($J$18="Oui",$I20*VLOOKUP($C58&$D58,$U$20:$AE$47,5,FALSE),$F58*VLOOKUP($C58&$D58,$U$20:$AE$47,9,FALSE))) -> 0 | I58: =F58 -> 0 | J58: =IF(OR($C58=0,$D58=0),0,$F58*VLOOKUP($C58&$D58,$U$20:$AE$47,8,FALSE)) -> 0 | K58: =IF(OR($C58=0,$D58=0),0,IF($D58="Électricité",0,IF($J$18="Oui",$I20*VLOOKUP($C58&$D58,$U$20:$AE$47,5,FALSE),$F58*VLOOKUP($C58&$D58,$U$20:$AE$47,9,FALSE)))) -> 6.09 | L58: =K20*L20 -> 0 | M58: =IF(OR($C58=0,$D58=0),0,IF($N$18="Oui",$M20*VLOOKUP($C58&$D58,$U$20:$AE$47,7,FALSE)+$L58*VLOOKUP(C58&D58,$U$20:$AE$47,8,FALSE),$L58*VLOOKUP($C58&$D58,$U$20:$AE$47,11,FALSE))) -> 0 | N58: =I58+L58 -> 0 | O58: =IF(E58="Non",G58+H58+J58+K58+M58,1.15*(G58+H58+J58+K58+M58)) -> 30.99 | P58: =O58/N58 -> 
B59: 0 | C59: Véhicule_utilitaire_léger_VUL_PTAC≤3,5t | D59: Électricité | E59: 0 | F59: 0 | G59: 0 | H59: 51.3 | I59: =F59 -> 0 | J59: 0 | K59: 0 | L59: 0 | M59: 0 | N59: =I59+L59 -> 0 | O59: =IF(E59="Non",G59+H59+J59+K59+M59,1.15*(G59+H59+J59+K59+M59)) -> 58.995 | P59: =O59/N59 -> 
B60: 0 | C60: 0 | D60: 0 | E60: 0 | F60: 0 | G60: 0 | H60: 0 | I60: 0 | J60: 0 | K60: 0 | L60: 0 | M60: 0 | N60: 0 | O60: 0
B61: 0 | C61: 0 | D61: 0 | E61: 0 | F61: 0 | G61: 0 | H61: 0 | I61: 0 | J61: 0 | K61: 0 | L61: 0 | M61: 0 | N61: 0 | O61: 0
B62: 0 | C62: 0 | D62: 0 | E62: 0 | F62: 0 | G62: 0 | H62: 0 | I62: 0 | J62: 0 | K62: 0 | L62: 0 | M62: 0 | N62: 0 | O62: 0
B63: 0 | C63: 0 | D63: 0 | E63: 0 | F63: 0 | G63: 0 | H63: 0 | I63: 0 | J63: 0 | K63: 0 | L63: 0 | M63: 0 | N63: 0 | O63: 0
B64: 0 | C64: 0 | D64: 0 | E64: 0 | F64: 0 | G64: 0 | H64: 0 | I64: 0 | J64: 0 | K64: 0 | L64: 0 | M64: 0 | N64: 0 | O64: 0
B65: 0 | C65: 0 | D65: 0 | E65: 0 | F65: 0 | G65: 0 | H65: 0 | I65: 0 | J65: 0 | K65: 0 | L65: 0 | M65: 0 | N65: 0 | O65: 0
B66: 0 | C66: 0 | D66: 0 | E66: 0 | F66: 0 | G66: 0 | H66: 0 | I66: 0 | J66: 0 | K66: 0 | L66: 0 | M66: 0 | N66: 0 | O66: 0
B67: 0 | C67: 0 | D67: 0 | E67: 0 | F67: 0 | G67: 0 | H67: 0 | I67: 0 | J67: 0 | K67: 0 | L67: 0 | M67: 0 | N67: 0 | O67: 0
B68: 0 | C68: 0 | D68: 0 | E68: 0 | F68: 0 | G68: 0 | H68: 0 | I68: 0 | J68: 0 | K68: 0 | L68: 0 | M68: 0 | N68: 0 | O68: 0
B69: 0 | C69: 0 | D69: 0 | E69: 0 | F69: 0 | G69: 0 | H69: 0 | I69: 0 | J69: 0 | K69: 0 | L69: 0 | M69: 0 | N69: 0 | O69: 0
B70: 0 | C70: 0 | D70: 0 | E70: 0 | F70: 0 | G70: 0 | H70: 0 | I70: 0 | J70: 0 | K70: 0 | L70: 0 | M70: 0 | N70: 0 | O70: 0
B71: 0 | C71: 0 | D71: 0 | E71: 0 | F71: 0 | G71: 0 | H71: 0 | I71: 0 | J71: 0 | K71: 0 | L71: 0 | M71: 0 | N71: 0 | O71: 0
B72: 0 | C72: 0 | D72: 0 | E72: 0 | F72: 0 | G72: 0 | H72: 0 | I72: 0 | J72: 0 | K72: 0 | L72: 0 | M72: 0 | N72: 0 | O72: 0
B73: 0 | C73: 0 | D73: 0 | E73: 0 | F73: 0 | G73: 0 | H73: 0 | I73: 0 | J73: 0 | K73: 0 | L73: 0 | M73: 0 | N73: 0 | O73: 0
B74: =B36 -> 0 | C74: 0 | D74: 0 | E74: 0 | F74: 0 | G74: 0 | H74: 0 | I74: 0 | J74: 0 | K74: 0 | L74: 0 | M74: 0 | N74: 0 | O74: 0
B75: 0 | C75: 0 | D75: 0 | E75: 0 | F75: 0 | G75: 0 | H75: 0 | I75: 0 | J75: 0 | K75: 0 | L75: 0 | M75: 0 | N75: 0 | O75: 0
B76: 0 | C76: 0 | D76: 0 | E76: 0 | F76: 0 | G76: 0 | H76: 0 | I76: 0 | J76: 0 | K76: 0 | L76: 0 | M76: 0 | N76: 0 | O76: 0
B77: 0 | C77: 0 | D77: 0 | E77: 0 | F77: 0 | G77: 0 | H77: 0 | I77: 0 | J77: 0 | K77: 0 | L77: 0 | M77: 0 | N77: 0 | O77: 0
B78: 0 | C78: 0 | D78: 0 | E78: 0 | F78: 0 | G78: 0 | H78: 0 | I78: 0 | J78: 0 | K78: 0 | L78: 0 | M78: 0 | N78: 0 | O78: 0
B79: 0 | C79: 0 | D79: 0 | E79: 0 | F79: 0 | G79: 0 | H79: 0 | I79: 0 | J79: 0 | K79: 0 | L79: 0 | M79: 0 | N79: 0 | O79: 0
B80: 0 | C80: 0 | D80: 0 | E80: 0 | F80: 0 | G80: 0 | H80: 0 | I80: 0 | J80: 0 | K80: 0 | L80: 0 | M80: 0 | N80: 0 | O80: 0
B81: 0 | C81: 0 | D81: 0 | E81: 0 | F81: 0 | G81: 0 | H81: 0 | I81: 0 | J81: 0 | K81: 0 | L81: 0 | M81: 0 | N81: 0 | O81: 0
B82: 0 | C82: 0 | D82: 0 | E82: 0 | F82: 0 | G82: 0 | H82: 0 | I82: 0 | J82: 0 | K82: 0 | L82: 0 | M82: 0 | N82: 0 | O82: 0
B83: 0 | C83: 0 | D83: 0 | E83: 0 | F83: 0 | G83: 0 | H83: 0 | I83: 0 | J83: 0 | K83: 0 | L83: 0 | M83: 0 | N83: 0 | O83: 0
B85: TOTAL | F85: =SUM(F58:F83) -> 0 | G85: 24.9 | H85: 51.3 | I85: 0 | J85: 0 | K85: 6.09 | L85: 0 | M85: 0 | N85: 0 | O85: =SUM(O58:O83) -> 89.985 | P85: =O85/N85 -> 

Sheet _Menu ferroviaire
F2: MENU FERROVIAIRE CHOIX DE CALCUL
B4: TRANSPORT FERROVIAIRE
E6: En fonction du mode de transport sélectionné, le titulaire séléctionne une méthode de calcul uniquement : Distance parcourue OU Carburant consommé

Sheet _Menu fluvial
F2: MENU FLUVIAL CHOIX DE CALCUL
B4: TRANSPORT FLUVIAL
E6: En fonction du mode de transport sélectionné, le titulaire séléctionne une méthode de calcul uniquement : Distance parcourue OU Carburant consommé

Sheet _Menu maritime
F2: MENU MARITIME CHOIX DE CALCUL
B4: TRANSPORT MARITIME
E6: En fonction du mode de transport sélectionné, le titulaire séléctionne une méthode de calcul uniquement : Distance parcourue OU Carburant consommé

Sheet _Menu aérien
F2: MENU AÉRIEN CHOIX DE CALCUL
B4: TRANSPORT AÉRIEN
E6: En fonction du mode de transport sélectionné, le titulaire séléctionne une méthode de calcul uniquement : Distance parcourue OU Carburant consommé

Sheet 2_Routier tkm
C1: DÉTERMINATION DES ÉMISSIONS DE GAZ À EFFET DE SERRE GÉNÉRÉES PAR LES PRESTATIONS DE TRANSPORT ROUTIER MOBILISÉES DANS LE MARCHÉ
B5: Raison sociale du titulaire | C5: ='1_Infos générales'!$C$9:$J$9 -> 0
B7: Période de référence | C7: ='1_Infos générales'!$C$15 -> Année
B11: DONNÉES A REMPLIR
V14: Type de véhicule | W14: Type de carburant | X14: Unité | Y14: Facteur d'émission (WTT) (kgCO2e/unité) | Z14: Facteur d'émission (TTW) (kgCO2e/unité) | AA14: Facteur d'émission (WTW) (kgCO2e/unité) | AB14: Intensité des émissions issues de la fabrication (kgCO2e/tkm) | AC14: Intensité des émissions WTT de GES (kgCO2e/tkm) | AD14: Intensité des émissions TTW de GES (kgCO2e/tkm) | AE14: Intensité des émissions de GES (WTW + fabrication) (kgCO2e/tkm)
K15: TOTAL (kgCO2e) | AA15: =Y15+Z15 -> 0 | AE15: =AB15+AC15+AD15 -> 0
K16: =SUM(K19:K27) -> 0 | U16: =V16&W16 -> Véhicule_utilitaire_léger_VUL_PTAC≤3,5tGazole | V16: Véhicule_utilitaire_léger_VUL_PTAC≤3,5t | W16: Gazole | X16: l | Y16: 0.609 | Z16: 2.49 | AA16: =Y16+Z16 -> 3.099 | AB16: 0.153 | AC16: 0.132 | AD16: 0.541 | AE16: =AB16+AC16+AD16 -> 0.826 | AH16: Véhicule_utilitaire_léger_VUL_PTAC≤3,5t | AI16: Camion_rigide_PL_PTAC≤7,5t | AJ16: Camion_rigide_PL_PTAC≤12t | AK16: Camion_rigide_PL_PTAC≤20t | AL16: Camion_rigide_PL_PTAC≤26t | AM16: Camion_rigide_PL_PTAC≤32t | AN16: Ensemble_articulé_PL_PTRA≤34t | AO16: Ensemble_articulé_PL_PTRA≤40t | AP16: Ensemble_articulé_PL_PTRA≤44t | AQ16: Ensemble_articulé_PL_PTRA≤60t | AR16: Ensemble_articulé_PL_PTRA≤72t | AS16: Vélo | AT16: Vélo_électrique
U17: =V17&W17 -> Véhicule_utilitaire_léger_VUL_PTAC≤3,5tEssence | V17: Véhicule_utilitaire_léger_VUL_PTAC≤3,5t | W17: Essence | X17: l | Y17: 0.494 | Z17: 2.2 | AA17: =Y17+Z17 -> 2.694 | AB17: 0.153 | AC17: 0.16 | AD17: 0.85 | AE17: =AB17+AC17+AD17 -> 1.163 | AG17: Véhicule_utilitaire_léger_VUL_PTAC≤3,5t | AH17: Gazole | AI17: Gazole | AJ17: Gazole | AK17: Gazole | AL17: Gazole | AM17: Gazole | AN17: Gazole | AO17: Gazole | AP17: Gazole | AQ17: Gazole | AR17: Gazole | AS17: Aucun | AT17: Électricité
C18: Ville et Pays de départ [optionnel] | D18: Ville et Pays d'arrivée [optionnel] | E18: Type de véhicule | F18: Type de carburant | G18: Facteur d'émission de GES * (kgCO2e/tkm) | H18: Distance parcourue lors de ce trajet (en km) | I18: Masse de marchandises transportées lors de ce trajet (en tonnes) | J18: Nombre de répétitions de ce trajet (avec la même masse transportée) [optionnel] | K18: Calcul ** des émissions de GES pour ce transport (en kgCO2e) | L18: Quels moyens de preuves pourriez-vous donner (carte grise,…) ? | U18: Véhicule_utilitaire_léger_VUL_PTAC≤3,5tGaz_naturel_comprimé_GNC | V18: Véhicule_utilitaire_léger_VUL_PTAC≤3,5t | W18: Gaz_naturel_comprimé_GNC | X18: kg | Y18: 0.55 | Z18: 2.41 | AA18: 2.96 | AB18: 0.153 | AC18: 0.08 | AD18: 0.54 | AE18: 0.773 | AG18: Camion_rigide_PL_PTAC≤7,5t | AH18: Essence | AI18: Gaz_naturel_comprimé_GNC | AJ18: Gaz_naturel_comprimé_GNC | AK18: Gaz_naturel_comprimé_GNC | AL18: Gaz_naturel_comprimé_GNC | AO18: Gaz_naturel_comprimé_GNC
G19: =_xlfn.XLOOKUP(Tableau_prestations[[#This Row],[Type de véhicule]]&Tableau_prestations[[#This Row],[Type de carburant]], $V$15:$V$43&$W$15:$W$43, $AE$15:$AE$43, 0, 0, ) -> 0 | K19: =IF(ISBLANK(J19),G19*H19*I19,G19*H19*I19*J19) -> 0 | U19: Véhicule_utilitaire_léger_VUL_PTAC≤3,5tGaz_de_pétrole_liquéfié_GPL | V19: Véhicule_utilitaire_léger_VUL_PTAC≤3,5t | W19: Gaz_de_pétrole_liquéfié_GPL | X19: l | Y19: 0.262 | Z19: 1.6 | AA19: 1.862 | AB19: 0.153 | AC19: 0.07 | AD19: 0.59 | AE19: 0.813 | AG19: Camion_rigide_PL_PTAC≤12t | AH19: Gaz_naturel_comprimé_GNC | AI19: Hybride_électricité_gazole | AK19: Gaz_naturel_liquéfié_GNL | AL19: Gaz_naturel_liquéfié_GNL | AO19: Gaz_naturel_liquéfié_GNL
G20: =_xlfn.XLOOKUP(Tableau_prestations[[#This Row],[Type de véhicule]]&Tableau_prestations[[#This Row],[Type de carburant]], $V$15:$V$43&$W$15:$W$43, $AE$15:$AE$43, 0, 0, ) -> 0 | K20: 0 | U20: Véhicule_utilitaire_léger_VUL_PTAC≤3,5tÉlectricité | V20: Véhicule_utilitaire_léger_VUL_PTAC≤3,5t | W20: Électricité | X20: kWh | Y20: 0.0513 | Z20: 0 | AA20: 0.0513 | AB20: 0.153 | AC20: =1.1*Y20 -> 0.05643 | AD20: 0 | AE20: 0.20943 | AG20: Camion_rigide_PL_PTAC≤20t | AH20: Gaz_de_pétrole_liquéfié_GPL | AI20: Électricité
G21: =_xlfn.XLOOKUP(Tableau_prestations[[#This Row],[Type de véhicule]]&Tableau_prestations[[#This Row],[Type de carburant]], $V$15:$V$43&$W$15:$W$43, $AE$15:$AE$43, 0, 0, ) -> 0 | K21: 0 | U21: Véhicule_utilitaire_léger_VUL_PTAC≤3,5tHydrogène | V21: Véhicule_utilitaire_léger_VUL_PTAC≤3,5t | W21: Hydrogène | X21: kg | Y21: 13.7 | Z21: 0 | AA21: 13.7 | AB21: 0.0883 | AC21: 0.303 | AD21: 0 | AE21: 0.3913 | AG21: Camion_rigide_PL_PTAC≤26t | AH21: Électricité
G22: =_xlfn.XLOOKUP(Tableau_prestations[[#This Row],[Type de véhicule]]&Tableau_prestations[[#This Row],[Type de carburant]], $V$15:$V$43&$W$15:$W$43, $AE$15:$AE$43, 0, 0, ) -> 0 | K22: 0 | U22: Camion_rigide_PL_PTAC≤7,5tGazole | V22: Camion_rigide_PL_PTAC≤7,5t | W22: Gazole | X22: l | Y22: 0.609 | Z22: 2.49 | AA22: 3.099 | AB22: 0.0113 | AC22: 0.0719 | AD22: 0.294 | AE22: 0.3772 | AG22: Camion_rigide_PL_PTAC≤32t | AH22: Hydrogène
G23: =_xlfn.XLOOKUP(Tableau_prestations[[#This Row],[Type de véhicule]]&Tableau_prestations[[#This Row],[Type de carburant]], $V$15:$V$43&$W$15:$W$43, $AE$15:$AE$43, 0, 0, ) -> 0 | K23: 0 | U23: Camion_rigide_PL_PTAC≤7,5tGaz_naturel_comprimé_GNC | V23: Camion_rigide_PL_PTAC≤7,5t | W23: Gaz_naturel_comprimé_GNC | X23: kg | Y23: 0.55 | Z23: 2.41 | AA23: 2.96 | AB23: 0.0113 | AC23: 0.045 | AD23: 0.31 | AE23: 0.3663 | AG23: Ensemble_articulé_PL_PTRA≤34t
G24: =_xlfn.XLOOKUP(Tableau_prestations[[#This Row],[Type de véhicule]]&Tableau_prestations[[#This Row],[Type de carburant]], $V$15:$V$43&$W$15:$W$43, $AE$15:$AE$43, 0, 0, ) -> 0 | K24: 0 | U24: Camion_rigide_PL_PTAC≤7,5tHybride_électricité_gazole | V24: Camion_rigide_PL_PTAC≤7,5t | W24: Hybride_électricité_gazole | X24: l | Y24: 0.548 | Z24: 2.24 | AA24: 2.788 | AB24: 0.0113 | AC24: 0.0475 | AD24: 0.24 | AE24: 0.2988 | AG24: Ensemble_articulé_PL_PTRA≤40t
G25: =_xlfn.XLOOKUP(Tableau_prestations[[#This Row],[Type de véhicule]]&Tableau_prestations[[#This Row],[Type de carburant]], $V$15:$V$43&$W$15:$W$43, $AE$15:$AE$43, 0, 0, ) -> 0 | K25: 0 | U25: Camion_rigide_PL_PTAC≤7,5tÉlectricité | V25: Camion_rigide_PL_PTAC≤7,5t | W25: Électricité | X25: kWh | Y25: 0.0513 | Z25: 0 | AA25: 0.0513 | AB25: 0.0113 | AC25: 0.0467 | AD25: 0 | AE25: 0.058 | AG25: Ensemble_articulé_PL_PTRA≤44t
G26: =_xlfn.XLOOKUP(Tableau_prestations[[#This Row],[Type de véhicule]]&Tableau_prestations[[#This Row],[Type de carburant]], $V$15:$V$43&$W$15:$W$43, $AE$15:$AE$43, 0, 0, ) -> 0 | K26: =IF(ISBLANK(J26),G26*H26*I26,G26*H26*I26*J26) -> 0 | U26: Camion_rigide_PL_PTAC≤12tGazole | V26: Camion_rigide_PL_PTAC≤12t | W26: Gazole | X26: l | Y26: 0.609 | Z26: 2.49 | AA26: 3.099 | AB26: 0.0097 | AC26: 0.0455 | AD26: 0.186 | AE26: 0.2412 | AG26: Ensemble_articulé_PL_PTRA≤60t
G27: =_xlfn.XLOOKUP(Tableau_prestations[[#This Row],[Type de véhicule]]&Tableau_prestations[[#This Row],[Type de carburant]], $V$15:$V$43&$W$15:$W$43, $AE$15:$AE$43, 0, 0, ) -> 0 | K27: =IF(ISBLANK(J27),G27*H27*I27,G27*H27*I27*J27) -> 0 | U27: Camion_rigide_PL_PTAC≤12tGaz_naturel_comprimé_GNC | V27: Camion_rigide_PL_PTAC≤12t | W27: Gaz_naturel_comprimé_GNC | X27: kg | Y27: 0.55 | Z27: 2.41 | AA27: 2.96 | AB27: 0.0097 | AC27: 0.028 | AD27: 0.19 | AE27: 0.2277 | AG27: Ensemble_articulé_PL_PTRA≤72t
U28: Camion_rigide_PL_PTAC≤20tGazole | V28: Camion_rigide_PL_PTAC≤20t | W28: Gazole | X28: l | Y28: 0.609 | Z28: 2.49 | AA28: 3.099 | AB28: 0.0105 | AC28: 0.0293 | AD28: 0.12 | AE28: 0.1598 | AG28: Vélo
U29: Camion_rigide_PL_PTAC≤20tGaz_naturel_comprimé_GNC | V29: Camion_rigide_PL_PTAC≤20t | W29: Gaz_naturel_comprimé_GNC | X29: kg | Y29: 0.55 | Z29: 2.41 | AA29: 2.96 | AB29: 0.0105 | AC29: 0.015 | AD29: 0.13 | AE29: 0.1555 | AG29: Vélo_électrique
U30: Camion_rigide_PL_PTAC≤20tGaz_naturel_liquéfié_GNL | V30: Camion_rigide_PL_PTAC≤20t | W30: Gaz_naturel_liquéfié_GNL | X30: kg | Y30: 0.697 | Z30: 2.58 | AA30: 3.277 | AB30: 0.0105 | AC30: 0.046 | AD30: 0.13 | AE30: 0.1865 | AG30: Électricité | AH30: kWh
U31: Camion_rigide_PL_PTAC≤26tGazole | V31: Camion_rigide_PL_PTAC≤26t | W31: Gazole | X31: l | Y31: 0.609 | Z31: 2.49 | AA31: 3.099 | AB31: 0.0113 | AC31: 0.0242 | AD31: 0.0991 | AE31: 0.1346 | AG31: Hybride_électricité_gazole | AH31: l
U32: Camion_rigide_PL_PTAC≤26tGaz_naturel_comprimé_GNC | V32: Camion_rigide_PL_PTAC≤26t | W32: Gaz_naturel_comprimé_GNC | X32: kg | Y32: 0.55 | Z32: 2.41 | AA32: 2.96 | AB32: 0.0113 | AC32: 0.015 | AD32: 0.12 | AE32: 0.1463 | AG32: Gazole | AH32: l
U33: Camion_rigide_PL_PTAC≤26tGaz_naturel_liquéfié_GNL | V33: Camion_rigide_PL_PTAC≤26t | W33: Gaz_naturel_liquéfié_GNL | X33: kg | Y33: 0.697 | Z33: 2.58 | AA33: 3.277 | AB33: 0.0113 | AC33: 0.036 | AD33: 0.14 | AE33: 0.1873 | AG33: Essence | AH33: l
U34: Camion_rigide_PL_PTAC≤32tGazole | V34: Camion_rigide_PL_PTAC≤32t | W34: Gazole | X34: l | Y34: 0.609 | Z34: 2.49 | AA34: 3.099 | AB34: 0.008 | AC34: 0.0191 | AD34: 0.0781 | AE34: 0.1052 | AG34: Gaz_de_pétrole_liquéfié_GPL | AH34: l
U35: Ensemble_articulé_PL_PTRA≤34tGazole | V35: Ensemble_articulé_PL_PTRA≤34t | W35: Gazole | X35: l | Y35: 0.609 | Z35: 2.49 | AA35: 3.099 | AB35: 0.0037 | AC35: 0.0176 | AD35: 0.064 | AE35: 0.0853 | AG35: Gaz_naturel_comprimé_GNC | AH35: kg
U36: Ensemble_articulé_PL_PTRA≤40tGazole | V36: Ensemble_articulé_PL_PTRA≤40t | W36: Gazole | X36: l | Y36: 0.609 | Z36: 2.49 | AA36: 3.099 | AB36: 0.0038 | AC36: 0.0154 | AD36: 0.0631 | AE36: 0.0823 | AG36: Gaz_naturel_liquéfié_GNL | AH36: kg
U37: Ensemble_articulé_PL_PTRA≤40tGaz_naturel_comprimé_GNC | V37: Ensemble_articulé_PL_PTRA≤40t | W37: Gaz_naturel_comprimé_GNC | X37: kg | Y37: 0.55 | Z37: 2.41 | AA37: 2.96 | AB37: 0.0038 | AC37: 0.01 | AD37: 0.066 | AE37: 0.0798 | AG37: Hydrogène | AH37: kg
U38: Ensemble_articulé_PL_PTRA≤40tGaz_naturel_liquéfié_GNL | V38: Ensemble_articulé_PL_PTRA≤40t | W38: Gaz_naturel_liquéfié_GNL | X38: kg | Y38: 0.697 | Z38: 2.58 | AA38: 3.277 | AB38: 0.0038 | AC38: 0.023 | AD38: 0.065 | AE38: 0.0918 | AG38: Aucun | AH38: -
U39: Ensemble_articulé_PL_PTRA≤44tGazole | V39: Ensemble_articulé_PL_PTRA≤44t | W39: Gazole | X39: l | Y39: 0.609 | Z39: 2.49 | AA39: 3.099 | AB39: 0.0038 | AC39: 0.0132 | AD39: 0.0541 | AE39: 0.0711
U40: Ensemble_articulé_PL_PTRA≤60tGazole | V40: Ensemble_articulé_PL_PTRA≤60t | W40: Gazole | X40: l | Y40: 0.609 | Z40: 2.49 | AA40: 3.099 | AB40: 0.0039 | AC40: 0.0125 | AD40: 0.0511 | AE40: 0.0675 | AG40: Oui
U41: Ensemble_articulé_PL_PTRA≤72tGazole | V41: Ensemble_articulé_PL_PTRA≤72t | W41: Gazole | X41: l | Y41: 0.609 | Z41: 2.49 | AA41: 3.099 | AB41: 0.004 | AC41: 0.0125 | AD41: 0.0511 | AE41: 0.0676 | AG41: Non
U42: VéloAucun | V42: Vélo | W42: Aucun | Y42: 0 | Z42: 0 | AA42: 0 | AB42: 0.02 | AC42: 0 | AD42: 0 | AE42: =AB42+AC42+AD42 -> 0.02
U43: Vélo_électriqueÉlectricité | V43: Vélo_électrique | W43: Électricité | X43: kWh | Y43: 0.0513 | Z43: 0 | AA43: 0.0513 | AB43: 0.02 | AC43: 0.00482 | AD43: 0 | AE43: 0.02482

Sheet 2_Routier carburant
D1: DÉTERMINATION DES ÉMISSIONS DE GAZ À EFFET DE SERRE GÉNÉRÉES PAR LES PRESTATIONS DE TRANSPORT ROUTIER MOBILISÉES DANS LE MARCHÉ
B5: Raison sociale du titulaire | C5: ='1_Infos générales'!$C$9:$J$9 -> 0
B7: Période de référence | C7: ='1_Infos générales'!$C$15 -> Année
B9: DONNÉES A REMPLIR
J15: TOTAL (kgCO2e)
J16: =SUM(J19:J25) -> 0
C18: Ville et Pays de départ [optionnel] | D18: Ville et Pays d'arrivée [optionnel] | E18: Type de véhicule | F18: Type de carburant | G18: Facteur d'émission de GES * (kgCO2e/unité) | H18: Quantité de carburant consommé lors de ce trajet (en L ou kg ou kWh) | I18: Nombre de répétitions de ce trajet (avec la même consommation de carburant) [optionnel] | J18: Calcul ** des émissions de GES pour ce transport (en kgCO2e) | K18: Quels moyens de preuves pourriez-vous donner (carte grise,…) ?
G19: =_xlfn.XLOOKUP(Tableau_prestations_rc[[#This Row],[Type de véhicule]]&Tableau_prestations_rc[[#This Row],[Type de carburant]], U20:U48&V20:V48, Z20:Z48, 0, 0, ) -> 0 | J19: =IF(ISBLANK(I19),G19*H19,G19*H19*I19) -> 0
G20: =_xlfn.XLOOKUP(Tableau_prestations_rc[[#This Row],[Type de véhicule]]&Tableau_prestations_rc[[#This Row],[Type de carburant]], U21:U49&V21:V49, Z21:Z49, 0, 0, ) -> 0 | J20: =IF(ISBLANK(I20),G20*H20,G20*H20*I20) -> 0 | U20: Type de véhicule | V20: Type de carburant | W20: Unité | X20: Facteur d'émission (WTT) (kgCO2e/unité) | Y20: Facteur d'émission (TTW) (kgCO2e/unité) | Z20: Facteur d'émission (WTW) (kgCO2e/unité) | AA20: Intensité des émissions issues de la fabrication (kgCO2e/tkm) | AB20: Intensité des émissions WTT de GES (kgCO2e/tkm) | AC20: Intensité des émissions TTW de GES (kgCO2e/tkm) | AD20: Intensité des émissions de GES (WTW + fabrication) (kgCO2e/tkm) | AG20: Véhicule_utilitaire_léger_VUL_PTAC≤3,5t | AH20: Camion_rigide_PL_PTAC≤7,5t | AI20: Camion_rigide_PL_PTAC≤12t | AJ20: Camion_rigide_PL_PTAC≤20t | AK20: Camion_rigide_PL_PTAC≤26t | AL20: Camion_rigide_PL_PTAC≤32t | AM20: Ensemble_articulé_PL_PTRA≤34t | AN20: Ensemble_articulé_PL_PTRA≤40t | AO20: Ensemble_articulé_PL_PTRA≤44t | AP20: Ensemble_articulé_PL_PTRA≤60t | AQ20: Ensemble_articulé_PL_PTRA≤72t | AR20: Vélo | AS20: Vélo_électrique
G21: =_xlfn.XLOOKUP(Tableau_prestations_rc[[#This Row],[Type de véhicule]]&Tableau_prestations_rc[[#This Row],[Type de carburant]], U22:U50&V22:V50, Z22:Z50, 0, 0, ) -> 0 | J21: 0 | T21: =U21&V21 -> Véhicule_utilitaire_léger_VUL_PTAC≤3,5tGazole | U21: Véhicule_utilitaire_léger_VUL_PTAC≤3,5t | V21: Gazole | W21: l | X21: 0.609 | Y21: 2.49 | Z21: =X21+Y21 -> 3.099 | AA21: 0.153 | AB21: 0.132 | AC21: 0.541 | AD21: =AA21+AB21+AC21 -> 0.826 | AF21: Véhicule_utilitaire_léger_VUL_PTAC≤3,5t | AG21: Gazole | AH21: Gazole | AI21: Gazole | AJ21: Gazole | AK21: Gazole | AL21: Gazole | AM21: Gazole | AN21: Gazole | AO21: Gazole | AP21: Gazole | AQ21: Gazole | AR21: Aucun | AS21: Électricité
G22: =_xlfn.XLOOKUP(Tableau_prestations_rc[[#This Row],[Type de véhicule]]&Tableau_prestations_rc[[#This Row],[Type de carburant]], U23:U51&V23:V51, Z23:Z51, 0, 0, ) -> 0 | J22: 0 | T22: =U22&V22 -> Véhicule_utilitaire_léger_VUL_PTAC≤3,5tEssence | U22: Véhicule_utilitaire_léger_VUL_PTAC≤3,5t | V22: Essence | W22: l | X22: 0.494 | Y22: 2.2 | Z22: =X22+Y22 -> 2.694 | AA22: 0.153 | AB22: 0.16 | AC22: 0.85 | AD22: =AA22+AB22+AC22 -> 1.163 | AF22: Camion_rigide_PL_PTAC≤7,5t | AG22: Essence | AH22: Gaz_naturel_comprimé_GNC | AI22: Gaz_naturel_comprimé_GNC | AJ22: Gaz_naturel_comprimé_GNC | AK22: Gaz_naturel_comprimé_GNC | AN22: Gaz_naturel_comprimé_GNC
G23: =_xlfn.XLOOKUP(Tableau_prestations_rc[[#This Row],[Type de véhicule]]&Tableau_prestations_rc[[#This Row],[Type de carburant]], U24:U52&V24:V52, Z24:Z52, 0, 0, ) -> 0 | J23: =IF(ISBLANK(I23),G23*H23,G23*H23*I23) -> 0 | T23: Véhicule_utilitaire_léger_VUL_PTAC≤3,5tGaz_naturel_comprimé_GNC | U23: Véhicule_utilitaire_léger_VUL_PTAC≤3,5t | V23: Gaz_naturel_comprimé_GNC | W23: kg | X23: 0.55 | Y23: 2.41 | Z23: 2.96 | AA23: 0.153 | AB23: 0.08 | AC23: 0.54 | AD23: 0.773 | AF23: Camion_rigide_PL_PTAC≤12t | AG23: Gaz_naturel_comprimé_GNC | AH23: Hybride_électricité_gazole | AJ23: Gaz_naturel_liquéfié_GNL | AK23: Gaz_naturel_liquéfié_GNL | AN23: Gaz_naturel_liquéfié_GNL
G24: =_xlfn.XLOOKUP(Tableau_prestations_rc[[#This Row],[Type de véhicule]]&Tableau_prestations_rc[[#This Row],[Type de carburant]], U25:U53&V25:V53, Z25:Z53, 0, 0, ) -> 0 | J24: =IF(ISBLANK(I24),G24*H24,G24*H24*I24) -> 0 | T24: Véhicule_utilitaire_léger_VUL_PTAC≤3,5tGaz_de_pétrole_liquéfié_GPL | U24: Véhicule_utilitaire_léger_VUL_PTAC≤3,5t | V24: Gaz_de_pétrole_liquéfié_GPL | W24: l | X24: 0.262 | Y24: 1.6 | Z24: 1.862 | AA24: 0.153 | AB24: 0.07 | AC24: 0.59 | AD24: 0.813 | AF24: Camion_rigide_PL_PTAC≤20t | AG24: Gaz_de_pétrole_liquéfié_GPL | AH24: Électricité
G25: =_xlfn.XLOOKUP(Tableau_prestations_rc[[#This Row],[Type de véhicule]]&Tableau_prestations_rc[[#This Row],[Type de carburant]], U26:U54&V26:V54, Z26:Z54, 0, 0, ) -> 0 | J25: =IF(ISBLANK(I25),G25*H25,G25*H25*I25) -> 0 | T25: Véhicule_utilitaire_léger_VUL_PTAC≤3,5tÉlectricité | U25: Véhicule_utilitaire_léger_VUL_PTAC≤3,5t | V25: Électricité | W25: kWh | X25: 0.0513 | Y25: 0 | Z25: 0.0513 | AA25: 0.153 | AB25: =1.1*X25 -> 0.05643 | AC25: 0 | AD25: 0.20943 | AF25: Camion_rigide_PL_PTAC≤26t | AG25: Électricité
T26: Véhicule_utilitaire_léger_VUL_PTAC≤3,5tHydrogène | U26: Véhicule_utilitaire_léger_VUL_PTAC≤3,5t | V26: Hydrogène | W26: kg | X26: 13.7 | Y26: 0 | Z26: 13.7 | AA26: 0.0883 | AB26: 0.303 | AC26: 0 | AD26: 0.3913 | AF26: Camion_rigide_PL_PTAC≤32t | AG26: Hydrogène
T27: Camion_rigide_PL_PTAC≤7,5tGazole | U27: Camion_rigide_PL_PTAC≤7,5t | V27: Gazole | W27: l | X27: 0.609 | Y27: 2.49 | Z27: 3.099 | AA27: 0.0113 | AB27: 0.0719 | AC27: 0.294 | AD27: 0.3772 | AF27: Ensemble_articulé_PL_PTRA≤34t
T28: Camion_rigide_PL_PTAC≤7,5tGaz_naturel_comprimé_GNC | U28: Camion_rigide_PL_PTAC≤7,5t | V28: Gaz_naturel_comprimé_GNC | W28: kg | X28: 0.55 | Y28: 2.41 | Z28: 2.96 | AA28: 0.0113 | AB28: 0.045 | AC28: 0.31 | AD28: 0.3663 | AF28: Ensemble_articulé_PL_PTRA≤40t
T29: Camion_rigide_PL_PTAC≤7,5tHybride_électricité_gazole | U29: Camion_rigide_PL_PTAC≤7,5t | V29: Hybride_électricité_gazole | W29: l | X29: 0.548 | Y29: 2.24 | Z29: 2.788 | AA29: 0.0113 | AB29: 0.0475 | AC29: 0.24 | AD29: 0.2988 | AF29: Ensemble_articulé_PL_PTRA≤44t
T30: Camion_rigide_PL_PTAC≤7,5tÉlectricité | U30: Camion_rigide_PL_PTAC≤7,5t | V30: Électricité | W30: kWh | X30: 0.0513 | Y30: 0 | Z30: 0.0513 | AA30: 0.0113 | AB30: 0.0467 | AC30: 0 | AD30: 0.058 | AF30: Ensemble_articulé_PL_PTRA≤60t
T31: Camion_rigide_PL_PTAC≤12tGazole | U31: Camion_rigide_PL_PTAC≤12t | V31: Gazole | W31: l | X31: 0.609 | Y31: 2.49 | Z31: 3.099 | AA31: 0.0097 | AB31: 0.0455 | AC31: 0.186 | AD31: 0.2412 | AF31: Ensemble_articulé_PL_PTRA≤72t
T32: Camion_rigide_PL_PTAC≤12tGaz_naturel_comprimé_GNC | U32: Camion_rigide_PL_PTAC≤12t | V32: Gaz_naturel_comprimé_GNC | W32: kg | X32: 0.55 | Y32: 2.41 | Z32: 2.96 | AA32: 0.0097 | AB32: 0.028 | AC32: 0.19 | AD32: 0.2277 | AF32: Vélo
T33: Camion_rigide_PL_PTAC≤20tGazole | U33: Camion_rigide_PL_PTAC≤20t | V33: Gazole | W33: l | X33: 0.609 | Y33: 2.49 | Z33: 3.099 | AA33: 0.0105 | AB33: 0.0293 | AC33: 0.12 | AD33: 0.1598 | AF33: Vélo_électrique
T34: Camion_rigide_PL_PTAC≤20tGaz_naturel_comprimé_GNC | U34: Camion_rigide_PL_PTAC≤20t | V34: Gaz_naturel_comprimé_GNC | W34: kg | X34: 0.55 | Y34: 2.41 | Z34: 2.96 | AA34: 0.0105 | AB34: 0.015 | AC34: 0.13 | AD34: 0.1555 | AF34: Électricité | AG34: kWh
T35: Camion_rigide_PL_PTAC≤20tGaz_naturel_liquéfié_GNL | U35: Camion_rigide_PL_PTAC≤20t | V35: Gaz_naturel_liquéfié_GNL | W35: kg | X35: 0.697 | Y35: 2.58 | Z35: 3.277 | AA35: 0.0105 | AB35: 0.046 | AC35: 0.13 | AD35: 0.1865 | AF35: Hybride_électricité_gazole | AG35: l
T36: Camion_rigide_PL_PTAC≤26tGazole | U36: Camion_rigide_PL_PTAC≤26t | V36: Gazole | W36: l | X36: 0.609 | Y36: 2.49 | Z36: 3.099 | AA36: 0.0113 | AB36: 0.0242 | AC36: 0.0991 | AD36: 0.1346 | AF36: Gazole | AG36: l
T37: Camion_rigide_PL_PTAC≤26tGaz_naturel_comprimé_GNC | U37: Camion_rigide_PL_PTAC≤26t | V37: Gaz_naturel_comprimé_GNC | W37: kg | X37: 0.55 | Y37: 2.41 | Z37: 2.96 | AA37: 0.0113 | AB37: 0.015 | AC37: 0.12 | AD37: 0.1463 | AF37: Essence | AG37: l
T38: Camion_rigide_PL_PTAC≤26tGaz_naturel_liquéfié_GNL | U38: Camion_rigide_PL_PTAC≤26t | V38: Gaz_naturel_liquéfié_GNL | W38: kg | X38: 0.697 | Y38: 2.58 | Z38: 3.277 | AA38: 0.0113 | AB38: 0.036 | AC38: 0.14 | AD38: 0.1873 | AF38: Gaz_de_pétrole_liquéfié_GPL | AG38: l
T39: Camion_rigide_PL_PTAC≤32tGazole | U39: Camion_rigide_PL_PTAC≤32t | V39: Gazole | W39: l | X39: 0.609 | Y39: 2.49 | Z39: 3.099 | AA39: 0.008 | AB39: 0.0191 | AC39: 0.0781 | AD39: 0.1052 | AF39: Gaz_naturel_comprimé_GNC | AG39: kg
T40: Ensemble_articulé_PL_PTRA≤34tGazole | U40: Ensemble_articulé_PL_PTRA≤34t | V40: Gazole | W40: l | X40: 0.609 | Y40: 2.49 | Z40: 3.099 | AA40: 0.0037 | AB40: 0.0176 | AC40: 0.064 | AD40: 0.0853 | AF40: Gaz_naturel_liquéfié_GNL | AG40: kg
T41: Ensemble_articulé_PL_PTRA≤40tGazole | U41: Ensemble_articulé_PL_PTRA≤40t | V41: Gazole | W41: l | X41: 0.609 | Y41: 2.49 | Z41: 3.099 | AA41: 0.0038 | AB41: 0.0154 | AC41: 0.0631 | AD41: 0.0823 | AF41: Hydrogène | AG41: kg
T42: Ensemble_articulé_PL_PTRA≤40tGaz_naturel_comprimé_GNC | U42: Ensemble_articulé_PL_PTRA≤40t | V42: Gaz_naturel_comprimé_GNC | W42: kg | X42: 0.55 | Y42: 2.41 | Z42: 2.96 | AA42: 0.0038 | AB42: 0.01 | AC42: 0.066 | AD42: 0.0798 | AF42: Aucun | AG42: -
T43: Ensemble_articulé_PL_PTRA≤40tGaz_naturel_liquéfié_GNL | U43: Ensemble_articulé_PL_PTRA≤40t | V43: Gaz_naturel_liquéfié_GNL | W43: kg | X43: 0.697 | Y43: 2.58 | Z43: 3.277 | AA43: 0.0038 | AB43: 0.023 | AC43: 0.065 | AD43: 0.0918
T44: Ensemble_articulé_PL_PTRA≤44tGazole | U44: Ensemble_articulé_PL_PTRA≤44t | V44: Gazole | W44: l | X44: 0.609 | Y44: 2.49 | Z44: 3.099 | AA44: 0.0038 | AB44: 0.0132 | AC44: 0.0541 | AD44: 0.0711 | AF44: Oui
T45: Ensemble_articulé_PL_PTRA≤60tGazole | U45: Ensemble_articulé_PL_PTRA≤60t | V45: Gazole | W45: l | X45: 0.609 | Y45: 2.49 | Z45: 3.099 | AA45: 0.0039 | AB45: 0.0125 | AC45: 0.0511 | AD45: 0.0675 | AF45: Non
T46: Ensemble_articulé_PL_PTRA≤72tGazole | U46: Ensemble_articulé_PL_PTRA≤72t | V46: Gazole | W46: l | X46: 0.609 | Y46: 2.49 | Z46: 3.099 | AA46: 0.004 | AB46: 0.0125 | AC46: 0.0511 | AD46: 0.0676
T47: VéloAucun | U47: Vélo | V47: Aucun | X47: 0 | Y47: 0 | Z47: 0 | AA47: 0.02 | AB47: 0 | AC47: 0 | AD47: =AA47+AB47+AC47 -> 0.02
T48: Vélo_électriqueÉlectricité | U48: Vélo_électrique | V48: Électricité | W48: kWh | X48: 0.0513 | Y48: 0 | Z48: 0.0513 | AA48: 0.02 | AB48: 0.00482 | AC48: 0 | AD48: 0.02482
N86: BILAN GLOBAL
N88: Activité totale de transport (tkm) | O88: Émissions de GES (kgCO2e) | P88: Intensité des émissions de GES (kgCO2e/tkm)
N89: =#REF!+L89 -> 
N90: =#REF!+L90 -> 
N91: =#REF!+L91 -> 
N92: =#REF!+L92 -> 
N93: =#REF!+L93 -> 
N94: =#REF!+L94 -> 
N95: =#REF!+L95 -> 
N96: =#REF!+L96 -> 
N97: =#REF!+L97 -> 
N98: =#REF!+L98 -> 
N99: =#REF!+L99 -> 
N100: =#REF!+L100 -> 
N101: =#REF!+L101 -> 
N102: =#REF!+L102 -> 
N103: =#REF!+L103 -> 
N104: =#REF!+L104 -> 
N105: =#REF!+L105 -> 
N106: =#REF!+L106 -> 
N107: =#REF!+L107 -> 
N108: =#REF!+L108 -> 
N109: =#REF!+L109 -> 
N110: =#REF!+L110 -> 
N111: =#REF!+L111 -> 
N112: =#REF!+L112 -> 
N113: =#REF!+L113 -> 
N114: =#REF!+L114 -> 
N116: =SUM(N89:N114) -> 

Sheet 3_Ferroviaire tkm
D1: DÉTERMINATION DES ÉMISSIONS DE GAZ À EFFET DE SERRE GÉNÉRÉES PAR LES PRESTATIONS DE TRANSPORT FERROVIAIRE MOBILISÉES DANS LE MARCHÉ
B5: Raison sociale du titulaire | C5: ='1_Infos générales'!$C$9:$J$9 -> 0
B7: Période de référence | C7: ='1_Infos générales'!$C$15 -> Année
B11: DONNÉES A REMPLIR
K15: TOTAL (kgCO2e)
K16: =SUM(K19:K25) -> 0
C18: Ville et Pays de départ [optionnel] | D18: Ville et Pays d'arrivée [optionnel] | E18: Caractéristique du chargement | F18: Type d'énergie | G18: Facteur d'émission de GES * (kgCO2e/tkm) | H18: Distance parcourue lors de ce trajet (en km) | I18: Masse de marchandises transportées lors de ce trajet (en tonnes) | J18: Nombre de répétitions de ce trajet (avec la même masse transportée) [optionnel] | K18: Calcul ** des émissions de GES pour ce transport (en kgCO2e) | L18: Quels moyens de preuves pourriez-vous donner ?
G19: =_xlfn.XLOOKUP(Tableau_prestations_ftkm[[#This Row],[Caractéristique du chargement]]&Tableau_prestations_ftkm[[#This Row],[Type d''énergie]], $V$28:$V$51&$W$28:$W$51, $AE$28:$AE$51, 0, 0, ) -> 0 | K19: =IF(ISBLANK(J19),G19*H19*I19,G19*H19*I19*J19) -> 0
G20: =_xlfn.XLOOKUP(Tableau_prestations_ftkm[[#This Row],[Caractéristique du chargement]]&Tableau_prestations_ftkm[[#This Row],[Type d''énergie]], $V$28:$V$51&$W$28:$W$51, $AE$28:$AE$51, 0, 0, ) -> 0 | K20: 0
G21: =_xlfn.XLOOKUP(Tableau_prestations_ftkm[[#This Row],[Caractéristique du chargement]]&Tableau_prestations_ftkm[[#This Row],[Type d''énergie]], $V$28:$V$51&$W$28:$W$51, $AE$28:$AE$51, 0, 0, ) -> 0 | K21: 0
G22: =_xlfn.XLOOKUP(Tableau_prestations_ftkm[[#This Row],[Caractéristique du chargement]]&Tableau_prestations_ftkm[[#This Row],[Type d''énergie]], $V$28:$V$51&$W$28:$W$51, $AE$28:$AE$51, 0, 0, ) -> 0 | K22: 0
G23: =_xlfn.XLOOKUP(Tableau_prestations_ftkm[[#This Row],[Caractéristique du chargement]]&Tableau_prestations_ftkm[[#This Row],[Type d''énergie]], $V$28:$V$51&$W$28:$W$51, $AE$28:$AE$51, 0, 0, ) -> 0 | K23: 0
G24: =_xlfn.XLOOKUP(Tableau_prestations_ftkm[[#This Row],[Caractéristique du chargement]]&Tableau_prestations_ftkm[[#This Row],[Type d''énergie]], $V$28:$V$51&$W$28:$W$51, $AE$28:$AE$51, 0, 0, ) -> 0 | K24: =IF(ISBLANK(J24),G24*H24*I24,G24*H24*I24*J24) -> 0
G25: =_xlfn.XLOOKUP(Tableau_prestations_ftkm[[#This Row],[Caractéristique du chargement]]&Tableau_prestations_ftkm[[#This Row],[Type d''énergie]], $V$28:$V$51&$W$28:$W$51, $AE$28:$AE$51, 0, 0, ) -> 0 | K25: =IF(ISBLANK(J25),G25*H25*I25,G25*H25*I25*J25) -> 0
V27: Caractéristiques du chargement | W27: Type d'énergie | X27: Unité | Y27: Facteur d'émission (WTT) (kgCO2e/unité) | Z27: Facteur d'émission (TTW) (kgCO2e/unité) | AA27: Facteur d'émission (WTW) (kgCO2e/unité) | AB27: Intensité des émissions issues de la fabrication (kgCO2e/tkm) | AC27: Intensité des émissions WTT de GES (kgCO2e/tkm) | AD27: Intensité des émissions TTW de GES (kgCO2e/tkm) | AE27: Intensité des émissions de GES (WTW + fabrication) (kgCO2e/tkm)
V28: Mixte_Basse_densité | W28: Gazole | X28: l | Y28: 0.589 | Z28: 2.57 | AA28: =Y28+Z28 -> 3.159 | AB28: 0.0039 | AC28: 0.00745 | AD28: 0.0286 | AE28: =AB28+AC28+AD28 -> 0.03995 | AH28: Mixte_Basse_densité | AI28: Mixte_Moyenne_densité | AJ28: Mixte_Densité_élevée | AK28: Conteneur | AL28: Automobiles | AM28: Produits_chimiques | AN28: Charbon_Acier | AO28: Matériels_Matériaux_Construction | AP28: Produits_manufacturés | AQ28: Céréales | AR28: Ensemble_articulé_camion_remorque | AS28: Remorque_seule
V29: Mixte_Basse_densité | W29: Électricité | X29: kWh | Y29: 0.252 | Z29: 0 | AA29: =Y29+Z29 -> 0.252 | AB29: 0.0039 | AC29: 0.000618 | AD29: 0.000984 | AE29: =AB29+AC29+AD29 -> 0.005502 | AG29: Mixte_Basse_densité | AH29: Gazole | AI29: Gazole | AJ29: Gazole | AK29: Gazole | AL29: Gazole | AM29: Gazole | AN29: Gazole | AO29: Gazole | AP29: Gazole | AQ29: Gazole | AR29: Gazole | AS29: Gazole
V30: Mixte_Moyenne_densité | W30: Gazole | X30: l | Y30: 0.589 | Z30: 2.57 | AA30: 3.159 | AB30: 0.003 | AC30: 0.00578 | AD30: 0.0222 | AE30: 0.03098 | AG30: Mixte_Moyenne_densité | AH30: Électricité | AI30: Électricité | AJ30: Électricité | AK30: Électricité | AL30: Électricité | AM30: Électricité | AN30: Électricité | AO30: Électricité | AP30: Électricité | AQ30: Électricité | AR30: Électricité | AS30: Électricité
V31: Mixte_Moyenne_densité | W31: Électricité | X31: kWh | Y31: 0.252 | Z31: 0 | AA31: 0.252 | AB31: 0.003 | AC31: 0.00048 | AD31: 0.000763 | AE31: 0.004243 | AG31: Mixte_Densité_élevée
V32: Mixte_Densité_élevée | W32: Gazole | X32: l | Y32: 0.589 | Z32: 2.57 | AA32: 3.159 | AB32: 0.0026 | AC32: 0.005 | AD32: 0.0192 | AE32: 0.0268 | AG32: Conteneur
V33: Mixte_Densité_élevée | W33: Électricité | X33: kWh | Y33: 0.252 | Z33: 0 | AA33: 0.252 | AB33: 0.0026 | AC33: 0.000414 | AD33: 0.000659 | AE33: 0.003673 | AG33: Automobiles
V34: Conteneur | W34: Gazole | X34: l | Y34: 0.589 | Z34: 2.57 | AA34: 3.159 | AB34: 0.003 | AC34: 0.0051 | AD34: 0.02 | AE34: 0.0281 | AG34: Produits_chimiques
V35: Conteneur | W35: Électricité | X35: kWh | Y35: 0.252 | Z35: 0 | AA35: 0.252 | AB35: 0.003 | AC35: 0.0091 | AD35: 0 | AE35: 0.0121 | AG35: Charbon_Acier
V36: Automobiles | W36: Gazole | X36: l | Y36: 0.589 | Z36: 2.57 | AA36: 3.159 | AB36: 0.003 | AC36: 0.012 | AD36: 0.048 | AE36: 0.063 | AG36: Matériels_Matériaux_Construction
V37: Automobiles | W37: Électricité | X37: kWh | Y37: 0.252 | Z37: 0 | AA37: 0.252 | AB37: 0.003 | AC37: 0.022 | AD37: 0 | AE37: 0.025 | AG37: Produits_manufacturés
V38: Produits_chimiques | W38: Gazole | X38: l | Y38: 0.589 | Z38: 2.57 | AA38: 3.159 | AB38: 0.003 | AC38: 0.0048 | AD38: 0.019 | AE38: 0.0268 | AG38: Céréales
V39: Produits_chimiques | W39: Électricité | X39: kWh | Y39: 0.252 | Z39: 0 | AA39: 0.252 | AB39: 0.003 | AC39: 0.0086 | AD39: 0 | AE39: 0.0116 | AG39: Ensemble_articulé_camion_remorque
V40: Charbon_Acier | W40: Gazole | X40: l | Y40: 0.589 | Z40: 2.57 | AA40: 3.159 | AB40: 0.003 | AC40: 0.0037 | AD40: 0.015 | AE40: 0.0217 | AG40: Remorque_seule
V41: Charbon_Acier | W41: Électricité | X41: kWh | Y41: 0.252 | Z41: 0 | AA41: 0.252 | AB41: 0.003 | AC41: 0.0067 | AD41: 0 | AE41: 0.0097
V42: Matériels_Matériaux_Construction | W42: Gazole | X42: l | Y42: 0.589 | Z42: 2.57 | AA42: 3.159 | AB42: 0.003 | AC42: 0.0046 | AD42: 0.019 | AE42: 0.0266 | AG42: Électricité | AH42: kWh
V43: Matériels_Matériaux_Construction | W43: Électricité | X43: kWh | Y43: 0.252 | Z43: 0 | AA43: 0.252 | AB43: 0.003 | AC43: 0.0083 | AD43: 0 | AE43: 0.0113 | AG43: Gazole | AH43: l
V44: Produits_manufacturés | W44: Gazole | X44: l | Y44: 0.589 | Z44: 2.57 | AA44: 3.159 | AB44: 0.003 | AC44: 0.0039 | AD44: 0.02 | AE44: 0.0269
V45: Produits_manufacturés | W45: Électricité | X45: kWh | Y45: 0.252 | Z45: 0 | AA45: 0.252 | AB45: 0.003 | AC45: 0.0088 | AD45: 0 | AE45: 0.0118
V46: Céréales | W46: Gazole | X46: l | Y46: 0.589 | Z46: 2.57 | AA46: 3.159 | AB46: 0.003 | AC46: 0.0037 | AD46: 0.015 | AE46: 0.0217
V47: Céréales | W47: Électricité | X47: kWh | Y47: 0.252 | Z47: 0 | AA47: 0.252 | AB47: 0.003 | AC47: 0.0066 | AD47: 0 | AE47: 0.0096
V48: Ensemble_articulé_camion_remorque | W48: Gazole | X48: l | Y48: 0.589 | Z48: 2.57 | AA48: 3.159 | AB48: 0.003 | AC48: 0.027 | AD48: 0.11 | AE48: 0.14
V49: Ensemble_articulé_camion_remorque | W49: Électricité | X49: kWh | Y49: 0.252 | Z49: 0 | AA49: 0.252 | AB49: 0.003 | AC49: 0.048 | AD49: 0 | AE49: 0.051
V50: Remorque_seule | W50: Gazole | X50: l | Y50: 0.589 | Z50: 2.57 | AA50: 3.159 | AB50: 0.003 | AC50: 0.018 | AD50: 0.07 | AE50: 0.091
V51: Remorque_seule | W51: Électricité | X51: kWh | Y51: 0.252 | Z51: 0 | AA51: 0.252 | AB51: 0.003 | AC51: 0.033 | AD51: 0 | AE51: 0.036
AG73: Oui
AG74: Non

Sheet 3_Ferroviaire carburant
D1: DÉTERMINATION DES ÉMISSIONS DE GAZ À EFFET DE SERRE GÉNÉRÉES PAR LES PRESTATIONS DE TRANSPORT FERROVIAIRE MOBILISÉES DANS LE MARCHÉ
B5: Raison sociale du titulaire | C5: ='1_Infos générales'!$C$9:$J$9 -> 0
B7: Période de référence | C7: ='1_Infos générales'!$C$15 -> Année
B11: DONNÉES A REMPLIR
J15: TOTAL (kgCO2e)
J16: =SUM(J19:J25) -> 0
C18: Ville et Pays de départ [optionnel] | D18: Ville et Pays d'arrivée [optionnel] | E18: Caractéristique du chargement | F18: Type d'énergie | G18: Facteur d'émission de GES * (kgCO2e/tkm) | H18: Quantité de carburant consommé lors de ce trajet (en L ou kWh) | I18: Nombre de répétitions de ce trajet (avec la même consommation de carburant) [optionnel] | J18: Calcul ** des émissions de GES pour ce transport (en kgCO2e) | K18: Quels moyens de preuves pourriez-vous donner ?
G19: =_xlfn.XLOOKUP(Tableau_prestations_fc[[#This Row],[Caractéristique du chargement]]&Tableau_prestations_fc[[#This Row],[Type d''énergie]], $U$29:$U$52&$V$29:$V$52, $Z$29:$Z$52, 0, 0, ) -> 0 | J19: =IF(ISBLANK(I19),G19*H19,G19*H19*I19) -> 0
G20: =_xlfn.XLOOKUP(Tableau_prestations_fc[[#This Row],[Caractéristique du chargement]]&Tableau_prestations_fc[[#This Row],[Type d''énergie]], $U$29:$U$52&$V$29:$V$52, $Z$29:$Z$52, 0, 0, ) -> 0 | J20: =IF(ISBLANK(I20),G20*H20,G20*H20*I20) -> 0
G21: =_xlfn.XLOOKUP(Tableau_prestations_fc[[#This Row],[Caractéristique du chargement]]&Tableau_prestations_fc[[#This Row],[Type d''énergie]], $U$29:$U$52&$V$29:$V$52, $Z$29:$Z$52, 0, 0, ) -> 0 | J21: 0
G22: =_xlfn.XLOOKUP(Tableau_prestations_fc[[#This Row],[Caractéristique du chargement]]&Tableau_prestations_fc[[#This Row],[Type d''énergie]], $U$29:$U$52&$V$29:$V$52, $Z$29:$Z$52, 0, 0, ) -> 0 | J22: 0
G23: =_xlfn.XLOOKUP(Tableau_prestations_fc[[#This Row],[Caractéristique du chargement]]&Tableau_prestations_fc[[#This Row],[Type d''énergie]], $U$29:$U$52&$V$29:$V$52, $Z$29:$Z$52, 0, 0, ) -> 0 | J23: 0
G24: =_xlfn.XLOOKUP(Tableau_prestations_fc[[#This Row],[Caractéristique du chargement]]&Tableau_prestations_fc[[#This Row],[Type d''énergie]], $U$29:$U$52&$V$29:$V$52, $Z$29:$Z$52, 0, 0, ) -> 0 | J24: 0
G25: =_xlfn.XLOOKUP(Tableau_prestations_fc[[#This Row],[Caractéristique du chargement]]&Tableau_prestations_fc[[#This Row],[Type d''énergie]], $U$29:$U$52&$V$29:$V$52, $Z$29:$Z$52, 0, 0, ) -> 0 | J25: 0
U28: Caractéristiques du chargement | V28: Type d'énergie | W28: Unité | X28: Facteur d'émission (WTT) (kgCO2e/unité) | Y28: Facteur d'émission (TTW) (kgCO2e/unité) | Z28: Facteur d'émission (WTW) (kgCO2e/unité) | AA28: Intensité des émissions issues de la fabrication (kgCO2e/tkm) | AB28: Intensité des émissions WTT de GES (kgCO2e/tkm) | AC28: Intensité des émissions TTW de GES (kgCO2e/tkm) | AD28: Intensité des émissions de GES (WTW + fabrication) (kgCO2e/tkm)
U29: Mixte_Basse_densité | V29: Gazole | W29: l | X29: 0.589 | Y29: 2.57 | Z29: =X29+Y29 -> 3.159 | AA29: 0.0039 | AB29: 0.00745 | AC29: 0.0286 | AD29: =AA29+AB29+AC29 -> 0.03995 | AG29: Mixte_Basse_densité | AH29: Mixte_Moyenne_densité | AI29: Mixte_Densité_élevée | AJ29: Conteneur | AK29: Automobiles | AL29: Produits_chimiques | AM29: Charbon_Acier | AN29: Matériels_Matériaux_Construction | AO29: Produits_manufacturés | AP29: Céréales | AQ29: Ensemble_articulé_camion_remorque | AR29: Remorque_seule
U30: Mixte_Basse_densité | V30: Électricité | W30: kWh | X30: 0.252 | Y30: 0 | Z30: =X30+Y30 -> 0.252 | AA30: 0.0039 | AB30: 0.000618 | AC30: 0.000984 | AD30: =AA30+AB30+AC30 -> 0.005502 | AF30: Mixte_Basse_densité | AG30: Gazole | AH30: Gazole | AI30: Gazole | AJ30: Gazole | AK30: Gazole | AL30: Gazole | AM30: Gazole | AN30: Gazole | AO30: Gazole | AP30: Gazole | AQ30: Gazole | AR30: Gazole
U31: Mixte_Moyenne_densité | V31: Gazole | W31: l | X31: 0.589 | Y31: 2.57 | Z31: 3.159 | AA31: 0.003 | AB31: 0.00578 | AC31: 0.0222 | AD31: 0.03098 | AF31: Mixte_Moyenne_densité | AG31: Électricité | AH31: Électricité | AI31: Électricité | AJ31: Électricité | AK31: Électricité | AL31: Électricité | AM31: Électricité | AN31: Électricité | AO31: Électricité | AP31: Électricité | AQ31: Électricité | AR31: Électricité
U32: Mixte_Moyenne_densité | V32: Électricité | W32: kWh | X32: 0.252 | Y32: 0 | Z32: 0.252 | AA32: 0.003 | AB32: 0.00048 | AC32: 0.000763 | AD32: 0.004243 | AF32: Mixte_Densité_élevée
U33: Mixte_Densité_élevée | V33: Gazole | W33: l | X33: 0.589 | Y33: 2.57 | Z33: 3.159 | AA33: 0.0026 | AB33: 0.005 | AC33: 0.0192 | AD33: 0.0268 | AF33: Conteneur
U34: Mixte_Densité_élevée | V34: Électricité | W34: kWh | X34: 0.252 | Y34: 0 | Z34: 0.252 | AA34: 0.0026 | AB34: 0.000414 | AC34: 0.000659 | AD34: 0.003673 | AF34: Automobiles
U35: Conteneur | V35: Gazole | W35: l | X35: 0.589 | Y35: 2.57 | Z35: 3.159 | AA35: 0.003 | AB35: 0.0051 | AC35: 0.02 | AD35: 0.0281 | AF35: Produits_chimiques
U36: Conteneur | V36: Électricité | W36: kWh | X36: 0.252 | Y36: 0 | Z36: 0.252 | AA36: 0.003 | AB36: 0.0091 | AC36: 0 | AD36: 0.0121 | AF36: Charbon_Acier
U37: Automobiles | V37: Gazole | W37: l | X37: 0.589 | Y37: 2.57 | Z37: 3.159 | AA37: 0.003 | AB37: 0.012 | AC37: 0.048 | AD37: 0.063 | AF37: Matériels_Matériaux_Construction
U38: Automobiles | V38: Électricité | W38: kWh | X38: 0.252 | Y38: 0 | Z38: 0.252 | AA38: 0.003 | AB38: 0.022 | AC38: 0 | AD38: 0.025 | AF38: Produits_manufacturés
U39: Produits_chimiques | V39: Gazole | W39: l | X39: 0.589 | Y39: 2.57 | Z39: 3.159 | AA39: 0.003 | AB39: 0.0048 | AC39: 0.019 | AD39: 0.0268 | AF39: Céréales
U40: Produits_chimiques | V40: Électricité | W40: kWh | X40: 0.252 | Y40: 0 | Z40: 0.252 | AA40: 0.003 | AB40: 0.0086 | AC40: 0 | AD40: 0.0116 | AF40: Ensemble_articulé_camion_remorque
U41: Charbon_Acier | V41: Gazole | W41: l | X41: 0.589 | Y41: 2.57 | Z41: 3.159 | AA41: 0.003 | AB41: 0.0037 | AC41: 0.015 | AD41: 0.0217 | AF41: Remorque_seule
U42: Charbon_Acier | V42: Électricité | W42: kWh | X42: 0.252 | Y42: 0 | Z42: 0.252 | AA42: 0.003 | AB42: 0.0067 | AC42: 0 | AD42: 0.0097
U43: Matériels_Matériaux_Construction | V43: Gazole | W43: l | X43: 0.589 | Y43: 2.57 | Z43: 3.159 | AA43: 0.003 | AB43: 0.0046 | AC43: 0.019 | AD43: 0.0266 | AF43: Électricité | AG43: kWh
U44: Matériels_Matériaux_Construction | V44: Électricité | W44: kWh | X44: 0.252 | Y44: 0 | Z44: 0.252 | AA44: 0.003 | AB44: 0.0083 | AC44: 0 | AD44: 0.0113 | AF44: Gazole | AG44: l
U45: Produits_manufacturés | V45: Gazole | W45: l | X45: 0.589 | Y45: 2.57 | Z45: 3.159 | AA45: 0.003 | AB45: 0.0039 | AC45: 0.02 | AD45: 0.0269
U46: Produits_manufacturés | V46: Électricité | W46: kWh | X46: 0.252 | Y46: 0 | Z46: 0.252 | AA46: 0.003 | AB46: 0.0088 | AC46: 0 | AD46: 0.0118
U47: Céréales | V47: Gazole | W47: l | X47: 0.589 | Y47: 2.57 | Z47: 3.159 | AA47: 0.003 | AB47: 0.0037 | AC47: 0.015 | AD47: 0.0217
U48: Céréales | V48: Électricité | W48: kWh | X48: 0.252 | Y48: 0 | Z48: 0.252 | AA48: 0.003 | AB48: 0.0066 | AC48: 0 | AD48: 0.0096
U49: Ensemble_articulé_camion_remorque | V49: Gazole | W49: l | X49: 0.589 | Y49: 2.57 | Z49: 3.159 | AA49: 0.003 | AB49: 0.027 | AC49: 0.11 | AD49: 0.14
U50: Ensemble_articulé_camion_remorque | V50: Électricité | W50: kWh | X50: 0.252 | Y50: 0 | Z50: 0.252 | AA50: 0.003 | AB50: 0.048 | AC50: 0 | AD50: 0.051
U51: Remorque_seule | V51: Gazole | W51: l | X51: 0.589 | Y51: 2.57 | Z51: 3.159 | AA51: 0.003 | AB51: 0.018 | AC51: 0.07 | AD51: 0.091
U52: Remorque_seule | V52: Électricité | W52: kWh | X52: 0.252 | Y52: 0 | Z52: 0.252 | AA52: 0.003 | AB52: 0.033 | AC52: 0 | AD52: 0.036
AF74: Oui
AF75: Non

Sheet 3_Ferroviaire (hidden)
B2: DÉTERMINATION DES ÉMISSIONS DE GAZ À EFFET DE SERRE GÉNÉRÉES PAR LES PRESTATIONS DE TRANSPORT FERROVIAIRE MOBILISÉES DANS LE MARCHÉ
B4: Raison sociale du titulaire | C4: ='1_Infos générales'!$C$9:$J$9 -> 0
B6: Période de référence | C6: ='1_Infos générales'!$C$15 -> Année
B8: DONNÉES D'ENTRÉE
B10: Le titulaire est invité à renseigner les cellules jaunes ci-dessous | I10: Les données primaires sont les données mesurées ou obtenues par calcul à la suite de mesure
B11: Les cellules bleues sont automatiquement complétées et ne peuvent être manuellement modifiées | I11: En cellule J17, le titulaire indique s'il dispose de données primaires de suivi des consommations de la flotte détenue pour les prestations de transport internalisées
I12: → Si oui, le titulaire renseigne les consommations en colonne I ; si non, il laisse la colonne I vide et les calculs seront réalisés selon des modélisations par défaut
B13: Le titulaire peut regrouper à sa convenance les prestations de transport répondant à des caractéristiques communes (ex. externalisé, par type de chargement et d'énergie commun) | I13: En cellule N17, le titulaire indique s'il dispose de données primaires de suivi des consommations des flottes mobilisées pour les prestations externalisées
B14: Le nombre de lignes disponibles dans le tableau ci-dessous est limité sans possibilité d'ajouter de ligne supplémentaire ; | I14: → Si oui, le titulaire renseigne les consommations en colonne M ; si non, il laisse la colonne M vide et les calculs seront réalisés selon des modélisations par défaut
B15: le titulaire est donc invité à réduire aux maximum le nombre de lignes utilisées
F16: Prestations de transport internalisées (réalisées avec des véhicules appartenant au titulaire) | K16: Prestations de transport externalisées
B17: La colonne B sert à donner un intitulé (nom, numéro, etc. au choix du titulaire) à la ligne de données renseignée | F17: Informations sur l'activité de la flotte interne pour les prestations de transport visées | I17: Données primaires? | J17: Oui | K17: Informations sur l'activité externalisée pour les prestations de transport visées | M17: Données primaires? | N17: Oui
B18: Prestation de transport (agrégation possible à la convenance du titulaire - ex. une ligne regroupant tous les transports de céréales réalisés en train au gazole sur l'année) | C18: Caractéristiques du chargement | D18: Type d'énergie | E18: Transport sous température dirigée? | F18: (Réservé) | G18: Distance totale cumulée (km) | H18: Masse totale de marchandises transportées (t) | I18: Quantité totale d'énergie consommée | J18: Unité | K18: Distance totale cumulée (km) | L18: Masse totale de marchandises transportées (t) | M18: Quantité totale d'énergie consommée | N18: Unité | V18: Caractéristiques du chargement | W18: Type d'énergie | X18: Unité | Y18: Facteur d'émission (WTT) (kgCO2e/unité) | Z18: Facteur d'émission (TTW) (kgCO2e/unité) | AA18: Facteur d'émission (WTW) (kgCO2e/unité) | AB18: Intensité des émissions issues de la fabrication (kgCO2e/tkm) | AC18: Intensité des émissions WTT de GES (kgCO2e/tkm) | AD18: Intensité des émissions TTW de GES (kgCO2e/tkm) | AE18: Intensité des émissions de GES (WTW + fabrication) (kgCO2e/tkm) | AH18: Mixte_Basse_densité | AI18: Mixte_Moyenne_densité | AJ18: Mixte_Densité_élevée | AK18: Conteneur | AL18: Automobiles | AM18: Produits_chimiques | AN18: Charbon_Acier | AO18: Matériels_Matériaux_Construction | AP18: Produits_manufacturés | AQ18: Céréales | AR18: Ensemble_articulé_camion_remorque | AS18: Remorque_seule
J19: =IF(ISBLANK(D19),"",VLOOKUP($D19,$AG$32:$AH$33,2,FALSE)) ->  | N19: =J19 ->  | U19: =V19&W19 -> Mixte_Basse_densitéGazole | V19: Mixte_Basse_densité | W19: Gazole | X19: l | Y19: 0.589 | Z19: 2.57 | AA19: =Y19+Z19 -> 3.159 | AB19: 0.0039 | AC19: 0.00745 | AD19: 0.0286 | AE19: =AB19+AC19+AD19 -> 0.03995 | AG19: Mixte_Basse_densité | AH19: Gazole | AI19: Gazole | AJ19: Gazole | AK19: Gazole | AL19: Gazole | AM19: Gazole | AN19: Gazole | AO19: Gazole | AP19: Gazole | AQ19: Gazole | AR19: Gazole | AS19: Gazole
J20: =IF(ISBLANK(D20),"",VLOOKUP($D20,$AG$32:$AH$33,2,FALSE)) ->  | N20: =J20 ->  | U20: =V20&W20 -> Mixte_Basse_densitéÉlectricité | V20: Mixte_Basse_densité | W20: Électricité | X20: kWh | Y20: 0.252 | Z20: 0 | AA20: =Y20+Z20 -> 0.252 | AB20: 0.0039 | AC20: 0.000618 | AD20: 0.000984 | AE20: =AB20+AC20+AD20 -> 0.005502 | AG20: Mixte_Moyenne_densité | AH20: Électricité | AI20: Électricité | AJ20: Électricité | AK20: Électricité | AL20: Électricité | AM20: Électricité | AN20: Électricité | AO20: Électricité | AP20: Électricité | AQ20: Électricité | AR20: Électricité | AS20: Électricité
U21: =V21&W21 -> Mixte_Moyenne_densitéGazole | V21: Mixte_Moyenne_densité | W21: Gazole | X21: l | Y21: 0.589 | Z21: 2.57 | AA21: =Y21+Z21 -> 3.159 | AB21: 0.003 | AC21: 0.00578 | AD21: 0.0222 | AE21: 0.03098 | AG21: Mixte_Densité_élevée
U22: Mixte_Moyenne_densitéÉlectricité | V22: Mixte_Moyenne_densité | W22: Électricité | X22: kWh | Y22: 0.252 | Z22: 0 | AA22: 0.252 | AB22: 0.003 | AC22: 0.00048 | AD22: 0.000763 | AE22: 0.004243 | AG22: Conteneur
U23: Mixte_Densité_élevéeGazole | V23: Mixte_Densité_élevée | W23: Gazole | X23: l | Y23: 0.589 | Z23: 2.57 | AA23: 3.159 | AB23: 0.0026 | AC23: 0.005 | AD23: 0.0192 | AE23: 0.0268 | AG23: Automobiles
U24: Mixte_Densité_élevéeÉlectricité | V24: Mixte_Densité_élevée | W24: Électricité | X24: kWh | Y24: 0.252 | Z24: 0 | AA24: 0.252 | AB24: 0.0026 | AC24: 0.000414 | AD24: 0.000659 | AE24: 0.003673 | AG24: Produits_chimiques
U25: ConteneurGazole | V25: Conteneur | W25: Gazole | X25: l | Y25: 0.589 | Z25: 2.57 | AA25: 3.159 | AB25: 0.003 | AC25: 0.0051 | AD25: 0.02 | AE25: =AB25+AC25+AD25 -> 0.0281 | AG25: Charbon_Acier
U26: ConteneurÉlectricité | V26: Conteneur | W26: Électricité | X26: kWh | Y26: 0.252 | Z26: 0 | AA26: 0.252 | AB26: 0.003 | AC26: 0.0091 | AD26: 0 | AE26: 0.0121 | AG26: Matériels_Matériaux_Construction
U27: AutomobilesGazole | V27: Automobiles | W27: Gazole | X27: l | Y27: 0.589 | Z27: 2.57 | AA27: 3.159 | AB27: 0.003 | AC27: 0.012 | AD27: 0.048 | AE27: 0.063 | AG27: Produits_manufacturés
U28: AutomobilesÉlectricité | V28: Automobiles | W28: Électricité | X28: kWh | Y28: 0.252 | Z28: 0 | AA28: 0.252 | AB28: 0.003 | AC28: 0.022 | AD28: 0 | AE28: 0.025 | AG28: Céréales
U29: Produits_chimiquesGazole | V29: Produits_chimiques | W29: Gazole | X29: l | Y29: 0.589 | Z29: 2.57 | AA29: 3.159 | AB29: 0.003 | AC29: 0.0048 | AD29: 0.019 | AE29: 0.0268 | AG29: Ensemble_articulé_camion_remorque
U30: Produits_chimiquesÉlectricité | V30: Produits_chimiques | W30: Électricité | X30: kWh | Y30: 0.252 | Z30: 0 | AA30: 0.252 | AB30: 0.003 | AC30: 0.0086 | AD30: 0 | AE30: 0.0116 | AG30: Remorque_seule
U31: Charbon_AcierGazole | V31: Charbon_Acier | W31: Gazole | X31: l | Y31: 0.589 | Z31: 2.57 | AA31: 3.159 | AB31: 0.003 | AC31: 0.0037 | AD31: 0.015 | AE31: 0.0217
U32: Charbon_AcierÉlectricité | V32: Charbon_Acier | W32: Électricité | X32: kWh | Y32: 0.252 | Z32: 0 | AA32: 0.252 | AB32: 0.003 | AC32: 0.0067 | AD32: 0 | AE32: 0.0097 | AG32: Électricité | AH32: kWh
U33: Matériels_Matériaux_ConstructionGazole | V33: Matériels_Matériaux_Construction | W33: Gazole | X33: l | Y33: 0.589 | Z33: 2.57 | AA33: 3.159 | AB33: 0.003 | AC33: 0.0046 | AD33: 0.019 | AE33: 0.0266 | AG33: Gazole | AH33: l
U34: Matériels_Matériaux_ConstructionÉlectricité | V34: Matériels_Matériaux_Construction | W34: Électricité | X34: kWh | Y34: 0.252 | Z34: 0 | AA34: 0.252 | AB34: 0.003 | AC34: 0.0083 | AD34: 0 | AE34: 0.0113
U35: Produits_manufacturésGazole | V35: Produits_manufacturés | W35: Gazole | X35: l | Y35: 0.589 | Z35: 2.57 | AA35: 3.159 | AB35: 0.003 | AC35: 0.0039 | AD35: 0.02 | AE35: 0.0269
U36: Produits_manufacturésÉlectricité | V36: Produits_manufacturés | W36: Électricité | X36: kWh | Y36: 0.252 | Z36: 0 | AA36: 0.252 | AB36: 0.003 | AC36: 0.0088 | AD36: 0 | AE36: 0.0118
U37: CéréalesGazole | V37: Céréales | W37: Gazole | X37: l | Y37: 0.589 | Z37: 2.57 | AA37: 3.159 | AB37: 0.003 | AC37: 0.0037 | AD37: 0.015 | AE37: 0.0217
U38: CéréalesÉlectricité | V38: Céréales | W38: Électricité | X38: kWh | Y38: 0.252 | Z38: 0 | AA38: 0.252 | AB38: 0.003 | AC38: 0.0066 | AD38: 0 | AE38: 0.0096
U39: Ensemble_articulé_camion_remorqueGazole | V39: Ensemble_articulé_camion_remorque | W39: Gazole | X39: l | Y39: 0.589 | Z39: 2.57 | AA39: 3.159 | AB39: 0.003 | AC39: 0.027 | AD39: 0.11 | AE39: =AB39+AC39+AD39 -> 0.14
U40: Ensemble_articulé_camion_remorqueÉlectricité | V40: Ensemble_articulé_camion_remorque | W40: Électricité | X40: kWh | Y40: 0.252 | Z40: 0 | AA40: 0.252 | AB40: 0.003 | AC40: 0.048 | AD40: 0 | AE40: 0.051
U41: Remorque_seuleGazole | V41: Remorque_seule | W41: Gazole | X41: l | Y41: 0.589 | Z41: 2.57 | AA41: 3.159 | AB41: 0.003 | AC41: 0.018 | AD41: 0.07 | AE41: 0.091
U42: Remorque_seuleÉlectricité | V42: Remorque_seule | W42: Électricité | X42: kWh | Y42: 0.252 | Z42: 0 | AA42: 0.252 | AB42: 0.003 | AC42: 0.033 | AD42: 0 | AE42: 0.036 | AG42: Oui
AG43: Non
B46: RÉSULTATS
B48: Scope 1 : émissions directes de GES | J48: TTW (tank-to-wheel) = émissions "du réservoir à la roue" (combustion)
B49: Scope 2 : émissions indirectes de GES issues de l'électricité consommée | J49: WTT (well-to-tank) = émissions "du puits au réservoir" (production de l'énergie en amont)
B50: Scope 3 : autres émissions indirectes de GES - incluent les émissions amont de production des carburants et des véhicules ainsi que toutes les émissions du transport externalisé | J50: WTW (well-to-wheel) = émissions "du puits à la roue" (cycle de vie complet de l'énergie)
B52: Pour le transport sous température dirigée, les émissions totales de GES sont majorées de 15 % sous l'effet des fuites de fluides frigorigènes
F54: Prestations de transport internalisées | L54: Prestations de transport externalisées | N54: BILAN GLOBAL
F55: Scope 1 | H55: Scope 2 | I55: Scope 3
B56: Prestation de transport | C56: Caractéristiques du chargement | D56: Type d'énergie | E56: Transport sous température dirigée? | F56: Activité totale de transport internalisée (tkm) | G56: Émissions directes (TTW) de GES (kgCO2e) | H56: Émissions indirectes (WTT) de GES issues de l'électricité consommée (kgCO2e) | I56: Rappel activité totale de transport internalisée (tkm) | J56: Émissions indirectes de GES issues de la fabrication des véhicules (kgCO2e) | K56: Émissions indirectes (WTT) de GES issues du carburant consommé (kgCO2e) | L56: Activité totale de transport externalisée (tkm) | M56: Émissions de GES (WTW + fabrication) (kgCO2e) | N56: Activité totale de transport (tkm) | O56: Émissions de GES (kgCO2e) | P56: Intensité des émissions de GES (kgCO2e/tkm)
B57: =B19 -> 0 | C57: =C19 -> 0 | D57: =D19 -> 0 | E57: =E19 -> 0 | F57: =G19*H19 -> 0 | G57: =IF(OR($C57=0,$D57=0),0,IF($J$17="Oui",$I19*VLOOKUP($C57&$D57,$U$19:$AE$44,6,FALSE),$F57*VLOOKUP($C57&$D57,$U$19:$AE$44,10,FALSE))) -> 0 | H57: =IF($D57<>"Électricité",0,IF($J$17="Oui",$I19*VLOOKUP($C57&$D57,$U$19:$AE$44,5,FALSE),$F57*VLOOKUP($C57&$D57,$U$19:$AE$44,9,FALSE))) -> 0 | I57: =F57 -> 0 | J57: =IF(OR($C57=0,$D57=0),0,$F57*VLOOKUP($C57&$D57,$U$19:$AE$44,8,FALSE)) -> 0 | K57: =IF(OR($C57=0,$D57=0),0,IF($D57="Électricité",0,IF($J$17="Oui",$I19*VLOOKUP($C57&$D57,$U$19:$AE$44,5,FALSE),$F57*VLOOKUP($C57&$D57,$U$19:$AE$44,9,FALSE)))) -> 0 | L57: =K19*L19 -> 0 | M57: =IF(OR($C57=0,$D57=0),0,IF($N$17="Oui",$M19*VLOOKUP($C57&$D57,$U$19:$AE$44,7,FALSE)+$L57*VLOOKUP(C57&D57,$U$19:$AE$44,8,FALSE),$L57*VLOOKUP($C57&$D57,$U$19:$AE$44,11,FALSE))) -> 0 | N57: =I57+L57 -> 0 | O57: =IF(E57="Non",G57+H57+J57+K57+M57,1.15*(G57+H57+J57+K57+M57)) -> 0 | P57: =O57/N57 -> 
B58: =B20 -> 0 | C58: =C20 -> 0 | D58: 0 | E58: 0 | F58: 0 | G58: =IF(OR($C58=0,$D58=0),0,IF($J$17="Oui",$I20*VLOOKUP($C58&$D58,$U$19:$AE$44,6,FALSE),$F58*VLOOKUP($C58&$D58,$U$19:$AE$44,10,FALSE))) -> 0 | H58: 0 | I58: =F58 -> 0 | J58: =IF(OR($C58=0,$D58=0),0,$F58*VLOOKUP($C58&$D58,$U$19:$AE$44,8,FALSE)) -> 0 | K58: =IF(OR($C58=0,$D58=0),0,IF($D58="Électricité",0,IF($J$17="Oui",$I20*VLOOKUP($C58&$D58,$U$19:$AE$44,5,FALSE),$F58*VLOOKUP($C58&$D58,$U$19:$AE$44,9,FALSE)))) -> 0 | L58: 0 | M58: =IF(OR($C58=0,$D58=0),0,IF($N$17="Oui",$M20*VLOOKUP($C58&$D58,$U$19:$AE$44,7,FALSE)+$L58*VLOOKUP(C58&D58,$U$19:$AE$44,8,FALSE),$L58*VLOOKUP($C58&$D58,$U$19:$AE$44,11,FALSE))) -> 0 | N58: =I58+L58 -> 0 | O58: =IF(E58="Non",G58+H58+J58+K58+M58,1.15*(G58+H58+J58+K58+M58)) -> 0 | P58: =O58/N58 -> 
B59: 0 | C59: 0 | D59: 0 | E59: 0 | F59: 0 | G59: 0 | H59: 0 | I59: 0 | J59: 0 | K59: 0 | L59: 0 | M59: 0 | N59: 0 | O59: 0
B60: 0 | C60: 0 | D60: 0 | E60: 0 | F60: 0 | G60: 0 | H60: 0 | I60: 0 | J60: 0 | K60: 0 | L60: 0 | M60: 0 | N60: 0 | O60: 0
B61: 0 | C61: 0 | D61: 0 | E61: 0 | F61: 0 | G61: 0 | H61: 0 | I61: 0 | J61: 0 | K61: 0 | L61: 0 | M61: 0 | N61: 0 | O61: 0
B62: 0 | C62: 0 | D62: 0 | E62: 0 | F62: 0 | G62: 0 | H62: 0 | I62: 0 | J62: 0 | K62: 0 | L62: 0 | M62: 0 | N62: 0 | O62: 0
B63: 0 | C63: 0 | D63: 0 | E63: 0 | F63: 0 | G63: 0 | H63: 0 | I63: 0 | J63: 0 | K63: 0 | L63: 0 | M63: 0 | N63: 0 | O63: 0
B64: 0 | C64: 0 | D64: 0 | E64: 0 | F64: 0 | G64: 0 | H64: 0 | I64: 0 | J64: 0 | K64: 0 | L64: 0 | M64: 0 | N64: 0 | O64: 0
B65: 0 | C65: 0 | D65: 0 | E65: 0 | F65: 0 | G65: 0 | H65: 0 | I65: 0 | J65: 0 | K65: 0 | L65: 0 | M65: 0 | N65: 0 | O65: 0
B66: 0 | C66: 0 | D66: 0 | E66: 0 | F66: 0 | G66: 0 | H66: 0 | I66: 0 | J66: 0 | K66: 0 | L66: 0 | M66: 0 | N66: 0 | O66: 0
B67: 0 | C67: 0 | D67: 0 | E67: 0 | F67: 0 | G67: 0 | H67: 0 | I67: 0 | J67: 0 | K67: 0 | L67: 0 | M67: 0 | N67: 0 | O67: 0
B68: 0 | C68: 0 | D68: 0 | E68: 0 | F68: 0 | G68: 0 | H68: 0 | I68: 0 | J68: 0 | K68: 0 | L68: 0 | M68: 0 | N68: 0 | O68: 0
B69: 0 | C69: 0 | D69: 0 | E69: 0 | F69: 0 | G69: 0 | H69: 0 | I69: 0 | J69: 0 | K69: 0 | L69: 0 | M69: 0 | N69: 0 | O69: 0
B70: 0 | C70: 0 | D70: 0 | E70: 0 | F70: 0 | G70: 0 | H70: 0 | I70: 0 | J70: 0 | K70: 0 | L70: 0 | M70: 0 | N70: 0 | O70: 0
B71: 0 | C71: 0 | D71: 0 | E71: 0 | F71: 0 | G71: 0 | H71: 0 | I71: 0 | J71: 0 | K71: 0 | L71: 0 | M71: 0 | N71: 0 | O71: 0
B72: 0 | C72: 0 | D72: 0 | E72: 0 | F72: 0 | G72: 0 | H72: 0 | I72: 0 | J72: 0 | K72: 0 | L72: 0 | M72: 0 | N72: 0 | O72: 0
B73: 0 | C73: 0 | D73: 0 | E73: 0 | F73: 0 | G73: 0 | H73: 0 | I73: 0 | J73: 0 | K73: 0 | L73: 0 | M73: 0 | N73: 0 | O73: 0
B74: 0 | C74: 0 | D74: 0 | E74: 0 | F74: 0 | G74: 0 | H74: 0 | I74: 0 | J74: 0 | K74: 0 | L74: 0 | M74: 0 | N74: 0 | O74: 0
B75: =B37 -> 0 | C75: 0 | D75: 0 | E75: 0 | F75: 0 | G75: 0 | H75: 0 | I75: 0 | J75: 0 | K75: 0 | L75: 0 | M75: 0 | N75: 0 | O75: 0
B76: 0 | C76: 0 | D76: 0 | E76: 0 | F76: 0 | G76: 0 | H76: 0 | I76: 0 | J76: 0 | K76: 0 | L76: 0 | M76: 0 | N76: 0 | O76: 0
B77: 0 | C77: 0 | D77: 0 | E77: 0 | F77: 0 | G77: 0 | H77: 0 | I77: 0 | J77: 0 | K77: 0 | L77: 0 | M77: 0 | N77: 0 | O77: 0
B78: 0 | C78: 0 | D78: 0 | E78: 0 | F78: 0 | G78: 0 | H78: 0 | I78: 0 | J78: 0 | K78: 0 | L78: 0 | M78: 0 | N78: 0 | O78: 0
B79: 0 | C79: 0 | D79: 0 | E79: 0 | F79: 0 | G79: 0 | H79: 0 | I79: 0 | J79: 0 | K79: 0 | L79: 0 | M79: 0 | N79: 0 | O79: 0
B80: 0 | C80: 0 | D80: 0 | E80: 0 | F80: 0 | G80: 0 | H80: 0 | I80: 0 | J80: 0 | K80: 0 | L80: 0 | M80: 0 | N80: 0 | O80: 0
B81: 0 | C81: 0 | D81: 0 | E81: 0 | F81: 0 | G81: 0 | H81: 0 | I81: 0 | J81: 0 | K81: 0 | L81: 0 | M81: 0 | N81: 0 | O81: 0
B82: 0 | C82: 0 | D82: 0 | E82: 0 | F82: 0 | G82: 0 | H82: 0 | I82: 0 | J82: 0 | K82: 0 | L82: 0 | M82: 0 | N82: 0 | O82: 0
B84: TOTAL | F84: =SUM(F57:F82) -> 0 | G84: 0 | H84: 0 | I84: 0 | J84: 0 | K84: 0 | L84: 0 | M84: 0 | N84: 0 | O84: 0 | P84: =O84/N84 -> 

Sheet 4_Fluvial (hidden)
B2: DÉTERMINATION DES ÉMISSIONS DE GAZ À EFFET DE SERRE GÉNÉRÉES PAR LES PRESTATIONS DE TRANSPORT FLUVIAL MOBILISÉES DANS LE MARCHÉ
B4: Raison sociale du titulaire | C4: ='1_Infos générales'!$C$9:$J$9 -> 0
B6: Période de référence | C6: ='1_Infos générales'!$C$15 -> Année
B8: DONNÉES D'ENTRÉE
B10: Le titulaire est invité à renseigner les cellules jaunes ci-dessous | I10: Les données primaires sont les données mesurées ou obtenues par calcul à la suite de mesure
B11: Les cellules bleues sont automatiquement complétées et ne peuvent être manuellement modifiées | I11: En cellule J17, le titulaire indique s'il dispose de données primaires de suivi des consommations de la flotte détenue pour les prestations de transport internalisées
I12: → Si oui, le titulaire renseigne les consommations en colonne I ; si non, il laisse la colonne I vide et les calculs seront réalisés selon des modélisations par défaut
B13: Le titulaire peut regrouper à sa convenance les prestations de transport répondant à des caractéristiques communes (ex. externalisé, par type de bateau et carburant commun) | I13: En cellule N17, le titulaire indique s'il dispose de données primaires de suivi des consommations des flottes mobilisées pour les prestations externalisées
B14: Le nombre de lignes disponibles dans le tableau ci-dessous est limité sans possibilité d'ajouter de ligne supplémentaire ; | I14: → Si oui, le titulaire renseigne les consommations en colonne M ; si non, il laisse la colonne M vide et les calculs seront réalisés selon des modélisations par défaut
B15: le titulaire est donc invité à réduire aux maximum le nombre de lignes utilisées
F16: Prestations de transport internalisées (réalisées avec des véhicules appartenant au titulaire) | K16: Prestations de transport externalisées
B17: La colonne B sert à donner un intitulé (nom, numéro, etc. au choix du titulaire) à la ligne de données renseignée | F17: Informations sur l'activité de la flotte interne pour les prestations de transport visées | I17: Données primaires? | J17: Oui | K17: Informations sur l'activité externalisée pour les prestations de transport visées | M17: Données primaires? | N17: Oui
B18: Prestation de transport (agrégation possible à la convenance du titulaire - ex. une ligne regroupant tous les transports en barge automotrice électrique sur la Seine au cours de l'année) | C18: Type de bateau | D18: Type d'énergie | E18: Transport sous température dirigée? | F18: (Réservé) | G18: Distance totale cumulée (km) | H18: Masse totale de marchandises transportées (t) | I18: Quantité totale d'énergie consommée | J18: Unité | K18: Distance totale cumulée (km) | L18: Masse totale de marchandises transportées (t) | M18: Quantité totale d'énergie consommée | N18: Unité | V18: Type de véhicule | W18: Type de carburant | X18: Unité | Y18: Facteur d'émission (WTT) (kgCO2e/unité) | Z18: Facteur d'émission (TTW) (kgCO2e/unité) | AA18: Facteur d'émission (WTW) (kgCO2e/unité) | AB18: Intensité des émissions issues de la fabrication (kgCO2e/tkm) | AC18: Intensité des émissions WTT de GES (kgCO2e/tkm) | AD18: Intensité des émissions TTW de GES (kgCO2e/tkm) | AE18: Intensité des émissions de GES (WTW + fabrication) (kgCO2e/tkm) | AH18: Bateau_motorisé_capacité≤399tpl | AI18: Bateau_motorisé_capacité≤649tpl | AJ18: Bateau_motorisé_capacité≤999tpl | AK18: Bateau_motorisé_capacité≤1499tpl | AL18: Bateau_motorisé_capacité≤2999tpl | AM18: Bateau_motorisé_capacité_sup_3000tpl | AN18: Pousseur_avec_barge_P≤879kW | AO18: Pousseur_avec_barge_Pmin_880kW
J19: =IF(ISBLANK(D19),"",VLOOKUP($D19,$AG$32:$AH$39,2,FALSE)) ->  | N19: =J19 ->  | U19: =V19&W19 -> Bateau_motorisé_capacité≤399tplGazole | V19: Bateau_motorisé_capacité≤399tpl | W19: Gazole | X19: l | Y19: 0.589 | Z19: 2.57 | AA19: =Y19+Z19 -> 3.159 | AC19: 0.00681 | AD19: 0.0262 | AE19: =AB19+AC19+AD19 -> 0.03301 | AG19: Bateau_motorisé_capacité≤399tpl | AH19: Gazole | AI19: Gazole | AJ19: Gazole | AK19: Gazole | AL19: Gazole | AM19: Gazole | AN19: Gazole | AO19: Gazole
J20: =IF(ISBLANK(D20),"",VLOOKUP($D20,$AG$32:$AH$39,2,FALSE)) ->  | N20: =J20 ->  | U20: =V20&W20 -> Bateau_motorisé_capacité≤399tplÉlectricité | V20: Bateau_motorisé_capacité≤399tpl | W20: Électricité | X20: kWh | Y20: 0.0513 | Z20: 0 | AA20: =Y20+Z20 -> 0.0513 | AC20: 0.0138 | AD20: 0 | AE20: =AB20+AC20+AD20 -> 0.0138 | AG20: Bateau_motorisé_capacité≤649tpl | AH20: Électricité | AI20: Électricité | AJ20: Électricité | AK20: Électricité
U21: Bateau_motorisé_capacité≤649tplGazole | V21: Bateau_motorisé_capacité≤649tpl | W21: Gazole | X21: l | Y21: 0.589 | Z21: 2.57 | AA21: 3.159 | AC21: 0.00741 | AD21: 0.0285 | AE21: 0.03591 | AG21: Bateau_motorisé_capacité≤999tpl
U22: Bateau_motorisé_capacité≤649tplÉlectricité | V22: Bateau_motorisé_capacité≤649tpl | W22: Électricité | X22: kWh | Y22: 0.0513 | Z22: 0 | AA22: 0.0513 | AC22: 0.00856 | AD22: 0 | AE22: 0.00856 | AG22: Bateau_motorisé_capacité≤1499tpl
U23: Bateau_motorisé_capacité≤999tplGazole | V23: Bateau_motorisé_capacité≤999tpl | W23: Gazole | X23: l | Y23: 0.589 | Z23: 2.57 | AA23: 3.159 | AC23: 0.00534 | AD23: 0.0205 | AE23: 0.02584 | AG23: Bateau_motorisé_capacité≤2999tpl
U24: Bateau_motorisé_capacité≤999tplÉlectricité | V24: Bateau_motorisé_capacité≤999tpl | W24: Électricité | X24: kWh | Y24: 0.0513 | Z24: 0 | AA24: 0.0513 | AC24: 0.00573 | AD24: 0 | AE24: 0.00573 | AG24: Bateau_motorisé_capacité_sup_3000tpl
U25: Bateau_motorisé_capacité≤1499tplGazole | V25: Bateau_motorisé_capacité≤1499tpl | W25: Gazole | X25: l | Y25: 0.589 | Z25: 2.57 | AA25: 3.159 | AC25: 0.00615 | AD25: 0.0236 | AE25: 0.02975 | AG25: Pousseur_avec_barge_P≤879kW
U26: Bateau_motorisé_capacité≤1499tplÉlectricité | V26: Bateau_motorisé_capacité≤1499tpl | W26: Électricité | X26: kWh | Y26: 0.0513 | Z26: 0 | AA26: 0.0513 | AC26: 0.00367 | AD26: 0 | AE26: 0.00367 | AG26: Pousseur_avec_barge_Pmin_880kW
U27: Bateau_motorisé_capacité≤2999tplGazole | V27: Bateau_motorisé_capacité≤2999tpl | W27: Gazole | X27: l | Y27: 0.589 | Z27: 2.57 | AA27: 3.159 | AC27: 0.00401 | AD27: 0.0154 | AE27: 0.01941
U28: Bateau_motorisé_capacité_sup_3000tplGazole | V28: Bateau_motorisé_capacité_sup_3000tpl | W28: Gazole | X28: l | Y28: 0.589 | Z28: 2.57 | AA28: 3.159 | AC28: 0.00288 | AD28: 0.011 | AE28: 0.01388
U29: Pousseur_avec_barge_P≤879kWGazole | V29: Pousseur_avec_barge_P≤879kW | W29: Gazole | X29: l | Y29: 0.589 | Z29: 2.57 | AA29: 3.159 | AC29: 0.0011 | AD29: 0.0315 | AE29: 0.0326
U30: Pousseur_avec_barge_Pmin_880kWGazole | V30: Pousseur_avec_barge_Pmin_880kW | W30: Gazole | X30: l | Y30: 0.589 | Z30: 2.57 | AA30: 3.159 | AC30: 0.0003 | AD30: 0.0088 | AE30: 0.0091
AG32: Électricité | AH32: kWh
AG33: Hybride_électricité_gazole | AH33: l
AG34: Gazole | AH34: l
AG35: Essence | AH35: l
AG36: Gaz_de_pétrole_liquéfié_GPL | AH36: l
AG37: Gaz_naturel_comprimé_GNC | AH37: kg
AG38: Gaz_naturel_liquéfié_GNL | AH38: kg
AG39: Hydrogène | AH39: kg
AG42: Oui
AG43: Non
B46: RÉSULTATS
B48: Scope 1 : émissions directes de GES | J48: TTW (tank-to-wheel) = émissions "du réservoir à la roue" (combustion)
B49: Scope 2 : émissions indirectes de GES issues de l'électricité consommée | J49: WTT (well-to-tank) = émissions "du puits au réservoir" (production de l'énergie en amont)
B50: Scope 3 : autres émissions indirectes de GES - incluent les émissions amont de production des carburants et des véhicules ainsi que toutes les émissions du transport externalisé | J50: WTW (well-to-wheel) = émissions "du puits à la roue" (cycle de vie complet de l'énergie)
B52: Pour le transport sous température dirigée, les émissions totales de GES sont majorées de 15 % sous l'effet des fuites de fluides frigorigènes
F54: Prestations de transport internalisées | L54: Prestations de transport externalisées | N54: BILAN GLOBAL
F55: Scope 1 | H55: Scope 2 | I55: Scope 3
B56: Prestation de transport | C56: Type de bateau | D56: Type d'énergie | E56: Transport sous température dirigée? | F56: Activité totale de transport internalisée (tkm) | G56: Émissions directes (TTW) de GES (kgCO2e) | H56: Émissions indirectes (WTT) de GES issues de l'électricité consommée (kgCO2e) | I56: Rappel activité totale de transport internalisée (tkm) | J56: Émissions indirectes de GES issues de la fabrication des véhicules (kgCO2e) | K56: Émissions indirectes (WTT) de GES issues du carburant consommé (kgCO2e) | L56: Activité totale de transport externalisée (tkm) | M56: Émissions de GES (WTW + fabrication) (kgCO2e) | N56: Activité totale de transport (tkm) | O56: Émissions de GES (kgCO2e) | P56: Intensité des émissions de GES (kgCO2e/tkm)
B57: =B19 -> 0 | C57: =C19 -> 0 | D57: =D19 -> 0 | E57: =E19 -> 0 | F57: =G19*H19 -> 0 | G57: =IF(OR($C57=0,$D57=0),0,IF($J$17="Oui",$I19*VLOOKUP($C57&$D57,$U$19:$AE$44,6,FALSE),$F57*VLOOKUP($C57&$D57,$U$19:$AE$44,10,FALSE))) -> 0 | H57: =IF($D57<>"Électricité",0,IF($J$17="Oui",$I19*VLOOKUP($C57&$D57,$U$19:$AE$44,5,FALSE),$F57*VLOOKUP($C57&$D57,$U$19:$AE$44,9,FALSE))) -> 0 | I57: =F57 -> 0 | J57: =IF(OR($C57=0,$D57=0),0,$F57*VLOOKUP($C57&$D57,$U$19:$AE$44,8,FALSE)) -> 0 | K57: =IF(OR($C57=0,$D57=0),0,IF($D57="Électricité",0,IF($J$17="Oui",$I19*VLOOKUP($C57&$D57,$U$19:$AE$44,5,FALSE),$F57*VLOOKUP($C57&$D57,$U$19:$AE$44,9,FALSE)))) -> 0 | L57: =K19*L19 -> 0 | M57: =IF(OR($C57=0,$D57=0),0,IF($N$17="Oui",$M19*VLOOKUP($C57&$D57,$U$19:$AE$44,7,FALSE)+$L57*VLOOKUP(C57&D57,$U$19:$AE$44,8,FALSE),$L57*VLOOKUP($C57&$D57,$U$19:$AE$44,11,FALSE))) -> 0 | N57: =I57+L57 -> 0 | O57: =IF(E57="Non",G57+H57+J57+K57+M57,1.15*(G57+H57+J57+K57+M57)) -> 0 | P57: =O57/N57 -> 
B58: =B20 -> 0 | C58: =C20 -> 0 | D58: 0 | E58: 0 | F58: 0 | G58: =IF(OR($C58=0,$D58=0),0,IF($J$17="Oui",$I20*VLOOKUP($C58&$D58,$U$19:$AE$44,6,FALSE),$F58*VLOOKUP($C58&$D58,$U$19:$AE$44,10,FALSE))) -> 0 | H58: 0 | I58: =F58 -> 0 | J58: =IF(OR($C58=0,$D58=0),0,$F58*VLOOKUP($C58&$D58,$U$19:$AE$44,8,FALSE)) -> 0 | K58: =IF(OR($C58=0,$D58=0),0,IF($D58="Électricité",0,IF($J$17="Oui",$I20*VLOOKUP($C58&$D58,$U$19:$AE$44,5,FALSE),$F58*VLOOKUP($C58&$D58,$U$19:$AE$44,9,FALSE)))) -> 0 | L58: 0 | M58: =IF(OR($C58=0,$D58=0),0,IF($N$17="Oui",$M20*VLOOKUP($C58&$D58,$U$19:$AE$44,7,FALSE)+$L58*VLOOKUP(C58&D58,$U$19:$AE$44,8,FALSE),$L58*VLOOKUP($C58&$D58,$U$19:$AE$44,11,FALSE))) -> 0 | N58: =I58+L58 -> 0 | O58: =IF(E58="Non",G58+H58+J58+K58+M58,1.15*(G58+H58+J58+K58+M58)) -> 0 | P58: =O58/N58 -> 
B59: 0 | C59: 0 | D59: 0 | E59: 0 | F59: 0 | G59: 0 | H59: 0 | I59: 0 | J59: 0 | K59: 0 | L59: 0 | M59: 0 | N59: 0 | O59: 0
B60: 0 | C60: 0 | D60: 0 | E60: 0 | F60: 0 | G60: 0 | H60: 0 | I60: 0 | J60: 0 | K60: 0 | L60: 0 | M60: 0 | N60: 0 | O60: 0
B61: 0 | C61: 0 | D61: 0 | E61: 0 | F61: 0 | G61: 0 | H61: 0 | I61: 0 | J61: 0 | K61: 0 | L61: 0 | M61: 0 | N61: 0 | O61: 0
B62: 0 | C62: 0 | D62: 0 | E62: 0 | F62: 0 | G62: 0 | H62: 0 | I62: 0 | J62: 0 | K62: 0 | L62: 0 | M62: 0 | N62: 0 | O62: 0
B63: 0 | C63: 0 | D63: 0 | E63: 0 | F63: 0 | G63: 0 | H63: 0 | I63: 0 | J63: 0 | K63: 0 | L63: 0 | M63: 0 | N63: 0 | O63: 0
B64: 0 | C64: 0 | D64: 0 | E64: 0 | F64: 0 | G64: 0 | H64: 0 | I64: 0 | J64: 0 | K64: 0 | L64: 0 | M64: 0 | N64: 0 | O64: 0
B65: 0 | C65: 0 | D65: 0 | E65: 0 | F65: 0 | G65: 0 | H65: 0 | I65: 0 | J65: 0 | K65: 0 | L65: 0 | M65: 0 | N65: 0 | O65: 0
B66: 0 | C66: 0 | D66: 0 | E66: 0 | F66: 0 | G66: 0 | H66: 0 | I66: 0 | J66: 0 | K66: 0 | L66: 0 | M66: 0 | N66: 0 | O66: 0
B67: 0 | C67: 0 | D67: 0 | E67: 0 | F67: 0 | G67: 0 | H67: 0 | I67: 0 | J67: 0 | K67: 0 | L67: 0 | M67: 0 | N67: 0 | O67: 0
B68: 0 | C68: 0 | D68: 0 | E68: 0 | F68: 0 | G68: 0 | H68: 0 | I68: 0 | J68: 0 | K68: 0 | L68: 0 | M68: 0 | N68: 0 | O68: 0
B69: 0 | C69: 0 | D69: 0 | E69: 0 | F69: 0 | G69: 0 | H69: 0 | I69: 0 | J69: 0 | K69: 0 | L69: 0 | M69: 0 | N69: 0 | O69: 0
B70: 0 | C70: 0 | D70: 0 | E70: 0 | F70: 0 | G70: 0 | H70: 0 | I70: 0 | J70: 0 | K70: 0 | L70: 0 | M70: 0 | N70: 0 | O70: 0
B71: 0 | C71: 0 | D71: 0 | E71: 0 | F71: 0 | G71: 0 | H71: 0 | I71: 0 | J71: 0 | K71: 0 | L71: 0 | M71: 0 | N71: 0 | O71: 0
B72: 0 | C72: 0 | D72: 0 | E72: 0 | F72: 0 | G72: 0 | H72: 0 | I72: 0 | J72: 0 | K72: 0 | L72: 0 | M72: 0 | N72: 0 | O72: 0
B73: 0 | C73: 0 | D73: 0 | E73: 0 | F73: 0 | G73: 0 | H73: 0 | I73: 0 | J73: 0 | K73: 0 | L73: 0 | M73: 0 | N73: 0 | O73: 0
B74: =B36 -> 0 | C74: 0 | D74: 0 | E74: 0 | F74: 0 | G74: 0 | H74: 0 | I74: 0 | J74: 0 | K74: 0 | L74: 0 | M74: 0 | N74: 0 | O74: 0
B75: 0 | C75: 0 | D75: 0 | E75: 0 | F75: 0 | G75: 0 | H75: 0 | I75: 0 | J75: 0 | K75: 0 | L75: 0 | M75: 0 | N75: 0 | O75: 0
B76: 0 | C76: 0 | D76: 0 | E76: 0 | F76: 0 | G76: 0 | H76: 0 | I76: 0 | J76: 0 | K76: 0 | L76: 0 | M76: 0 | N76: 0 | O76: 0
B77: 0 | C77: 0 | D77: 0 | E77: 0 | F77: 0 | G77: 0 | H77: 0 | I77: 0 | J77: 0 | K77: 0 | L77: 0 | M77: 0 | N77: 0 | O77: 0
B78: 0 | C78: 0 | D78: 0 | E78: 0 | F78: 0 | G78: 0 | H78: 0 | I78: 0 | J78: 0 | K78: 0 | L78: 0 | M78: 0 | N78: 0 | O78: 0
B79: 0 | C79: 0 | D79: 0 | E79: 0 | F79: 0 | G79: 0 | H79: 0 | I79: 0 | J79: 0 | K79: 0 | L79: 0 | M79: 0 | N79: 0 | O79: 0
B80: 0 | C80: 0 | D80: 0 | E80: 0 | F80: 0 | G80: 0 | H80: 0 | I80: 0 | J80: 0 | K80: 0 | L80: 0 | M80: 0 | N80: 0 | O80: 0
B81: 0 | C81: 0 | D81: 0 | E81: 0 | F81: 0 | G81: 0 | H81: 0 | I81: 0 | J81: 0 | K81: 0 | L81: 0 | M81: 0 | N81: 0 | O81: 0
B82: 0 | C82: 0 | D82: 0 | E82: 0 | F82: 0 | G82: 0 | H82: 0 | I82: 0 | J82: 0 | K82: 0 | L82: 0 | M82: 0 | N82: 0 | O82: 0
B84: TOTAL | F84: =SUM(F57:F82) -> 0 | G84: 0 | H84: 0 | I84: 0 | J84: 0 | K84: 0 | L84: 0 | M84: 0 | N84: 0 | O84: 0 | P84: =O84/N84 -> 

Sheet 4_Fluvial tkm
D1: DÉTERMINATION DES ÉMISSIONS DE GAZ À EFFET DE SERRE GÉNÉRÉES PAR LES PRESTATIONS DE TRANSPORT FLUVIAL MOBILISÉES DANS LE MARCHÉ
B4: Raison sociale du titulaire | C4: ='1_Infos générales'!$C$9:$J$9 -> 0
B6: Période de référence | C6: ='1_Infos générales'!$C$15 -> Année
B8: DONNÉES A REMPLIR
K15: TOTAL (kgCO2e)
K16: =SUM(K19:K25) -> 0
C18: Ville et Pays de départ [optionnel] | D18: Ville et Pays d'arrivée [optionnel] | E18: Type de véhicule | F18: Type de carburant | G18: Facteur d'émission de GES * (kgCO2e/tkm) | H18: Distance parcourue lors de ce trajet (en km) | I18: Masse de marchandises transportées lors de ce trajet (en tonnes) | J18: Nombre de répétitions de ce trajet (avec la même masse transportée) [optionnel] | K18: Calcul ** des émissions de GES pour ce transport (en kgCO2e) | L18: Quels moyens de preuves pourriez-vous donner ? | V18: Type de véhicule | W18: Type de carburant | X18: Unité | Y18: Facteur d'émission (WTT) (kgCO2e/unité) | Z18: Facteur d'émission (TTW) (kgCO2e/unité) | AA18: Facteur d'émission (WTW) (kgCO2e/unité) | AB18: Intensité des émissions issues de la fabrication (kgCO2e/tkm) | AC18: Intensité des émissions WTT de GES (kgCO2e/tkm) | AD18: Intensité des émissions TTW de GES (kgCO2e/tkm) | AE18: Intensité des émissions de GES (WTW + fabrication) (kgCO2e/tkm)
G19: =_xlfn.XLOOKUP(Tableau_prestations_fltkm[[#This Row],[Type de véhicule]]&Tableau_prestations_fltkm[[#This Row],[Type de carburant]], $V$19:$V$30&$W$19:$W$30, $AE$19:$AE$30, 0, 0, ) -> 0 | K19: =IF(ISBLANK(J19),G19*H19*I19,G19*H19*I19*J19) -> 0 | V19: Bateau_motorisé_capacité≤399tpl | W19: Gazole | X19: l | Y19: 0.589 | Z19: 2.57 | AA19: =Y19+Z19 -> 3.159 | AC19: 0.00681 | AD19: 0.0262 | AE19: =AB19+AC19+AD19 -> 0.03301 | AH19: Bateau_motorisé_capacité≤399tpl | AI19: Bateau_motorisé_capacité≤649tpl | AJ19: Bateau_motorisé_capacité≤999tpl | AK19: Bateau_motorisé_capacité≤1499tpl | AL19: Bateau_motorisé_capacité≤2999tpl | AM19: Bateau_motorisé_capacité_sup_3000tpl | AN19: Pousseur_avec_barge_P≤879kW | AO19: Pousseur_avec_barge_Pmin_880kW
G20: =_xlfn.XLOOKUP(Tableau_prestations_fltkm[[#This Row],[Type de véhicule]]&Tableau_prestations_fltkm[[#This Row],[Type de carburant]], $V$19:$V$30&$W$19:$W$30, $AE$19:$AE$30, 0, 0, ) -> 0 | K20: 0 | V20: Bateau_motorisé_capacité≤399tpl | W20: Électricité | X20: kWh | Y20: 0.0513 | Z20: 0 | AA20: 0.0513 | AC20: 0.0138 | AD20: 0 | AE20: 0.0138 | AG20: Bateau_motorisé_capacité≤399tpl | AH20: Gazole | AI20: Gazole | AJ20: Gazole | AK20: Gazole | AL20: Gazole | AM20: Gazole | AN20: Gazole | AO20: Gazole
G21: =_xlfn.XLOOKUP(Tableau_prestations_fltkm[[#This Row],[Type de véhicule]]&Tableau_prestations_fltkm[[#This Row],[Type de carburant]], $V$19:$V$30&$W$19:$W$30, $AE$19:$AE$30, 0, 0, ) -> 0 | K21: 0 | V21: Bateau_motorisé_capacité≤649tpl | W21: Gazole | X21: l | Y21: 0.589 | Z21: 2.57 | AA21: 3.159 | AC21: 0.00741 | AD21: 0.0285 | AE21: 0.03591 | AG21: Bateau_motorisé_capacité≤649tpl | AH21: Électricité | AI21: Électricité | AJ21: Électricité | AK21: Électricité
G22: =_xlfn.XLOOKUP(Tableau_prestations_fltkm[[#This Row],[Type de véhicule]]&Tableau_prestations_fltkm[[#This Row],[Type de carburant]], $V$19:$V$30&$W$19:$W$30, $AE$19:$AE$30, 0, 0, ) -> 0 | K22: 0 | V22: Bateau_motorisé_capacité≤649tpl | W22: Électricité | X22: kWh | Y22: 0.0513 | Z22: 0 | AA22: 0.0513 | AC22: 0.00856 | AD22: 0 | AE22: 0.00856 | AG22: Bateau_motorisé_capacité≤999tpl
G23: =_xlfn.XLOOKUP(Tableau_prestations_fltkm[[#This Row],[Type de véhicule]]&Tableau_prestations_fltkm[[#This Row],[Type de carburant]], $V$19:$V$30&$W$19:$W$30, $AE$19:$AE$30, 0, 0, ) -> 0 | K23: 0 | V23: Bateau_motorisé_capacité≤999tpl | W23: Gazole | X23: l | Y23: 0.589 | Z23: 2.57 | AA23: 3.159 | AC23: 0.00534 | AD23: 0.0205 | AE23: 0.02584 | AG23: Bateau_motorisé_capacité≤1499tpl
G24: =_xlfn.XLOOKUP(Tableau_prestations_fltkm[[#This Row],[Type de véhicule]]&Tableau_prestations_fltkm[[#This Row],[Type de carburant]], $V$19:$V$30&$W$19:$W$30, $AE$19:$AE$30, 0, 0, ) -> 0 | K24: 0 | V24: Bateau_motorisé_capacité≤999tpl | W24: Électricité | X24: kWh | Y24: 0.0513 | Z24: 0 | AA24: 0.0513 | AC24: 0.00573 | AD24: 0 | AE24: 0.00573 | AG24: Bateau_motorisé_capacité≤2999tpl
G25: =_xlfn.XLOOKUP(Tableau_prestations_fltkm[[#This Row],[Type de véhicule]]&Tableau_prestations_fltkm[[#This Row],[Type de carburant]], $V$19:$V$30&$W$19:$W$30, $AE$19:$AE$30, 0, 0, ) -> 0 | K25: =IF(ISBLANK(J25),G25*H25*I25,G25*H25*I25*J25) -> 0 | V25: Bateau_motorisé_capacité≤1499tpl | W25: Gazole | X25: l | Y25: 0.589 | Z25: 2.57 | AA25: 3.159 | AC25: 0.00615 | AD25: 0.0236 | AE25: 0.02975 | AG25: Bateau_motorisé_capacité_sup_3000tpl
V26: Bateau_motorisé_capacité≤1499tpl | W26: Électricité | X26: kWh | Y26: 0.0513 | Z26: 0 | AA26: 0.0513 | AC26: 0.00367 | AD26: 0 | AE26: 0.00367 | AG26: Pousseur_avec_barge_P≤879kW
V27: Bateau_motorisé_capacité≤2999tpl | W27: Gazole | X27: l | Y27: 0.589 | Z27: 2.57 | AA27: 3.159 | AC27: 0.00401 | AD27: 0.0154 | AE27: 0.01941 | AG27: Pousseur_avec_barge_Pmin_880kW
V28: Bateau_motorisé_capacité_sup_3000tpl | W28: Gazole | X28: l | Y28: 0.589 | Z28: 2.57 | AA28: 3.159 | AC28: 0.00288 | AD28: 0.011 | AE28: 0.01388
V29: Pousseur_avec_barge_P≤879kW | W29: Gazole | X29: l | Y29: 0.589 | Z29: 2.57 | AA29: 3.159 | AC29: 0.0011 | AD29: 0.0315 | AE29: 0.0326
V30: Pousseur_avec_barge_Pmin_880kW | W30: Gazole | X30: l | Y30: 0.589 | Z30: 2.57 | AA30: 3.159 | AC30: 0.0003 | AD30: 0.0088 | AE30: 0.0091
AG33: Électricité | AH33: kWh
AG34: Hybride_électricité_gazole | AH34: l
AG35: Gazole | AH35: l
AG36: Essence | AH36: l
AG37: Gaz_de_pétrole_liquéfié_GPL | AH37: l
AG38: Gaz_naturel_comprimé_GNC | AH38: kg
AG39: Gaz_naturel_liquéfié_GNL | AH39: kg
AG40: Hydrogène | AH40: kg
AG43: Oui
AG44: Non

Sheet 4_Fluvial carburant
D1: DÉTERMINATION DES ÉMISSIONS DE GAZ À EFFET DE SERRE GÉNÉRÉES PAR LES PRESTATIONS DE TRANSPORT FLUVIAL MOBILISÉES DANS LE MARCHÉ
B5: Raison sociale du titulaire | C5: ='1_Infos générales'!$C$9:$J$9 -> 0
B7: Période de référence | C7: ='1_Infos générales'!$C$15 -> Année
B9: DONNÉES A REMPLIR
J15: TOTAL (kgCO2e)
J16: =SUM(J19:J26) -> 0
C18: Ville et Pays de départ [optionnel] | D18: Ville et Pays d'arrivée [optionnel] | E18: Type de bateau | F18: Type de carburant | G18: Facteur d'émission de GES * (kgCO2e/unité) | H18: Quantité de carburant consommé lors de ce trajet (en L ou kWh) | I18: Nombre de répétitions de ce trajet (avec la même consommation de carburant) [optionnel] | J18: Calcul ** des émissions de GES pour ce transport (en kgCO2e) | K18: Quels moyens de preuves pourriez-vous donner ? | V18: Type de véhicule | W18: Type de carburant | X18: Unité | Y18: Facteur d'émission (WTT) (kgCO2e/unité) | Z18: Facteur d'émission (TTW) (kgCO2e/unité) | AA18: Facteur d'émission (WTW) (kgCO2e/unité) | AB18: Intensité des émissions issues de la fabrication (kgCO2e/tkm) | AC18: Intensité des émissions WTT de GES (kgCO2e/tkm) | AD18: Intensité des émissions TTW de GES (kgCO2e/tkm) | AE18: Intensité des émissions de GES (WTW + fabrication) (kgCO2e/tkm) | AH18: Bateau_motorisé_capacité≤399tpl | AI18: Bateau_motorisé_capacité≤649tpl | AJ18: Bateau_motorisé_capacité≤999tpl | AK18: Bateau_motorisé_capacité≤1499tpl | AL18: Bateau_motorisé_capacité≤2999tpl | AM18: Bateau_motorisé_capacité_sup_3000tpl | AN18: Pousseur_avec_barge_P≤879kW | AO18: Pousseur_avec_barge_Pmin_880kW
G19: =_xlfn.SINGLE(_xlfn.XLOOKUP(Tableau_prestations_flc[[#This Row],[Type de bateau]]&Tableau_prestations_flc[[#This Row],[Type de carburant]], V19:V30&W19:W30, AA19:AA30, 0, 0, )) -> 0 | J19: =IF(ISBLANK(I19),G19*H19,G19*H19*I19) -> 0 | V19: Bateau_motorisé_capacité≤399tpl | W19: Gazole | X19: l | Y19: 0.589 | Z19: 2.57 | AA19: =Y19+Z19 -> 3.159 | AC19: 0.00681 | AD19: 0.0262 | AE19: =AB19+AC19+AD19 -> 0.03301 | AG19: Bateau_motorisé_capacité≤399tpl | AH19: Gazole | AI19: Gazole | AJ19: Gazole | AK19: Gazole | AL19: Gazole | AM19: Gazole | AN19: Gazole | AO19: Gazole
G20: =_xlfn.SINGLE(_xlfn.XLOOKUP(Tableau_prestations_flc[[#This Row],[Type de bateau]]&Tableau_prestations_flc[[#This Row],[Type de carburant]], V20:V31&W20:W31, AA20:AA31, 0, 0, )) -> 0 | J20: =IF(ISBLANK(I20),G20*H20,G20*H20*I20) -> 0 | V20: Bateau_motorisé_capacité≤399tpl | W20: Électricité | X20: kWh | Y20: 0.0513 | Z20: 0 | AA20: =Y20+Z20 -> 0.0513 | AC20: 0.0138 | AD20: 0 | AE20: =AB20+AC20+AD20 -> 0.0138 | AG20: Bateau_motorisé_capacité≤649tpl | AH20: Électricité | AI20: Électricité | AJ20: Électricité | AK20: Électricité
G21: =_xlfn.SINGLE(_xlfn.XLOOKUP(Tableau_prestations_flc[[#This Row],[Type de bateau]]&Tableau_prestations_flc[[#This Row],[Type de carburant]], V21:V32&W21:W32, AA21:AA32, 0, 0, )) -> 0 | J21: 0 | V21: Bateau_motorisé_capacité≤649tpl | W21: Gazole | X21: l | Y21: 0.589 | Z21: 2.57 | AA21: 3.159 | AC21: 0.00741 | AD21: 0.0285 | AE21: 0.03591 | AG21: Bateau_motorisé_capacité≤999tpl
G22: =_xlfn.SINGLE(_xlfn.XLOOKUP(Tableau_prestations_flc[[#This Row],[Type de bateau]]&Tableau_prestations_flc[[#This Row],[Type de carburant]], V22:V33&W22:W33, AA22:AA33, 0, 0, )) -> 0 | J22: 0 | V22: Bateau_motorisé_capacité≤649tpl | W22: Électricité | X22: kWh | Y22: 0.0513 | Z22: 0 | AA22: 0.0513 | AC22: 0.00856 | AD22: 0 | AE22: 0.00856 | AG22: Bateau_motorisé_capacité≤1499tpl
G23: =_xlfn.SINGLE(_xlfn.XLOOKUP(Tableau_prestations_flc[[#This Row],[Type de bateau]]&Tableau_prestations_flc[[#This Row],[Type de carburant]], V23:V34&W23:W34, AA23:AA34, 0, 0, )) -> 0 | J23: 0 | V23: Bateau_motorisé_capacité≤999tpl | W23: Gazole | X23: l | Y23: 0.589 | Z23: 2.57 | AA23: 3.159 | AC23: 0.00534 | AD23: 0.0205 | AE23: 0.02584 | AG23: Bateau_motorisé_capacité≤2999tpl
G24: =_xlfn.SINGLE(_xlfn.XLOOKUP(Tableau_prestations_flc[[#This Row],[Type de bateau]]&Tableau_prestations_flc[[#This Row],[Type de carburant]], V24:V35&W24:W35, AA24:AA35, 0, 0, )) -> 0 | J24: 0 | V24: Bateau_motorisé_capacité≤999tpl | W24: Électricité | X24: kWh | Y24: 0.0513 | Z24: 0 | AA24: 0.0513 | AC24: 0.00573 | AD24: 0 | AE24: 0.00573 | AG24: Bateau_motorisé_capacité_sup_3000tpl
G25: =_xlfn.SINGLE(_xlfn.XLOOKUP(Tableau_prestations_flc[[#This Row],[Type de bateau]]&Tableau_prestations_flc[[#This Row],[Type de carburant]], V32:V43&W32:W43, AA32:AA43, 0, 0, )) -> 0 | J25: 0 | V25: Bateau_motorisé_capacité≤1499tpl | W25: Gazole | X25: l | Y25: 0.589 | Z25: 2.57 | AA25: 3.159 | AC25: 0.00615 | AD25: 0.0236 | AE25: 0.02975 | AG25: Pousseur_avec_barge_P≤879kW
G26: =_xlfn.SINGLE(_xlfn.XLOOKUP(Tableau_prestations_flc[[#This Row],[Type de bateau]]&Tableau_prestations_flc[[#This Row],[Type de carburant]], V26:V37&W26:W37, AA26:AA37, 0, 0, )) -> 0 | J26: =IF(ISBLANK(I26),G26*H26,G26*H26*I26) -> 0 | V26: Bateau_motorisé_capacité≤1499tpl | W26: Électricité | X26: kWh | Y26: 0.0513 | Z26: 0 | AA26: 0.0513 | AC26: 0.00367 | AD26: 0 | AE26: 0.00367 | AG26: Pousseur_avec_barge_Pmin_880kW
V27: Bateau_motorisé_capacité≤2999tpl | W27: Gazole | X27: l | Y27: 0.589 | Z27: 2.57 | AA27: 3.159 | AC27: 0.00401 | AD27: 0.0154 | AE27: 0.01941
V28: Bateau_motorisé_capacité_sup_3000tpl | W28: Gazole | X28: l | Y28: 0.589 | Z28: 2.57 | AA28: 3.159 | AC28: 0.00288 | AD28: 0.011 | AE28: 0.01388
V29: Pousseur_avec_barge_P≤879kW | W29: Gazole | X29: l | Y29: 0.589 | Z29: 2.57 | AA29: 3.159 | AC29: 0.0011 | AD29: 0.0315 | AE29: 0.0326
V30: Pousseur_avec_barge_Pmin_880kW | W30: Gazole | X30: l | Y30: 0.589 | Z30: 2.57 | AA30: 3.159 | AC30: 0.0003 | AD30: 0.0088 | AE30: 0.0091
AG32: Électricité | AH32: kWh
AG33: Hybride_électricité_gazole | AH33: l
AG34: Gazole | AH34: l
AG35: Essence | AH35: l
AG36: Gaz_de_pétrole_liquéfié_GPL | AH36: l
AG37: Gaz_naturel_comprimé_GNC | AH37: kg
AG38: Gaz_naturel_liquéfié_GNL | AH38: kg
AG39: Hydrogène | AH39: kg
AG42: Oui
AG43: Non

Sheet 5_Maritime tkm
D1: DÉTERMINATION DES ÉMISSIONS DE GAZ À EFFET DE SERRE GÉNÉRÉES PAR LES PRESTATIONS DE TRANSPORT MARITIME MOBILISÉES DANS LE MARCHÉ
B4: Raison sociale du titulaire | C4: ='1_Infos générales'!$C$9:$J$9 -> 0
B6: Période de référence | C6: ='1_Infos générales'!$C$15 -> Année | W6: Type de véhicule | X6: Type de carburant | Y6: Unité | Z6: Facteur d'émission (WTT) (kgCO2e/unité) | AA6: Facteur d'émission (TTW) (kgCO2e/unité) | AB6: Facteur d'émission (WTW) (kgCO2e/unité) | AC6: Intensité des émissions issues de la fabrication (kgCO2e/tkm) | AD6: Intensité des émissions WTT de GES (kgCO2e/tkm) | AE6: Intensité des émissions TTW de GES (kgCO2e/tkm) | AF6: Intensité des émissions de GES (WTW + fabrication) (kgCO2e/tkm) | AI6: Pétrolier_capacité≤5000tpl | AJ6: Pétrolier_capacité≤60000tpl | AK6: Pétrolier_capacité≤200000tpl | AL6: Pétrolier_capacité_sup_200000tpl | AM6: Cargo_divers_capacité≤10000tpl | AN6: Cargo_divers_capacité≤20000tpl | AO6: Vraquier_capacité≤10000tpl | AP6: Vraquier_capacité≤100000tpl | AQ6: Vraquier_capacité_sup_100000tpl | AR6: Roulier_mixte_RoPax | AS6: Roulier_RoRo_Moyen | AT6: Roulier_RoRo_Camions_Remorques | AU6: Roulier_RoRo_Remorques_seules | AV6: Porte_conteneur_Panama_commercial | AW6: Porte_conteneur_Transatlantique | AX6: Porte_conteneur_Trans-Suez | AY6: Porte_conteneur_Transpacifique | AZ6: Porte_conteneur_autres_liaisons
W7: Pétrolier_capacité≤5000tpl | X7: Fioul_lourd_HFO | Y7: kg | Z7: 0.503 | AA7: 3.14 | AB7: =Z7+AA7 -> 3.643 | AD7: 0.0046 | AE7: 0.056 | AF7: =AC7+AD7+AE7 -> 0.0606 | AH7: Pétrolier_capacité≤5000tpl | AI7: Fioul_lourd_HFO | AJ7: Fioul_lourd_HFO | AK7: Fioul_lourd_HFO | AL7: Fioul_lourd_HFO | AM7: Fioul_lourd_HFO | AN7: Fioul_lourd_HFO | AO7: Fioul_lourd_HFO | AP7: Fioul_lourd_HFO | AQ7: Fioul_lourd_HFO | AR7: Fioul_lourd_HFO | AS7: Fioul_lourd_HFO | AT7: Fioul_lourd_HFO | AU7: Fioul_lourd_HFO | AV7: Fioul_lourd_HFO | AW7: Fioul_lourd_HFO | AX7: Fioul_lourd_HFO | AY7: Fioul_lourd_HFO | AZ7: Fioul_lourd_HFO
B8: DONNÉES A REMPLIR | W8: Pétrolier_capacité≤5000tpl | X8: Gazole_MGO | Y8: kg | Z8: 0.676 | AA8: 3.17 | AB8: =Z8+AA8 -> 3.846 | AD8: 0.0046 | AE8: 0.056 | AF8: =AC8+AD8+AE8 -> 0.0606 | AH8: Pétrolier_capacité≤60000tpl | AI8: Gazole_MGO | AJ8: Gazole_MGO | AK8: Gazole_MGO | AL8: Gazole_MGO | AM8: Gazole_MGO | AN8: Gazole_MGO | AO8: Gazole_MGO | AP8: Gazole_MGO | AQ8: Gazole_MGO | AR8: Gazole_MGO | AS8: Gazole_MGO | AT8: Gazole_MGO | AU8: Gazole_MGO | AV8: Gazole_MGO | AW8: Gazole_MGO | AX8: Gazole_MGO | AY8: Gazole_MGO | AZ8: Gazole_MGO
W9: Pétrolier_capacité≤60000tpl | X9: Fioul_lourd_HFO | Y9: kg | Z9: 0.503 | AA9: 3.14 | AB9: 3.643 | AD9: 0.00171 | AE9: 0.019 | AF9: 0.02071 | AH9: Pétrolier_capacité≤200000tpl | AL9: Gaz_naturel_liquéfié_GNL | AQ9: Gaz_naturel_liquéfié_GNL | AV9: Gaz_naturel_liquéfié_GNL | AW9: Gaz_naturel_liquéfié_GNL | AX9: Gaz_naturel_liquéfié_GNL | AY9: Gaz_naturel_liquéfié_GNL | AZ9: Gaz_naturel_liquéfié_GNL
W10: Pétrolier_capacité≤60000tpl | X10: Gazole_MGO | Y10: kg | Z10: 0.676 | AA10: 3.17 | AB10: 3.846 | AD10: 0.00171 | AE10: 0.019 | AF10: 0.02071 | AH10: Pétrolier_capacité_sup_200000tpl
W11: Pétrolier_capacité≤200000tpl | X11: Fioul_lourd_HFO | Y11: kg | Z11: 0.503 | AA11: 3.14 | AB11: 3.643 | AD11: =1.1*Z11 -> 0.5533 | AE11: 0 | AF11: 0.5533 | AH11: Cargo_divers_capacité≤10000tpl
AB12: =Z12+AA12 -> 0 | AF12: =AC12+AD12+AE12 -> 0 | AH12: Cargo_divers_capacité≤20000tpl
AB13: =Z13+AA13 -> 0 | AF13: =AC13+AD13+AE13 -> 0 | AH13: Vraquier_capacité≤10000tpl
AH14: Vraquier_capacité≤100000tpl
K15: TOTAL (kgCO2e) | AH15: Vraquier_capacité_sup_100000tpl
K16: =SUM(K19:K26) -> 0 | W16: Pétrolier_capacité≤200000tpl | X16: Gazole_MGO | Y16: kg | Z16: 0.676 | AA16: 3.17 | AB16: 3.846 | AD16: 0.303 | AE16: 0 | AF16: 0.303 | AH16: Roulier_mixte_RoPax
W17: Pétrolier_capacité_sup_200000tpl | X17: Fioul_lourd_HFO | Y17: kg | Z17: 0.503 | AA17: 3.14 | AB17: 3.643 | AD17: 0.000745 | AE17: 0.00809 | AF17: 0.008835 | AH17: Roulier_RoRo_Moyen
C18: Ville et Pays de départ [optionnel] | D18: Ville et Pays d'arrivée [optionnel] | E18: Type de véhicule | F18: Type de carburant | G18: Facteur d'émission de GES * (kgCO2e/tkm) | H18: Distance parcourue lors de ce trajet (en km) | I18: Masse de marchandises transportées lors de ce trajet (en tonnes) | J18: Nombre de répétitions de ce trajet (avec la même masse transportée) [optionnel] | K18: Calcul ** des émissions de GES pour ce transport (en kgCO2e) | L18: Quels moyens de preuves pourriez-vous donner ? | W18: Pétrolier_capacité_sup_200000tpl | X18: Gazole_MGO | Y18: kg | Z18: 0.676 | AA18: 3.17 | AB18: 3.846 | AD18: 0.000745 | AE18: 0.00809 | AF18: 0.008835 | AH18: Roulier_RoRo_Camions_Remorques
G19: =_xlfn.XLOOKUP(Tableau_prestations_mtkm[[#This Row],[Type de véhicule]]&Tableau_prestations_mtkm[[#This Row],[Type de carburant]], $W$7:$W$53&$X$7:$X$53, $AF$7:$AF$53, 0, 0, ) -> 0 | K19: =IF(ISBLANK(J19),G19*H19*I19,G19*H19*I19*J19) -> 0 | W19: Pétrolier_capacité_sup_200000tpl | X19: Gaz_naturel_liquéfié_GNL | Y19: kg | Z19: 0.697 | AA19: 2.58 | AB19: 3.277 | AD19: 0.0007 | AE19: 0.0019 | AF19: 0.0026 | AH19: Roulier_RoRo_Remorques_seules
G20: =_xlfn.XLOOKUP(Tableau_prestations_mtkm[[#This Row],[Type de véhicule]]&Tableau_prestations_mtkm[[#This Row],[Type de carburant]], $W$7:$W$53&$X$7:$X$53, $AF$7:$AF$53, 0, 0, ) -> 0 | K20: 0 | W20: Cargo_divers_capacité≤10000tpl | X20: Fioul_lourd_HFO | Y20: kg | Z20: 0.503 | AA20: 3.14 | AB20: 3.643 | AD20: 0.00169 | AE20: 0.0174 | AF20: 0.01909 | AH20: Porte_conteneur_Panama_commercial
G21: =_xlfn.XLOOKUP(Tableau_prestations_mtkm[[#This Row],[Type de véhicule]]&Tableau_prestations_mtkm[[#This Row],[Type de carburant]], $W$7:$W$53&$X$7:$X$53, $AF$7:$AF$53, 0, 0, ) -> 0 | K21: 0 | W21: Cargo_divers_capacité≤10000tpl | X21: Gazole_MGO | Y21: kg | Z21: 0.676 | AA21: 3.17 | AB21: 3.846 | AD21: 0.00169 | AE21: 0.0174 | AF21: 0.01909 | AH21: Porte_conteneur_Transatlantique
G22: =_xlfn.XLOOKUP(Tableau_prestations_mtkm[[#This Row],[Type de véhicule]]&Tableau_prestations_mtkm[[#This Row],[Type de carburant]], $W$7:$W$53&$X$7:$X$53, $AF$7:$AF$53, 0, 0, ) -> 0 | K22: 0 | W22: Cargo_divers_capacité≤20000tpl | X22: Fioul_lourd_HFO | Y22: kg | Z22: 0.503 | AA22: 3.14 | AB22: 3.643 | AD22: 0.00121 | AE22: 0.012 | AF22: 0.01321 | AH22: Porte_conteneur_Trans-Suez
G23: =_xlfn.XLOOKUP(Tableau_prestations_mtkm[[#This Row],[Type de véhicule]]&Tableau_prestations_mtkm[[#This Row],[Type de carburant]], $W$7:$W$53&$X$7:$X$53, $AF$7:$AF$53, 0, 0, ) -> 0 | K23: 0 | W23: Cargo_divers_capacité≤20000tpl | X23: Gazole_MGO | Y23: kg | Z23: 0.676 | AA23: 3.17 | AB23: 3.846 | AD23: 0.00121 | AE23: 0.012 | AF23: 0.01321 | AH23: Porte_conteneur_Transpacifique
G24: =_xlfn.XLOOKUP(Tableau_prestations_mtkm[[#This Row],[Type de véhicule]]&Tableau_prestations_mtkm[[#This Row],[Type de carburant]], $W$7:$W$53&$X$7:$X$53, $AF$7:$AF$53, 0, 0, ) -> 0 | K24: 0 | W24: Vraquier_capacité≤10000tpl | X24: Fioul_lourd_HFO | Y24: kg | Z24: 0.503 | AA24: 3.14 | AB24: 3.643 | AD24: 0.00254 | AE24: 0.03 | AF24: 0.03254 | AH24: Porte_conteneur_autres_liaisons
G25: =_xlfn.XLOOKUP(Tableau_prestations_mtkm[[#This Row],[Type de véhicule]]&Tableau_prestations_mtkm[[#This Row],[Type de carburant]], $W$7:$W$53&$X$7:$X$53, $AF$7:$AF$53, 0, 0, ) -> 0 | K25: =IF(ISBLANK(J25),G25*H25*I25,G25*H25*I25*J25) -> 0 | L25: =I25 * J24J19 * G25 * H25 ->  | W25: Vraquier_capacité≤10000tpl | X25: Gazole_MGO | Y25: kg | Z25: 0.676 | AA25: 3.17 | AB25: 3.846 | AD25: 0.00254 | AE25: 0.03 | AF25: 0.03254
G26: =_xlfn.XLOOKUP(Tableau_prestations_mtkm[[#This Row],[Type de véhicule]]&Tableau_prestations_mtkm[[#This Row],[Type de carburant]], $W$7:$W$53&$X$7:$X$53, $AF$7:$AF$53, 0, 0, ) -> 0 | K26: =IF(ISBLANK(J26),G26*H26*I26,G26*H26*I26*J26) -> 0 | L26: =I26 * J24J19 * G26 * H26 ->  | W26: Vraquier_capacité≤100000tpl | X26: Fioul_lourd_HFO | Y26: kg | Z26: 0.503 | AA26: 3.14 | AB26: 3.643 | AD26: 0.000508 | AE26: 0.0069 | AF26: 0.007408
W27: Vraquier_capacité≤100000tpl | X27: Gazole_MGO | Y27: kg | Z27: 0.676 | AA27: 3.17 | AB27: 3.846 | AD27: 0.000508 | AE27: 0.0069 | AF27: 0.007408
W28: Vraquier_capacité_sup_100000tpl | X28: Fioul_lourd_HFO | Y28: kg | Z28: 0.503 | AA28: 3.14 | AB28: 3.643 | AD28: 0.000203 | AE28: 0.0027 | AF28: 0.002903
W29: Vraquier_capacité_sup_100000tpl | X29: Gazole_MGO | Y29: kg | Z29: 0.676 | AA29: 3.17 | AB29: 3.846 | AD29: 0.000203 | AE29: 0.0027 | AF29: 0.002903
W30: Vraquier_capacité_sup_100000tpl | X30: Gaz_naturel_liquéfié_GNL | Y30: kg | Z30: 0.697 | AA30: 2.58 | AB30: 3.277 | AD30: 0.0007 | AE30: 0.002 | AF30: 0.0027
W31: Roulier_mixte_RoPax | X31: Fioul_lourd_HFO | Y31: kg | Z31: 0.503 | AA31: 3.14 | AB31: 3.643 | AD31: 0.0188 | AE31: 0.19 | AF31: 0.2088
W32: Roulier_mixte_RoPax | X32: Gazole_MGO | Y32: kg | Z32: 0.676 | AA32: 3.17 | AB32: 3.846 | AD32: 0.0188 | AE32: 0.19 | AF32: 0.2088
W33: Roulier_RoRo_Moyen | X33: Fioul_lourd_HFO | Y33: kg | Z33: 0.503 | AA33: 3.14 | AB33: 3.643 | AD33: 0.00385 | AE33: 0.0418 | AF33: 0.04565
W34: Roulier_RoRo_Moyen | X34: Gazole_MGO | Y34: kg | Z34: 0.676 | AA34: 3.17 | AB34: 3.846 | AD34: 0.00385 | AE34: 0.0418 | AF34: 0.04565
W35: Roulier_RoRo_Camions_Remorques | X35: Fioul_lourd_HFO | Y35: kg | Z35: 0.503 | AA35: 3.14 | AB35: 3.643 | AD35: 0.00863 | AE35: 0.0927 | AF35: 0.10133
W36: Roulier_RoRo_Camions_Remorques | X36: Gazole_MGO | Y36: kg | Z36: 0.676 | AA36: 3.17 | AB36: 3.846 | AD36: 0.00863 | AE36: 0.0927 | AF36: 0.10133
W37: Roulier_RoRo_Remorques_seules | X37: Fioul_lourd_HFO | Y37: kg | Z37: 0.503 | AA37: 3.14 | AB37: 3.643 | AD37: 0.0059 | AE37: 0.0628 | AF37: 0.0687
W38: Roulier_RoRo_Remorques_seules | X38: Gazole_MGO | Y38: kg | Z38: 0.676 | AA38: 3.17 | AB38: 3.846 | AD38: 0.0059 | AE38: 0.0628 | AF38: 0.0687
W39: Porte_conteneur_Panama_commercial | X39: Fioul_lourd_HFO | Y39: kg | Z39: 0.503 | AA39: 3.14 | AB39: 3.643 | AD39: 0.0007 | AE39: 0.0082 | AF39: 0.0089
W40: Porte_conteneur_Panama_commercial | X40: Gazole_MGO | Y40: kg | Z40: 0.676 | AA40: 3.17 | AB40: 3.846 | AD40: 0.0007 | AE40: 0.0082 | AF40: 0.0089
W41: Porte_conteneur_Panama_commercial | X41: Gaz_naturel_liquéfié_GNL | Y41: kg | Z41: 0.697 | AA41: 2.58 | AB41: 3.277 | AD41: 0.0007 | AE41: 0.0082 | AF41: 0.0089 | AH41: Fioul_lourd_HFO | AI41: kg
W42: Porte_conteneur_Transatlantique | X42: Fioul_lourd_HFO | Y42: kg | Z42: 0.503 | AA42: 3.14 | AB42: 3.643 | AD42: 0.00085 | AE42: 0.0098 | AF42: 0.01065 | AH42: Gazole_MGO | AI42: kg
W43: Porte_conteneur_Transatlantique | X43: Gazole_MGO | Y43: kg | Z43: 0.676 | AA43: 3.17 | AB43: 3.846 | AD43: 0.00085 | AE43: 0.0098 | AF43: 0.01065 | AH43: Gaz_naturel_liquéfié_GNL | AI43: kg
W44: Porte_conteneur_Transatlantique | X44: Gaz_naturel_liquéfié_GNL | Y44: kg | Z44: 0.697 | AA44: 2.58 | AB44: 3.277 | AD44: 0.00085 | AE44: 0.0098 | AF44: 0.01065
W45: Porte_conteneur_Trans-Suez | X45: Fioul_lourd_HFO | Y45: kg | Z45: 0.503 | AA45: 3.14 | AB45: 3.643 | AD45: 0.00058 | AE45: 0.0068 | AF45: 0.00738
W46: Porte_conteneur_Trans-Suez | X46: Gazole_MGO | Y46: kg | Z46: 0.676 | AA46: 3.17 | AB46: 3.846 | AD46: 0.00058 | AE46: 0.0068 | AF46: 0.00738
W47: Porte_conteneur_Trans-Suez | X47: Gaz_naturel_liquéfié_GNL | Y47: kg | Z47: 0.697 | AA47: 2.58 | AB47: 3.277 | AD47: 0.00058 | AE47: 0.0068 | AF47: 0.00738
W48: Porte_conteneur_Transpacifique | X48: Fioul_lourd_HFO | Y48: kg | Z48: 0.503 | AA48: 3.14 | AB48: 3.643 | AD48: 0.00058 | AE48: 0.0067 | AF48: 0.00728
W49: Porte_conteneur_Transpacifique | X49: Gazole_MGO | Y49: kg | Z49: 0.676 | AA49: 3.17 | AB49: 3.846 | AD49: 0.00058 | AE49: 0.0067 | AF49: 0.00728
W50: Porte_conteneur_Transpacifique | X50: Gaz_naturel_liquéfié_GNL | Y50: kg | Z50: 0.697 | AA50: 2.58 | AB50: 3.277 | AD50: 0.00058 | AE50: 0.0067 | AF50: 0.00728
W51: Porte_conteneur_autres_liaisons | X51: Fioul_lourd_HFO | Y51: kg | Z51: 0.503 | AA51: 3.14 | AB51: 3.643 | AD51: 0.00076 | AE51: 0.0088 | AF51: 0.00956
W52: Porte_conteneur_autres_liaisons | X52: Gazole_MGO | Y52: kg | Z52: 0.676 | AA52: 3.17 | AB52: 3.846 | AD52: 0.00076 | AE52: 0.0088 | AF52: 0.00956 | AH52: Oui
W53: Porte_conteneur_autres_liaisons | X53: Gaz_naturel_liquéfié_GNL | Y53: kg | Z53: 0.609 | AA53: 2.49 | AB53: 3.099 | AD53: 0.00076 | AE53: 0.0088 | AF53: 0.00956 | AH53: Non
W76: Type de véhicule | X76: Type de carburant | Y76: Unité | Z76: Facteur d'émission (WTT) (kgCO2e/unité) | AA76: Facteur d'émission (TTW) (kgCO2e/unité) | AB76: Facteur d'émission (WTW) (kgCO2e/unité) | AC76: Intensité des émissions issues de la fabrication (kgCO2e/tkm) | AD76: Intensité des émissions WTT de GES (kgCO2e/tkm) | AE76: Intensité des émissions TTW de GES (kgCO2e/tkm) | AF76: Intensité des émissions de GES (WTW + fabrication) (kgCO2e/tkm) | AI76: Pétrolier_capacité≤5000tpl | AJ76: Pétrolier_capacité≤60000tpl | AK76: Pétrolier_capacité≤200000tpl | AL76: Pétrolier_capacité_sup_200000tpl | AM76: Cargo_divers_capacité≤10000tpl | AN76: Cargo_divers_capacité≤20000tpl | AO76: Vraquier_capacité≤10000tpl | AP76: Vraquier_capacité≤100000tpl | AQ76: Vraquier_capacité_sup_100000tpl | AR76: Roulier_mixte_RoPax | AS76: Roulier_RoRo_Moyen | AT76: Roulier_RoRo_Camions_Remorques | AU76: Roulier_RoRo_Remorques_seules | AV76: Porte_conteneur_Panama_commercial | AW76: Porte_conteneur_Transatlantique | AX76: Porte_conteneur_Trans-Suez | AY76: Porte_conteneur_Transpacifique | AZ76: Porte_conteneur_autres_liaisons
V77: =W77&X77 -> Pétrolier_capacité≤5000tplFioul_lourd_HFO | W77: Pétrolier_capacité≤5000tpl | X77: Fioul_lourd_HFO | Y77: kg | Z77: 0.503 | AA77: 3.14 | AB77: =Z77+AA77 -> 3.643 | AD77: 0.0046 | AE77: 0.056 | AF77: =AC77+AD77+AE77 -> 0.0606 | AH77: Pétrolier_capacité≤5000tpl | AI77: Fioul_lourd_HFO | AJ77: Fioul_lourd_HFO | AK77: Fioul_lourd_HFO | AL77: Fioul_lourd_HFO | AM77: Fioul_lourd_HFO | AN77: Fioul_lourd_HFO | AO77: Fioul_lourd_HFO | AP77: Fioul_lourd_HFO | AQ77: Fioul_lourd_HFO | AR77: Fioul_lourd_HFO | AS77: Fioul_lourd_HFO | AT77: Fioul_lourd_HFO | AU77: Fioul_lourd_HFO | AV77: Fioul_lourd_HFO | AW77: Fioul_lourd_HFO | AX77: Fioul_lourd_HFO | AY77: Fioul_lourd_HFO | AZ77: Fioul_lourd_HFO
V78: =W78&X78 -> Pétrolier_capacité≤5000tplGazole_MGO | W78: Pétrolier_capacité≤5000tpl | X78: Gazole_MGO | Y78: kg | Z78: 0.676 | AA78: 3.17 | AB78: =Z78+AA78 -> 3.846 | AD78: 0.0046 | AE78: 0.056 | AF78: =AC78+AD78+AE78 -> 0.0606 | AH78: Pétrolier_capacité≤60000tpl | AI78: Gazole_MGO | AJ78: Gazole_MGO | AK78: Gazole_MGO | AL78: Gazole_MGO | AM78: Gazole_MGO | AN78: Gazole_MGO | AO78: Gazole_MGO | AP78: Gazole_MGO | AQ78: Gazole_MGO | AR78: Gazole_MGO | AS78: Gazole_MGO | AT78: Gazole_MGO | AU78: Gazole_MGO | AV78: Gazole_MGO | AW78: Gazole_MGO | AX78: Gazole_MGO | AY78: Gazole_MGO | AZ78: Gazole_MGO
V79: Pétrolier_capacité≤60000tplFioul_lourd_HFO | W79: Pétrolier_capacité≤60000tpl | X79: Fioul_lourd_HFO | Y79: kg | Z79: 0.503 | AA79: 3.14 | AB79: 3.643 | AD79: 0.00171 | AE79: 0.019 | AF79: 0.02071 | AH79: Pétrolier_capacité≤200000tpl | AL79: Gaz_naturel_liquéfié_GNL | AQ79: Gaz_naturel_liquéfié_GNL | AV79: Gaz_naturel_liquéfié_GNL | AW79: Gaz_naturel_liquéfié_GNL | AX79: Gaz_naturel_liquéfié_GNL | AY79: Gaz_naturel_liquéfié_GNL | AZ79: Gaz_naturel_liquéfié_GNL
V80: Pétrolier_capacité≤60000tplGazole_MGO | W80: Pétrolier_capacité≤60000tpl | X80: Gazole_MGO | Y80: kg | Z80: 0.676 | AA80: 3.17 | AB80: 3.846 | AD80: 0.00171 | AE80: 0.019 | AF80: 0.02071 | AH80: Pétrolier_capacité_sup_200000tpl
V81: Pétrolier_capacité≤200000tplFioul_lourd_HFO | W81: Pétrolier_capacité≤200000tpl | X81: Fioul_lourd_HFO | Y81: kg | Z81: 0.503 | AA81: 3.14 | AB81: 3.643 | AD81: =1.1*Z81 -> 0.5533 | AE81: 0 | AF81: 0.5533 | AH81: Cargo_divers_capacité≤10000tpl
V82: Pétrolier_capacité≤200000tplGazole_MGO | W82: Pétrolier_capacité≤200000tpl | X82: Gazole_MGO | Y82: kg | Z82: 0.676 | AA82: 3.17 | AB82: 3.846 | AD82: 0.303 | AE82: 0 | AF82: 0.303 | AH82: Cargo_divers_capacité≤20000tpl
V83: Pétrolier_capacité_sup_200000tplFioul_lourd_HFO | W83: Pétrolier_capacité_sup_200000tpl | X83: Fioul_lourd_HFO | Y83: kg | Z83: 0.503 | AA83: 3.14 | AB83: 3.643 | AD83: 0.000745 | AE83: 0.00809 | AF83: 0.008835 | AH83: Vraquier_capacité≤10000tpl
V84: Pétrolier_capacité_sup_200000tplGazole_MGO | W84: Pétrolier_capacité_sup_200000tpl | X84: Gazole_MGO | Y84: kg | Z84: 0.676 | AA84: 3.17 | AB84: 3.846 | AD84: 0.000745 | AE84: 0.00809 | AF84: 0.008835 | AH84: Vraquier_capacité≤100000tpl
V85: Pétrolier_capacité_sup_200000tplGaz_naturel_liquéfié_GNL | W85: Pétrolier_capacité_sup_200000tpl | X85: Gaz_naturel_liquéfié_GNL | Y85: kg | Z85: 0.697 | AA85: 2.58 | AB85: 3.277 | AD85: 0.0007 | AE85: 0.0019 | AF85: 0.0026 | AH85: Vraquier_capacité_sup_100000tpl
V86: Cargo_divers_capacité≤10000tplFioul_lourd_HFO | W86: Cargo_divers_capacité≤10000tpl | X86: Fioul_lourd_HFO | Y86: kg | Z86: 0.503 | AA86: 3.14 | AB86: 3.643 | AD86: 0.00169 | AE86: 0.0174 | AF86: 0.01909 | AH86: Roulier_mixte_RoPax
V87: Cargo_divers_capacité≤10000tplGazole_MGO | W87: Cargo_divers_capacité≤10000tpl | X87: Gazole_MGO | Y87: kg | Z87: 0.676 | AA87: 3.17 | AB87: 3.846 | AD87: 0.00169 | AE87: 0.0174 | AF87: 0.01909 | AH87: Roulier_RoRo_Moyen
V88: Cargo_divers_capacité≤20000tplFioul_lourd_HFO | W88: Cargo_divers_capacité≤20000tpl | X88: Fioul_lourd_HFO | Y88: kg | Z88: 0.503 | AA88: 3.14 | AB88: 3.643 | AD88: 0.00121 | AE88: 0.012 | AF88: 0.01321 | AH88: Roulier_RoRo_Camions_Remorques
V89: Cargo_divers_capacité≤20000tplGazole_MGO | W89: Cargo_divers_capacité≤20000tpl | X89: Gazole_MGO | Y89: kg | Z89: 0.676 | AA89: 3.17 | AB89: 3.846 | AD89: 0.00121 | AE89: 0.012 | AF89: 0.01321 | AH89: Roulier_RoRo_Remorques_seules
V90: Vraquier_capacité≤10000tplFioul_lourd_HFO | W90: Vraquier_capacité≤10000tpl | X90: Fioul_lourd_HFO | Y90: kg | Z90: 0.503 | AA90: 3.14 | AB90: 3.643 | AD90: 0.00254 | AE90: 0.03 | AF90: 0.03254 | AH90: Porte_conteneur_Panama_commercial
V91: Vraquier_capacité≤10000tplGazole_MGO | W91: Vraquier_capacité≤10000tpl | X91: Gazole_MGO | Y91: kg | Z91: 0.676 | AA91: 3.17 | AB91: 3.846 | AD91: 0.00254 | AE91: 0.03 | AF91: 0.03254 | AH91: Porte_conteneur_Transatlantique
V92: Vraquier_capacité≤100000tplFioul_lourd_HFO | W92: Vraquier_capacité≤100000tpl | X92: Fioul_lourd_HFO | Y92: kg | Z92: 0.503 | AA92: 3.14 | AB92: 3.643 | AD92: 0.000508 | AE92: 0.0069 | AF92: 0.007408 | AH92: Porte_conteneur_Trans-Suez
V93: Vraquier_capacité≤100000tplGazole_MGO | W93: Vraquier_capacité≤100000tpl | X93: Gazole_MGO | Y93: kg | Z93: 0.676 | AA93: 3.17 | AB93: 3.846 | AD93: 0.000508 | AE93: 0.0069 | AF93: 0.007408 | AH93: Porte_conteneur_Transpacifique
V94: Vraquier_capacité_sup_100000tplFioul_lourd_HFO | W94: Vraquier_capacité_sup_100000tpl | X94: Fioul_lourd_HFO | Y94: kg | Z94: 0.503 | AA94: 3.14 | AB94: 3.643 | AD94: 0.000203 | AE94: 0.0027 | AF94: 0.002903 | AH94: Porte_conteneur_autres_liaisons
V95: Vraquier_capacité_sup_100000tplGazole_MGO | W95: Vraquier_capacité_sup_100000tpl | X95: Gazole_MGO | Y95: kg | Z95: 0.676 | AA95: 3.17 | AB95: 3.846 | AD95: 0.000203 | AE95: 0.0027 | AF95: 0.002903
V96: Vraquier_capacité_sup_100000tplGaz_naturel_liquéfié_GNL | W96: Vraquier_capacité_sup_100000tpl | X96: Gaz_naturel_liquéfié_GNL | Y96: kg | Z96: 0.697 | AA96: 2.58 | AB96: 3.277 | AD96: 0.0007 | AE96: 0.002 | AF96: 0.0027
V97: Roulier_mixte_RoPaxFioul_lourd_HFO | W97: Roulier_mixte_RoPax | X97: Fioul_lourd_HFO | Y97: kg | Z97: 0.503 | AA97: 3.14 | AB97: 3.643 | AD97: 0.0188 | AE97: 0.19 | AF97: 0.2088
V98: Roulier_mixte_RoPaxGazole_MGO | W98: Roulier_mixte_RoPax | X98: Gazole_MGO | Y98: kg | Z98: 0.676 | AA98: 3.17 | AB98: 3.846 | AD98: 0.0188 | AE98: 0.19 | AF98: 0.2088
V99: Roulier_RoRo_MoyenFioul_lourd_HFO | W99: Roulier_RoRo_Moyen | X99: Fioul_lourd_HFO | Y99: kg | Z99: 0.503 | AA99: 3.14 | AB99: 3.643 | AD99: 0.00385 | AE99: 0.0418 | AF99: 0.04565
V100: Roulier_RoRo_MoyenGazole_MGO | W100: Roulier_RoRo_Moyen | X100: Gazole_MGO | Y100: kg | Z100: 0.676 | AA100: 3.17 | AB100: 3.846 | AD100: 0.00385 | AE100: 0.0418 | AF100: 0.04565
V101: Roulier_RoRo_Camions_RemorquesFioul_lourd_HFO | W101: Roulier_RoRo_Camions_Remorques | X101: Fioul_lourd_HFO | Y101: kg | Z101: 0.503 | AA101: 3.14 | AB101: 3.643 | AD101: 0.00863 | AE101: 0.0927 | AF101: 0.10133
V102: Roulier_RoRo_Camions_RemorquesGazole_MGO | W102: Roulier_RoRo_Camions_Remorques | X102: Gazole_MGO | Y102: kg | Z102: 0.676 | AA102: 3.17 | AB102: 3.846 | AD102: 0.00863 | AE102: 0.0927 | AF102: 0.10133
V103: Roulier_RoRo_Remorques_seulesFioul_lourd_HFO | W103: Roulier_RoRo_Remorques_seules | X103: Fioul_lourd_HFO | Y103: kg | Z103: 0.503 | AA103: 3.14 | AB103: 3.643 | AD103: 0.0059 | AE103: 0.0628 | AF103: 0.0687
V104: Roulier_RoRo_Remorques_seulesGazole_MGO | W104: Roulier_RoRo_Remorques_seules | X104: Gazole_MGO | Y104: kg | Z104: 0.676 | AA104: 3.17 | AB104: 3.846 | AD104: 0.0059 | AE104: 0.0628 | AF104: 0.0687
V105: Porte_conteneur_Panama_commercialFioul_lourd_HFO | W105: Porte_conteneur_Panama_commercial | X105: Fioul_lourd_HFO | Y105: kg | Z105: 0.503 | AA105: 3.14 | AB105: 3.643 | AD105: 0.0007 | AE105: 0.0082 | AF105: 0.0089
V106: Porte_conteneur_Panama_commercialGazole_MGO | W106: Porte_conteneur_Panama_commercial | X106: Gazole_MGO | Y106: kg | Z106: 0.676 | AA106: 3.17 | AB106: 3.846 | AD106: 0.0007 | AE106: 0.0082 | AF106: 0.0089
V107: Porte_conteneur_Panama_commercialGaz_naturel_liquéfié_GNL | W107: Porte_conteneur_Panama_commercial | X107: Gaz_naturel_liquéfié_GNL | Y107: kg | Z107: 0.697 | AA107: 2.58 | AB107: 3.277 | AD107: 0.0007 | AE107: 0.0082 | AF107: 0.0089 | AH107: Fioul_lourd_HFO | AI107: kg
V108: Porte_conteneur_TransatlantiqueFioul_lourd_HFO | W108: Porte_conteneur_Transatlantique | X108: Fioul_lourd_HFO | Y108: kg | Z108: 0.503 | AA108: 3.14 | AB108: 3.643 | AD108: 0.00085 | AE108: 0.0098 | AF108: 0.01065 | AH108: Gazole_MGO | AI108: kg
V109: Porte_conteneur_TransatlantiqueGazole_MGO | W109: Porte_conteneur_Transatlantique | X109: Gazole_MGO | Y109: kg | Z109: 0.676 | AA109: 3.17 | AB109: 3.846 | AD109: 0.00085 | AE109: 0.0098 | AF109: 0.01065 | AH109: Gaz_naturel_liquéfié_GNL | AI109: kg
V110: Porte_conteneur_TransatlantiqueGaz_naturel_liquéfié_GNL | W110: Porte_conteneur_Transatlantique | X110: Gaz_naturel_liquéfié_GNL | Y110: kg | Z110: 0.697 | AA110: 2.58 | AB110: 3.277 | AD110: 0.00085 | AE110: 0.0098 | AF110: 0.01065
V111: Porte_conteneur_Trans-SuezFioul_lourd_HFO | W111: Porte_conteneur_Trans-Suez | X111: Fioul_lourd_HFO | Y111: kg | Z111: 0.503 | AA111: 3.14 | AB111: 3.643 | AD111: 0.00058 | AE111: 0.0068 | AF111: 0.00738
V112: Porte_conteneur_Trans-SuezGazole_MGO | W112: Porte_conteneur_Trans-Suez | X112: Gazole_MGO | Y112: kg | Z112: 0.676 | AA112: 3.17 | AB112: 3.846 | AD112: 0.00058 | AE112: 0.0068 | AF112: 0.00738
V113: Porte_conteneur_Trans-SuezGaz_naturel_liquéfié_GNL | W113: Porte_conteneur_Trans-Suez | X113: Gaz_naturel_liquéfié_GNL | Y113: kg | Z113: 0.697 | AA113: 2.58 | AB113: 3.277 | AD113: 0.00058 | AE113: 0.0068 | AF113: 0.00738
V114: Porte_conteneur_TranspacifiqueFioul_lourd_HFO | W114: Porte_conteneur_Transpacifique | X114: Fioul_lourd_HFO | Y114: kg | Z114: 0.503 | AA114: 3.14 | AB114: 3.643 | AD114: 0.00058 | AE114: 0.0067 | AF114: 0.00728
V115: Porte_conteneur_TranspacifiqueGazole_MGO | W115: Porte_conteneur_Transpacifique | X115: Gazole_MGO | Y115: kg | Z115: 0.676 | AA115: 3.17 | AB115: 3.846 | AD115: 0.00058 | AE115: 0.0067 | AF115: 0.00728
V116: Porte_conteneur_TranspacifiqueGaz_naturel_liquéfié_GNL | W116: Porte_conteneur_Transpacifique | X116: Gaz_naturel_liquéfié_GNL | Y116: kg | Z116: 0.697 | AA116: 2.58 | AB116: 3.277 | AD116: 0.00058 | AE116: 0.0067 | AF116: 0.00728
V117: Porte_conteneur_autres_liaisonsFioul_lourd_HFO | W117: Porte_conteneur_autres_liaisons | X117: Fioul_lourd_HFO | Y117: kg | Z117: 0.503 | AA117: 3.14 | AB117: 3.643 | AD117: 0.00076 | AE117: 0.0088 | AF117: 0.00956
V118: Porte_conteneur_autres_liaisonsGazole_MGO | W118: Porte_conteneur_autres_liaisons | X118: Gazole_MGO | Y118: kg | Z118: 0.676 | AA118: 3.17 | AB118: 3.846 | AD118: 0.00076 | AE118: 0.0088 | AF118: 0.00956 | AH118: Oui
V119: Porte_conteneur_autres_liaisonsGaz_naturel_liquéfié_GNL | W119: Porte_conteneur_autres_liaisons | X119: Gaz_naturel_liquéfié_GNL | Y119: kg | Z119: 0.609 | AA119: 2.49 | AB119: 3.099 | AD119: 0.00076 | AE119: 0.0088 | AF119: 0.00956 | AH119: Non

Sheet 5_Maritime carburant
D1: DÉTERMINATION DES ÉMISSIONS DE GAZ À EFFET DE SERRE GÉNÉRÉES PAR LES PRESTATIONS DE TRANSPORT MARITIME MOBILISÉES DANS LE MARCHÉ
B4: Raison sociale du titulaire | C4: ='1_Infos générales'!$C$9:$J$9 -> 0
B6: Période de référence | C6: ='1_Infos générales'!$C$15 -> Année | V6: Type de véhicule | W6: Type de carburant | X6: Unité | Y6: Facteur d'émission (WTT) (kgCO2e/unité) | Z6: Facteur d'émission (TTW) (kgCO2e/unité) | AA6: Facteur d'émission (WTW) (kgCO2e/unité) | AB6: Intensité des émissions issues de la fabrication (kgCO2e/tkm) | AC6: Intensité des émissions WTT de GES (kgCO2e/tkm) | AD6: Intensité des émissions TTW de GES (kgCO2e/tkm) | AE6: Intensité des émissions de GES (WTW + fabrication) (kgCO2e/tkm) | AH6: Pétrolier_capacité≤5000tpl | AI6: Pétrolier_capacité≤60000tpl | AJ6: Pétrolier_capacité≤200000tpl | AK6: Pétrolier_capacité_sup_200000tpl | AL6: Cargo_divers_capacité≤10000tpl | AM6: Cargo_divers_capacité≤20000tpl | AN6: Vraquier_capacité≤10000tpl | AO6: Vraquier_capacité≤100000tpl | AP6: Vraquier_capacité_sup_100000tpl | AQ6: Roulier_mixte_RoPax | AR6: Roulier_RoRo_Moyen | AS6: Roulier_RoRo_Camions_Remorques | AT6: Roulier_RoRo_Remorques_seules | AU6: Porte_conteneur_Panama_commercial | AV6: Porte_conteneur_Transatlantique | AW6: Porte_conteneur_Trans-Suez | AX6: Porte_conteneur_Transpacifique | AY6: Porte_conteneur_autres_liaisons
V7: Pétrolier_capacité≤5000tpl | W7: Fioul_lourd_HFO | X7: kg | Y7: 0.503 | Z7: 3.14 | AA7: =Y7+Z7 -> 3.643 | AC7: 0.0046 | AD7: 0.056 | AE7: =AB7+AC7+AD7 -> 0.0606 | AG7: Pétrolier_capacité≤5000tpl | AH7: Fioul_lourd_HFO | AI7: Fioul_lourd_HFO | AJ7: Fioul_lourd_HFO | AK7: Fioul_lourd_HFO | AL7: Fioul_lourd_HFO | AM7: Fioul_lourd_HFO | AN7: Fioul_lourd_HFO | AO7: Fioul_lourd_HFO | AP7: Fioul_lourd_HFO | AQ7: Fioul_lourd_HFO | AR7: Fioul_lourd_HFO | AS7: Fioul_lourd_HFO | AT7: Fioul_lourd_HFO | AU7: Fioul_lourd_HFO | AV7: Fioul_lourd_HFO | AW7: Fioul_lourd_HFO | AX7: Fioul_lourd_HFO | AY7: Fioul_lourd_HFO
B8: DONNÉES A REMPLIR | V8: Pétrolier_capacité≤5000tpl | W8: Gazole_MGO | X8: kg | Y8: 0.676 | Z8: 3.17 | AA8: =Y8+Z8 -> 3.846 | AC8: 0.0046 | AD8: 0.056 | AE8: =AB8+AC8+AD8 -> 0.0606 | AG8: Pétrolier_capacité≤60000tpl | AH8: Gazole_MGO | AI8: Gazole_MGO | AJ8: Gazole_MGO | AK8: Gazole_MGO | AL8: Gazole_MGO | AM8: Gazole_MGO | AN8: Gazole_MGO | AO8: Gazole_MGO | AP8: Gazole_MGO | AQ8: Gazole_MGO | AR8: Gazole_MGO | AS8: Gazole_MGO | AT8: Gazole_MGO | AU8: Gazole_MGO | AV8: Gazole_MGO | AW8: Gazole_MGO | AX8: Gazole_MGO | AY8: Gazole_MGO
V9: Pétrolier_capacité≤60000tpl | W9: Fioul_lourd_HFO | X9: kg | Y9: 0.503 | Z9: 3.14 | AA9: 3.643 | AC9: 0.00171 | AD9: 0.019 | AE9: 0.02071 | AG9: Pétrolier_capacité≤200000tpl | AK9: Gaz_naturel_liquéfié_GNL | AP9: Gaz_naturel_liquéfié_GNL | AU9: Gaz_naturel_liquéfié_GNL | AV9: Gaz_naturel_liquéfié_GNL | AW9: Gaz_naturel_liquéfié_GNL | AX9: Gaz_naturel_liquéfié_GNL | AY9: Gaz_naturel_liquéfié_GNL
V10: Pétrolier_capacité≤60000tpl | W10: Gazole_MGO | X10: kg | Y10: 0.676 | Z10: 3.17 | AA10: 3.846 | AC10: 0.00171 | AD10: 0.019 | AE10: 0.02071 | AG10: Pétrolier_capacité_sup_200000tpl
V11: Pétrolier_capacité≤200000tpl | W11: Fioul_lourd_HFO | X11: kg | Y11: 0.503 | Z11: 3.14 | AA11: 3.643 | AC11: =1.1*Y11 -> 0.5533 | AD11: 0 | AE11: 0.5533 | AG11: Cargo_divers_capacité≤10000tpl
AA12: =Y12+Z12 -> 0 | AE12: =AB12+AC12+AD12 -> 0 | AG12: Cargo_divers_capacité≤20000tpl
AA13: =Y13+Z13 -> 0 | AE13: =AB13+AC13+AD13 -> 0 | AG13: Vraquier_capacité≤10000tpl
AG14: Vraquier_capacité≤100000tpl
J15: TOTAL (kgCO2e) | AG15: Vraquier_capacité_sup_100000tpl
J16: =SUM(J19:J25) -> 0 | V16: Pétrolier_capacité≤200000tpl | W16: Gazole_MGO | X16: kg | Y16: 0.676 | Z16: 3.17 | AA16: 3.846 | AC16: 0.303 | AD16: 0 | AE16: 0.303 | AG16: Roulier_mixte_RoPax
V17: Pétrolier_capacité_sup_200000tpl | W17: Fioul_lourd_HFO | X17: kg | Y17: 0.503 | Z17: 3.14 | AA17: 3.643 | AC17: 0.000745 | AD17: 0.00809 | AE17: 0.008835 | AG17: Roulier_RoRo_Moyen
C18: Ville et Pays de départ [optionnel] | D18: Ville et Pays d'arrivée [optionnel] | E18: Type de véhicule | F18: Type de carburant | G18: Facteur d'émission de GES * (kgCO2e/tkm) | H18: Quantité de carburant consommé lors de ce trajet (en kg) | I18: Nombre de répétitions de ce trajet (avec la même consommation de carburant) [optionnel] | J18: Calcul ** des émissions de GES pour ce transport (en kgCO2e) | K18: Quels moyens de preuves pourriez-vous donner ? | V18: Pétrolier_capacité_sup_200000tpl | W18: Gazole_MGO | X18: kg | Y18: 0.676 | Z18: 3.17 | AA18: 3.846 | AC18: 0.000745 | AD18: 0.00809 | AE18: 0.008835 | AG18: Roulier_RoRo_Camions_Remorques
G19: =_xlfn.XLOOKUP(Tableau_prestations_mc[[#This Row],[Type de véhicule]]&Tableau_prestations_mc[[#This Row],[Type de carburant]], $V$7:$V$53&$W$7:$W$53, $AA$7:$AA$53, 0, 0, ) -> 0 | J19: =IF(ISBLANK(I19),G19*H19,G19*H19*I19) -> 0 | V19: Pétrolier_capacité_sup_200000tpl | W19: Gaz_naturel_liquéfié_GNL | X19: kg | Y19: 0.697 | Z19: 2.58 | AA19: 3.277 | AC19: 0.0007 | AD19: 0.0019 | AE19: 0.0026 | AG19: Roulier_RoRo_Remorques_seules
G20: =_xlfn.XLOOKUP(Tableau_prestations_mc[[#This Row],[Type de véhicule]]&Tableau_prestations_mc[[#This Row],[Type de carburant]], $V$7:$V$53&$W$7:$W$53, $AA$7:$AA$53, 0, 0, ) -> 0 | J20: =IF(ISBLANK(I20),G20*H20,G20*H20*I20) -> 0 | V20: Cargo_divers_capacité≤10000tpl | W20: Fioul_lourd_HFO | X20: kg | Y20: 0.503 | Z20: 3.14 | AA20: 3.643 | AC20: 0.00169 | AD20: 0.0174 | AE20: 0.01909 | AG20: Porte_conteneur_Panama_commercial
G21: =_xlfn.XLOOKUP(Tableau_prestations_mc[[#This Row],[Type de véhicule]]&Tableau_prestations_mc[[#This Row],[Type de carburant]], $V$7:$V$53&$W$7:$W$53, $AA$7:$AA$53, 0, 0, ) -> 0 | J21: 0 | V21: Cargo_divers_capacité≤10000tpl | W21: Gazole_MGO | X21: kg | Y21: 0.676 | Z21: 3.17 | AA21: 3.846 | AC21: 0.00169 | AD21: 0.0174 | AE21: 0.01909 | AG21: Porte_conteneur_Transatlantique
G22: =_xlfn.XLOOKUP(Tableau_prestations_mc[[#This Row],[Type de véhicule]]&Tableau_prestations_mc[[#This Row],[Type de carburant]], $V$7:$V$53&$W$7:$W$53, $AA$7:$AA$53, 0, 0, ) -> 0 | J22: 0 | V22: Cargo_divers_capacité≤20000tpl | W22: Fioul_lourd_HFO | X22: kg | Y22: 0.503 | Z22: 3.14 | AA22: 3.643 | AC22: 0.00121 | AD22: 0.012 | AE22: 0.01321 | AG22: Porte_conteneur_Trans-Suez
G23: =_xlfn.XLOOKUP(Tableau_prestations_mc[[#This Row],[Type de véhicule]]&Tableau_prestations_mc[[#This Row],[Type de carburant]], $V$7:$V$53&$W$7:$W$53, $AA$7:$AA$53, 0, 0, ) -> 0 | J23: 0 | V23: Cargo_divers_capacité≤20000tpl | W23: Gazole_MGO | X23: kg | Y23: 0.676 | Z23: 3.17 | AA23: 3.846 | AC23: 0.00121 | AD23: 0.012 | AE23: 0.01321 | AG23: Porte_conteneur_Transpacifique
G24: =_xlfn.XLOOKUP(Tableau_prestations_mc[[#This Row],[Type de véhicule]]&Tableau_prestations_mc[[#This Row],[Type de carburant]], $V$7:$V$53&$W$7:$W$53, $AA$7:$AA$53, 0, 0, ) -> 0 | J24: =IF(ISBLANK(I24),G24*H24,G24*H24*I24) -> 0 | K24: =#REF! * J24J19 * G24 * H24 ->  | V24: Vraquier_capacité≤10000tpl | W24: Fioul_lourd_HFO | X24: kg | Y24: 0.503 | Z24: 3.14 | AA24: 3.643 | AC24: 0.00254 | AD24: 0.03 | AE24: 0.03254 | AG24: Porte_conteneur_autres_liaisons
G25: =_xlfn.XLOOKUP(Tableau_prestations_mc[[#This Row],[Type de véhicule]]&Tableau_prestations_mc[[#This Row],[Type de carburant]], $V$7:$V$53&$W$7:$W$53, $AA$7:$AA$53, 0, 0, ) -> 0 | J25: =IF(ISBLANK(I25),G25*H25,G25*H25*I25) -> 0 | K25: =#REF! * J24J19 * G25 * H25 ->  | V25: Vraquier_capacité≤10000tpl | W25: Gazole_MGO | X25: kg | Y25: 0.676 | Z25: 3.17 | AA25: 3.846 | AC25: 0.00254 | AD25: 0.03 | AE25: 0.03254
V26: Vraquier_capacité≤100000tpl | W26: Fioul_lourd_HFO | X26: kg | Y26: 0.503 | Z26: 3.14 | AA26: 3.643 | AC26: 0.000508 | AD26: 0.0069 | AE26: 0.007408
V27: Vraquier_capacité≤100000tpl | W27: Gazole_MGO | X27: kg | Y27: 0.676 | Z27: 3.17 | AA27: 3.846 | AC27: 0.000508 | AD27: 0.0069 | AE27: 0.007408
V28: Vraquier_capacité_sup_100000tpl | W28: Fioul_lourd_HFO | X28: kg | Y28: 0.503 | Z28: 3.14 | AA28: 3.643 | AC28: 0.000203 | AD28: 0.0027 | AE28: 0.002903
V29: Vraquier_capacité_sup_100000tpl | W29: Gazole_MGO | X29: kg | Y29: 0.676 | Z29: 3.17 | AA29: 3.846 | AC29: 0.000203 | AD29: 0.0027 | AE29: 0.002903
V30: Vraquier_capacité_sup_100000tpl | W30: Gaz_naturel_liquéfié_GNL | X30: kg | Y30: 0.697 | Z30: 2.58 | AA30: 3.277 | AC30: 0.0007 | AD30: 0.002 | AE30: 0.0027
V31: Roulier_mixte_RoPax | W31: Fioul_lourd_HFO | X31: kg | Y31: 0.503 | Z31: 3.14 | AA31: 3.643 | AC31: 0.0188 | AD31: 0.19 | AE31: 0.2088
V32: Roulier_mixte_RoPax | W32: Gazole_MGO | X32: kg | Y32: 0.676 | Z32: 3.17 | AA32: 3.846 | AC32: 0.0188 | AD32: 0.19 | AE32: 0.2088
V33: Roulier_RoRo_Moyen | W33: Fioul_lourd_HFO | X33: kg | Y33: 0.503 | Z33: 3.14 | AA33: 3.643 | AC33: 0.00385 | AD33: 0.0418 | AE33: 0.04565
V34: Roulier_RoRo_Moyen | W34: Gazole_MGO | X34: kg | Y34: 0.676 | Z34: 3.17 | AA34: 3.846 | AC34: 0.00385 | AD34: 0.0418 | AE34: 0.04565
V35: Roulier_RoRo_Camions_Remorques | W35: Fioul_lourd_HFO | X35: kg | Y35: 0.503 | Z35: 3.14 | AA35: 3.643 | AC35: 0.00863 | AD35: 0.0927 | AE35: 0.10133
V36: Roulier_RoRo_Camions_Remorques | W36: Gazole_MGO | X36: kg | Y36: 0.676 | Z36: 3.17 | AA36: 3.846 | AC36: 0.00863 | AD36: 0.0927 | AE36: 0.10133
V37: Roulier_RoRo_Remorques_seules | W37: Fioul_lourd_HFO | X37: kg | Y37: 0.503 | Z37: 3.14 | AA37: 3.643 | AC37: 0.0059 | AD37: 0.0628 | AE37: 0.0687
V38: Roulier_RoRo_Remorques_seules | W38: Gazole_MGO | X38: kg | Y38: 0.676 | Z38: 3.17 | AA38: 3.846 | AC38: 0.0059 | AD38: 0.0628 | AE38: 0.0687
V39: Porte_conteneur_Panama_commercial | W39: Fioul_lourd_HFO | X39: kg | Y39: 0.503 | Z39: 3.14 | AA39: 3.643 | AC39: 0.0007 | AD39: 0.0082 | AE39: 0.0089
V40: Porte_conteneur_Panama_commercial | W40: Gazole_MGO | X40: kg | Y40: 0.676 | Z40: 3.17 | AA40: 3.846 | AC40: 0.0007 | AD40: 0.0082 | AE40: 0.0089
V41: Porte_conteneur_Panama_commercial | W41: Gaz_naturel_liquéfié_GNL | X41: kg | Y41: 0.697 | Z41: 2.58 | AA41: 3.277 | AC41: 0.0007 | AD41: 0.0082 | AE41: 0.0089 | AG41: Fioul_lourd_HFO | AH41: kg
V42: Porte_conteneur_Transatlantique | W42: Fioul_lourd_HFO | X42: kg | Y42: 0.503 | Z42: 3.14 | AA42: 3.643 | AC42: 0.00085 | AD42: 0.0098 | AE42: 0.01065 | AG42: Gazole_MGO | AH42: kg
V43: Porte_conteneur_Transatlantique | W43: Gazole_MGO | X43: kg | Y43: 0.676 | Z43: 3.17 | AA43: 3.846 | AC43: 0.00085 | AD43: 0.0098 | AE43: 0.01065 | AG43: Gaz_naturel_liquéfié_GNL | AH43: kg
V44: Porte_conteneur_Transatlantique | W44: Gaz_naturel_liquéfié_GNL | X44: kg | Y44: 0.697 | Z44: 2.58 | AA44: 3.277 | AC44: 0.00085 | AD44: 0.0098 | AE44: 0.01065
V45: Porte_conteneur_Trans-Suez | W45: Fioul_lourd_HFO | X45: kg | Y45: 0.503 | Z45: 3.14 | AA45: 3.643 | AC45: 0.00058 | AD45: 0.0068 | AE45: 0.00738
V46: Porte_conteneur_Trans-Suez | W46: Gazole_MGO | X46: kg | Y46: 0.676 | Z46: 3.17 | AA46: 3.846 | AC46: 0.00058 | AD46: 0.0068 | AE46: 0.00738
V47: Porte_conteneur_Trans-Suez | W47: Gaz_naturel_liquéfié_GNL | X47: kg | Y47: 0.697 | Z47: 2.58 | AA47: 3.277 | AC47: 0.00058 | AD47: 0.0068 | AE47: 0.00738
V48: Porte_conteneur_Transpacifique | W48: Fioul_lourd_HFO | X48: kg | Y48: 0.503 | Z48: 3.14 | AA48: 3.643 | AC48: 0.00058 | AD48: 0.0067 | AE48: 0.00728
V49: Porte_conteneur_Transpacifique | W49: Gazole_MGO | X49: kg | Y49: 0.676 | Z49: 3.17 | AA49: 3.846 | AC49: 0.00058 | AD49: 0.0067 | AE49: 0.00728
V50: Porte_conteneur_Transpacifique | W50: Gaz_naturel_liquéfié_GNL | X50: kg | Y50: 0.697 | Z50: 2.58 | AA50: 3.277 | AC50: 0.00058 | AD50: 0.0067 | AE50: 0.00728
V51: Porte_conteneur_autres_liaisons | W51: Fioul_lourd_HFO | X51: kg | Y51: 0.503 | Z51: 3.14 | AA51: 3.643 | AC51: 0.00076 | AD51: 0.0088 | AE51: 0.00956
V52: Porte_conteneur_autres_liaisons | W52: Gazole_MGO | X52: kg | Y52: 0.676 | Z52: 3.17 | AA52: 3.846 | AC52: 0.00076 | AD52: 0.0088 | AE52: 0.00956 | AG52: Oui
V53: Porte_conteneur_autres_liaisons | W53: Gaz_naturel_liquéfié_GNL | X53: kg | Y53: 0.609 | Z53: 2.49 | AA53: 3.099 | AC53: 0.00076 | AD53: 0.0088 | AE53: 0.00956 | AG53: Non

Sheet 5_Maritime (hidden)
B2: DÉTERMINATION DES ÉMISSIONS DE GAZ À EFFET DE SERRE GÉNÉRÉES PAR LES PRESTATIONS DE TRANSPORT MARITIME MOBILISÉES DANS LE MARCHÉ
B4: Raison sociale du titulaire | C4: ='1_Infos générales'!$C$9:$J$9 -> 0
B6: Période de référence | C6: ='1_Infos générales'!$C$15 -> Année
B8: DONNÉES D'ENTRÉE
B10: Le titulaire est invité à renseigner les cellules jaunes ci-dessous | I10: Les données primaires sont les données mesurées ou obtenues par calcul à la suite de mesure
B11: Les cellules bleues sont automatiquement complétées et ne peuvent être manuellement modifiées | I11: En cellule J17, le titulaire indique s'il dispose de données primaires de suivi des consommations de la flotte détenue pour les prestations de transport internalisées
I12: → Si oui, le titulaire renseigne les consommations en colonne I ; si non, il laisse la colonne I vide et les calculs seront réalisés selon des modélisations par défaut
B13: Le titulaire peut regrouper à sa convenance les prestations de transport répondant à des caractéristiques communes (ex. externalisé, par type de navire et carburant commun) | I13: En cellule N17, le titulaire indique s'il dispose de données primaires de suivi des consommations des flottes mobilisées pour les prestations externalisées
B14: Le nombre de lignes disponibles dans le tableau ci-dessous est limité sans possibilité d'ajouter de ligne supplémentaire ; | I14: → Si oui, le titulaire renseigne les consommations en colonne M ; si non, il laisse la colonne M vide et les calculs seront réalisés selon des modélisations par défaut
B15: le titulaire est donc invité à réduire aux maximum le nombre de lignes utilisées
F16: Prestations de transport internalisées (réalisées avec des véhicules appartenant au titulaire) | K16: Prestations de transport externalisées
B17: La colonne B sert à donner un intitulé (nom, numéro, etc. au choix du titulaire) à la ligne de données renseignée | F17: Informations sur l'activité de la flotte interne pour les prestations de transport visées | I17: Données primaires? | J17: Oui | K17: Informations sur l'activité externalisée pour les prestations de transport visées | M17: Données primaires? | N17: Oui
B18: Prestation de transport (agrégation possible à la convenance du titulaire - ex. une ligne regroupant tous les transports en porte-conteneur trans-Suez sur l'année, au gazole, à température dirigée) | C18: Type de navire | D18: Type de carburant | E18: Transport sous température dirigée? | F18: (Réservé) | G18: Distance totale cumulée (km) | H18: Masse totale de marchandises transportées (t) | I18: Quantité totale d'énergie consommée | J18: Unité | K18: Distance totale cumulée (km) | L18: Masse totale de marchandises transportées (t) | M18: Quantité totale d'énergie consommée | N18: Unité | V18: Type de véhicule | W18: Type de carburant | X18: Unité | Y18: Facteur d'émission (WTT) (kgCO2e/unité) | Z18: Facteur d'émission (TTW) (kgCO2e/unité) | AA18: Facteur d'émission (WTW) (kgCO2e/unité) | AB18: Intensité des émissions issues de la fabrication (kgCO2e/tkm) | AC18: Intensité des émissions WTT de GES (kgCO2e/tkm) | AD18: Intensité des émissions TTW de GES (kgCO2e/tkm) | AE18: Intensité des émissions de GES (WTW + fabrication) (kgCO2e/tkm) | AH18: Pétrolier_capacité≤5000tpl | AI18: Pétrolier_capacité≤60000tpl | AJ18: Pétrolier_capacité≤200000tpl | AK18: Pétrolier_capacité_sup_200000tpl | AL18: Cargo_divers_capacité≤10000tpl | AM18: Cargo_divers_capacité≤20000tpl | AN18: Vraquier_capacité≤10000tpl | AO18: Vraquier_capacité≤100000tpl | AP18: Vraquier_capacité_sup_100000tpl | AQ18: Roulier_mixte_RoPax | AR18: Roulier_RoRo_Moyen | AS18: Roulier_RoRo_Camions_Remorques | AT18: Roulier_RoRo_Remorques_seules | AU18: Porte_conteneur_Panama_commercial | AV18: Porte_conteneur_Transatlantique | AW18: Porte_conteneur_Trans-Suez | AX18: Porte_conteneur_Transpacifique | AY18: Porte_conteneur_autres_liaisons
J19: =IF(ISBLANK(D19),"",VLOOKUP($D19,$AG$49:$AH$51,2,FALSE)) ->  | N19: =J19 ->  | U19: =V19&W19 -> Pétrolier_capacité≤5000tplFioul_lourd_HFO | V19: Pétrolier_capacité≤5000tpl | W19: Fioul_lourd_HFO | X19: kg | Y19: 0.503 | Z19: 3.14 | AA19: =Y19+Z19 -> 3.643 | AC19: 0.0046 | AD19: 0.056 | AE19: =AB19+AC19+AD19 -> 0.0606 | AG19: Pétrolier_capacité≤5000tpl | AH19: Fioul_lourd_HFO | AI19: Fioul_lourd_HFO | AJ19: Fioul_lourd_HFO | AK19: Fioul_lourd_HFO | AL19: Fioul_lourd_HFO | AM19: Fioul_lourd_HFO | AN19: Fioul_lourd_HFO | AO19: Fioul_lourd_HFO | AP19: Fioul_lourd_HFO | AQ19: Fioul_lourd_HFO | AR19: Fioul_lourd_HFO | AS19: Fioul_lourd_HFO | AT19: Fioul_lourd_HFO | AU19: Fioul_lourd_HFO | AV19: Fioul_lourd_HFO | AW19: Fioul_lourd_HFO | AX19: Fioul_lourd_HFO | AY19: Fioul_lourd_HFO
J20: =IF(ISBLANK(D20),"",VLOOKUP($D20,$AG$49:$AH$51,2,FALSE)) ->  | N20: =J20 ->  | U20: =V20&W20 -> Pétrolier_capacité≤5000tplGazole_MGO | V20: Pétrolier_capacité≤5000tpl | W20: Gazole_MGO | X20: kg | Y20: 0.676 | Z20: 3.17 | AA20: =Y20+Z20 -> 3.846 | AC20: 0.0046 | AD20: 0.056 | AE20: =AB20+AC20+AD20 -> 0.0606 | AG20: Pétrolier_capacité≤60000tpl | AH20: Gazole_MGO | AI20: Gazole_MGO | AJ20: Gazole_MGO | AK20: Gazole_MGO | AL20: Gazole_MGO | AM20: Gazole_MGO | AN20: Gazole_MGO | AO20: Gazole_MGO | AP20: Gazole_MGO | AQ20: Gazole_MGO | AR20: Gazole_MGO | AS20: Gazole_MGO | AT20: Gazole_MGO | AU20: Gazole_MGO | AV20: Gazole_MGO | AW20: Gazole_MGO | AX20: Gazole_MGO | AY20: Gazole_MGO
U21: Pétrolier_capacité≤60000tplFioul_lourd_HFO | V21: Pétrolier_capacité≤60000tpl | W21: Fioul_lourd_HFO | X21: kg | Y21: 0.503 | Z21: 3.14 | AA21: 3.643 | AC21: 0.00171 | AD21: 0.019 | AE21: 0.02071 | AG21: Pétrolier_capacité≤200000tpl | AK21: Gaz_naturel_liquéfié_GNL | AP21: Gaz_naturel_liquéfié_GNL | AU21: Gaz_naturel_liquéfié_GNL | AV21: Gaz_naturel_liquéfié_GNL | AW21: Gaz_naturel_liquéfié_GNL | AX21: Gaz_naturel_liquéfié_GNL | AY21: Gaz_naturel_liquéfié_GNL
U22: Pétrolier_capacité≤60000tplGazole_MGO | V22: Pétrolier_capacité≤60000tpl | W22: Gazole_MGO | X22: kg | Y22: 0.676 | Z22: 3.17 | AA22: 3.846 | AC22: 0.00171 | AD22: 0.019 | AE22: =AB22+AC22+AD22 -> 0.02071 | AG22: Pétrolier_capacité_sup_200000tpl
U23: Pétrolier_capacité≤200000tplFioul_lourd_HFO | V23: Pétrolier_capacité≤200000tpl | W23: Fioul_lourd_HFO | X23: kg | Y23: 0.503 | Z23: 3.14 | AA23: 3.643 | AC23: =1.1*Y23 -> 0.5533 | AD23: 0 | AE23: 0.5533 | AG23: Cargo_divers_capacité≤10000tpl
U24: Pétrolier_capacité≤200000tplGazole_MGO | V24: Pétrolier_capacité≤200000tpl | W24: Gazole_MGO | X24: kg | Y24: 0.676 | Z24: 3.17 | AA24: 3.846 | AC24: 0.303 | AD24: 0 | AE24: 0.303 | AG24: Cargo_divers_capacité≤20000tpl
U25: Pétrolier_capacité_sup_200000tplFioul_lourd_HFO | V25: Pétrolier_capacité_sup_200000tpl | W25: Fioul_lourd_HFO | X25: kg | Y25: 0.503 | Z25: 3.14 | AA25: 3.643 | AC25: 0.000745 | AD25: 0.00809 | AE25: 0.008835 | AG25: Vraquier_capacité≤10000tpl
U26: Pétrolier_capacité_sup_200000tplGazole_MGO | V26: Pétrolier_capacité_sup_200000tpl | W26: Gazole_MGO | X26: kg | Y26: 0.676 | Z26: 3.17 | AA26: 3.846 | AC26: 0.000745 | AD26: 0.00809 | AE26: 0.008835 | AG26: Vraquier_capacité≤100000tpl
U27: Pétrolier_capacité_sup_200000tplGaz_naturel_liquéfié_GNL | V27: Pétrolier_capacité_sup_200000tpl | W27: Gaz_naturel_liquéfié_GNL | X27: kg | Y27: 0.697 | Z27: 2.58 | AA27: 3.277 | AC27: 0.0007 | AD27: 0.0019 | AE27: 0.0026 | AG27: Vraquier_capacité_sup_100000tpl
U28: Cargo_divers_capacité≤10000tplFioul_lourd_HFO | V28: Cargo_divers_capacité≤10000tpl | W28: Fioul_lourd_HFO | X28: kg | Y28: 0.503 | Z28: 3.14 | AA28: 3.643 | AC28: 0.00169 | AD28: 0.0174 | AE28: 0.01909 | AG28: Roulier_mixte_RoPax
U29: Cargo_divers_capacité≤10000tplGazole_MGO | V29: Cargo_divers_capacité≤10000tpl | W29: Gazole_MGO | X29: kg | Y29: 0.676 | Z29: 3.17 | AA29: 3.846 | AC29: 0.00169 | AD29: 0.0174 | AE29: 0.01909 | AG29: Roulier_RoRo_Moyen
U30: Cargo_divers_capacité≤20000tplFioul_lourd_HFO | V30: Cargo_divers_capacité≤20000tpl | W30: Fioul_lourd_HFO | X30: kg | Y30: 0.503 | Z30: 3.14 | AA30: 3.643 | AC30: 0.00121 | AD30: 0.012 | AE30: =AB30+AC30+AD30 -> 0.01321 | AG30: Roulier_RoRo_Camions_Remorques
U31: Cargo_divers_capacité≤20000tplGazole_MGO | V31: Cargo_divers_capacité≤20000tpl | W31: Gazole_MGO | X31: kg | Y31: 0.676 | Z31: 3.17 | AA31: 3.846 | AC31: 0.00121 | AD31: 0.012 | AE31: 0.01321 | AG31: Roulier_RoRo_Remorques_seules
U32: Vraquier_capacité≤10000tplFioul_lourd_HFO | V32: Vraquier_capacité≤10000tpl | W32: Fioul_lourd_HFO | X32: kg | Y32: 0.503 | Z32: 3.14 | AA32: 3.643 | AC32: 0.00254 | AD32: 0.03 | AE32: 0.03254 | AG32: Porte_conteneur_Panama_commercial
N33: =J33 ->  | U33: Vraquier_capacité≤10000tplGazole_MGO | V33: Vraquier_capacité≤10000tpl | W33: Gazole_MGO | X33: kg | Y33: 0.676 | Z33: 3.17 | AA33: 3.846 | AC33: 0.00254 | AD33: 0.03 | AE33: =AB33+AC33+AD33 -> 0.03254 | AG33: Porte_conteneur_Transatlantique
U34: Vraquier_capacité≤100000tplFioul_lourd_HFO | V34: Vraquier_capacité≤100000tpl | W34: Fioul_lourd_HFO | X34: kg | Y34: 0.503 | Z34: 3.14 | AA34: 3.643 | AC34: 0.000508 | AD34: 0.0069 | AE34: 0.007408 | AG34: Porte_conteneur_Trans-Suez
U35: Vraquier_capacité≤100000tplGazole_MGO | V35: Vraquier_capacité≤100000tpl | W35: Gazole_MGO | X35: kg | Y35: 0.676 | Z35: 3.17 | AA35: 3.846 | AC35: 0.000508 | AD35: 0.0069 | AE35: =AB35+AC35+AD35 -> 0.007408 | AG35: Porte_conteneur_Transpacifique
U36: Vraquier_capacité_sup_100000tplFioul_lourd_HFO | V36: Vraquier_capacité_sup_100000tpl | W36: Fioul_lourd_HFO | X36: kg | Y36: 0.503 | Z36: 3.14 | AA36: 3.643 | AC36: 0.000203 | AD36: 0.0027 | AE36: 0.002903 | AG36: Porte_conteneur_autres_liaisons
U37: Vraquier_capacité_sup_100000tplGazole_MGO | V37: Vraquier_capacité_sup_100000tpl | W37: Gazole_MGO | X37: kg | Y37: 0.676 | Z37: 3.17 | AA37: 3.846 | AC37: 0.000203 | AD37: 0.0027 | AE37: =AB37+AC37+AD37 -> 0.002903
U38: Vraquier_capacité_sup_100000tplGaz_naturel_liquéfié_GNL | V38: Vraquier_capacité_sup_100000tpl | W38: Gaz_naturel_liquéfié_GNL | X38: kg | Y38: 0.697 | Z38: 2.58 | AA38: 3.277 | AC38: 0.0007 | AD38: 0.002 | AE38: 0.0027
U39: Roulier_mixte_RoPaxFioul_lourd_HFO | V39: Roulier_mixte_RoPax | W39: Fioul_lourd_HFO | X39: kg | Y39: 0.503 | Z39: 3.14 | AA39: 3.643 | AC39: 0.0188 | AD39: 0.19 | AE39: 0.2088
U40: Roulier_mixte_RoPaxGazole_MGO | V40: Roulier_mixte_RoPax | W40: Gazole_MGO | X40: kg | Y40: 0.676 | Z40: 3.17 | AA40: 3.846 | AC40: 0.0188 | AD40: 0.19 | AE40: =AB40+AC40+AD40 -> 0.2088
U41: Roulier_RoRo_MoyenFioul_lourd_HFO | V41: Roulier_RoRo_Moyen | W41: Fioul_lourd_HFO | X41: kg | Y41: 0.503 | Z41: 3.14 | AA41: 3.643 | AC41: 0.00385 | AD41: 0.0418 | AE41: 0.04565
U42: Roulier_RoRo_MoyenGazole_MGO | V42: Roulier_RoRo_Moyen | W42: Gazole_MGO | X42: kg | Y42: 0.676 | Z42: 3.17 | AA42: 3.846 | AC42: 0.00385 | AD42: 0.0418 | AE42: =AB42+AC42+AD42 -> 0.04565
U43: Roulier_RoRo_Camions_RemorquesFioul_lourd_HFO | V43: Roulier_RoRo_Camions_Remorques | W43: Fioul_lourd_HFO | X43: kg | Y43: 0.503 | Z43: 3.14 | AA43: 3.643 | AC43: 0.00863 | AD43: 0.0927 | AE43: 0.10133
U44: Roulier_RoRo_Camions_RemorquesGazole_MGO | V44: Roulier_RoRo_Camions_Remorques | W44: Gazole_MGO | X44: kg | Y44: 0.676 | Z44: 3.17 | AA44: 3.846 | AC44: 0.00863 | AD44: 0.0927 | AE44: =AB44+AC44+AD44 -> 0.10133
U45: Roulier_RoRo_Remorques_seulesFioul_lourd_HFO | V45: Roulier_RoRo_Remorques_seules | W45: Fioul_lourd_HFO | X45: kg | Y45: 0.503 | Z45: 3.14 | AA45: 3.643 | AC45: 0.0059 | AD45: 0.0628 | AE45: 0.0687
B46: RÉSULTATS | U46: Roulier_RoRo_Remorques_seulesGazole_MGO | V46: Roulier_RoRo_Remorques_seules | W46: Gazole_MGO | X46: kg | Y46: 0.676 | Z46: 3.17 | AA46: 3.846 | AC46: 0.0059 | AD46: 0.0628 | AE46: =AB46+AC46+AD46 -> 0.0687
U47: Porte_conteneur_Panama_commercialFioul_lourd_HFO | V47: Porte_conteneur_Panama_commercial | W47: Fioul_lourd_HFO | X47: kg | Y47: 0.503 | Z47: 3.14 | AA47: 3.643 | AC47: 0.0007 | AD47: 0.0082 | AE47: 0.0089
B48: Scope 1 : émissions directes de GES | J48: TTW (tank-to-wheel) = émissions "du réservoir à la roue" (combustion) | U48: Porte_conteneur_Panama_commercialGazole_MGO | V48: Porte_conteneur_Panama_commercial | W48: Gazole_MGO | X48: kg | Y48: 0.676 | Z48: 3.17 | AA48: 3.846 | AC48: 0.0007 | AD48: 0.0082 | AE48: =AB48+AC48+AD48 -> 0.0089
B49: Scope 2 : émissions indirectes de GES issues de l'électricité consommée | J49: WTT (well-to-tank) = émissions "du puits au réservoir" (production de l'énergie en amont) | U49: Porte_conteneur_Panama_commercialGaz_naturel_liquéfié_GNL | V49: Porte_conteneur_Panama_commercial | W49: Gaz_naturel_liquéfié_GNL | X49: kg | Y49: 0.697 | Z49: 2.58 | AA49: 3.277 | AC49: 0.0007 | AD49: 0.0082 | AE49: =AB49+AC49+AD49 -> 0.0089 | AG49: Fioul_lourd_HFO | AH49: kg
B50: Scope 3 : autres émissions indirectes de GES - incluent les émissions amont de production des carburants et des véhicules ainsi que toutes les émissions du transport externalisé | J50: WTW (well-to-wheel) = émissions "du puits à la roue" (cycle de vie complet de l'énergie) | U50: Porte_conteneur_TransatlantiqueFioul_lourd_HFO | V50: Porte_conteneur_Transatlantique | W50: Fioul_lourd_HFO | X50: kg | Y50: 0.503 | Z50: 3.14 | AA50: 3.643 | AC50: 0.00085 | AD50: 0.0098 | AE50: 0.01065 | AG50: Gazole_MGO | AH50: kg
U51: Porte_conteneur_TransatlantiqueGazole_MGO | V51: Porte_conteneur_Transatlantique | W51: Gazole_MGO | X51: kg | Y51: 0.676 | Z51: 3.17 | AA51: 3.846 | AC51: 0.00085 | AD51: 0.0098 | AE51: =AB51+AC51+AD51 -> 0.01065 | AG51: Gaz_naturel_liquéfié_GNL | AH51: kg
B52: Pour le transport sous température dirigée, les émissions totales de GES sont majorées de 70 % sous l'effet des fuites de fluides frigorigènes | U52: Porte_conteneur_TransatlantiqueGaz_naturel_liquéfié_GNL | V52: Porte_conteneur_Transatlantique | W52: Gaz_naturel_liquéfié_GNL | X52: kg | Y52: 0.697 | Z52: 2.58 | AA52: 3.277 | AC52: 0.00085 | AD52: 0.0098 | AE52: =AB52+AC52+AD52 -> 0.01065
U53: Porte_conteneur_Trans-SuezFioul_lourd_HFO | V53: Porte_conteneur_Trans-Suez | W53: Fioul_lourd_HFO | X53: kg | Y53: 0.503 | Z53: 3.14 | AA53: 3.643 | AC53: 0.00058 | AD53: 0.0068 | AE53: 0.00738
F54: Prestations de transport internalisées | L54: Prestations de transport externalisées | N54: BILAN GLOBAL | U54: Porte_conteneur_Trans-SuezGazole_MGO | V54: Porte_conteneur_Trans-Suez | W54: Gazole_MGO | X54: kg | Y54: 0.676 | Z54: 3.17 | AA54: 3.846 | AC54: 0.00058 | AD54: 0.0068 | AE54: =AB54+AC54+AD54 -> 0.00738
F55: Scope 1 | H55: Scope 2 | I55: Scope 3 | U55: Porte_conteneur_Trans-SuezGaz_naturel_liquéfié_GNL | V55: Porte_conteneur_Trans-Suez | W55: Gaz_naturel_liquéfié_GNL | X55: kg | Y55: 0.697 | Z55: 2.58 | AA55: 3.277 | AC55: 0.00058 | AD55: 0.0068 | AE55: 0.00738
B56: Prestation de transport | C56: Type de navire | D56: Type de carburant | E56: Transport sous température dirigée? | F56: Activité totale de transport internalisée (tkm) | G56: Émissions directes (TTW) de GES (kgCO2e) | H56: Émissions indirectes (WTT) de GES issues de l'électricité consommée (kgCO2e) | I56: Rappel activité totale de transport internalisée (tkm) | J56: Émissions indirectes de GES issues de la fabrication des véhicules (kgCO2e) | K56: Émissions indirectes (WTT) de GES issues du carburant consommé (kgCO2e) | L56: Activité totale de transport externalisée (tkm) | M56: Émissions de GES (WTW + fabrication) (kgCO2e) | N56: Activité totale de transport (tkm) | O56: Émissions de GES (kgCO2e) | P56: Intensité des émissions de GES (kgCO2e/tkm) | U56: Porte_conteneur_TranspacifiqueFioul_lourd_HFO | V56: Porte_conteneur_Transpacifique | W56: Fioul_lourd_HFO | X56: kg | Y56: 0.503 | Z56: 3.14 | AA56: 3.643 | AC56: 0.00058 | AD56: 0.0067 | AE56: 0.00728
B57: =B19 -> 0 | C57: 0 | D57: 0 | E57: 0 | F57: =G19*H19 -> 0 | G57: =IF(OR($C57=0,$D57=0),0,IF($J$17="Oui",$I19*VLOOKUP($C57&$D57,$U$19:$AE$61,6,FALSE),$F57*VLOOKUP($C57&$D57,$U$19:$AE$61,10,FALSE))) -> 0 | H57: =IF($D57<>"Électricité",0,IF($J$17="Oui",$I19*VLOOKUP($C57&$D57,$U$19:$AE$61,5,FALSE),$F57*VLOOKUP($C57&$D57,$U$19:$AE$61,9,FALSE))) -> 0 | I57: =F57 -> 0 | J57: =IF(OR($C57=0,$D57=0),0,$F57*VLOOKUP($C57&$D57,$U$19:$AE$61,8,FALSE)) -> 0 | K57: =IF(OR($C57=0,$D57=0),0,IF($D57="Électricité",0,IF($J$17="Oui",$I19*VLOOKUP($C57&$D57,$U$19:$AE$61,5,FALSE),$F57*VLOOKUP($C57&$D57,$U$19:$AE$61,9,FALSE)))) -> 0 | L57: =K19*L19 -> 0 | M57: =IF(OR($C57=0,$D57=0),0,IF($N$17="Oui",$M19*VLOOKUP($C57&$D57,$U$19:$AE$61,7,FALSE)+$L57*VLOOKUP(C57&D57,$U$19:$AE$61,8,FALSE),$L57*VLOOKUP($C57&$D57,$U$19:$AE$61,11,FALSE))) -> 0 | N57: =I57+L57 -> 0 | O57: =IF(E57="Non",G57+H57+J57+K57+M57,1.7*(G57+H57+J57+K57+M57)) -> 0 | P57: =O57/N57 ->  | U57: Porte_conteneur_TranspacifiqueGazole_MGO | V57: Porte_conteneur_Transpacifique | W57: Gazole_MGO | X57: kg | Y57: 0.676 | Z57: 3.17 | AA57: 3.846 | AC57: 0.00058 | AD57: 0.0067 | AE57: =AB57+AC57+AD57 -> 0.00728
B58: 0 | C58: 0 | D58: 0 | E58: 0 | F58: 0 | G58: =IF(OR($C58=0,$D58=0),0,IF($J$17="Oui",$I20*VLOOKUP($C58&$D58,$U$19:$AE$61,6,FALSE),$F58*VLOOKUP($C58&$D58,$U$19:$AE$61,10,FALSE))) -> 0 | H58: 0 | I58: =F58 -> 0 | J58: =IF(OR($C58=0,$D58=0),0,$F58*VLOOKUP($C58&$D58,$U$19:$AE$61,8,FALSE)) -> 0 | K58: =IF(OR($C58=0,$D58=0),0,IF($D58="Électricité",0,IF($J$17="Oui",$I20*VLOOKUP($C58&$D58,$U$19:$AE$61,5,FALSE),$F58*VLOOKUP($C58&$D58,$U$19:$AE$61,9,FALSE)))) -> 0 | L58: 0 | M58: =IF(OR($C58=0,$D58=0),0,IF($N$17="Oui",$M20*VLOOKUP($C58&$D58,$U$19:$AE$61,7,FALSE)+$L58*VLOOKUP(C58&D58,$U$19:$AE$61,8,FALSE),$L58*VLOOKUP($C58&$D58,$U$19:$AE$61,11,FALSE))) -> 0 | N58: =I58+L58 -> 0 | O58: =IF(E58="Non",G58+H58+J58+K58+M58,1.7*(G58+H58+J58+K58+M58)) -> 0 | P58: =O58/N58 ->  | U58: Porte_conteneur_TranspacifiqueGaz_naturel_liquéfié_GNL | V58: Porte_conteneur_Transpacifique | W58: Gaz_naturel_liquéfié_GNL | X58: kg | Y58: 0.697 | Z58: 2.58 | AA58: 3.277 | AC58: 0.00058 | AD58: 0.0067 | AE58: 0.00728
B59: 0 | C59: 0 | D59: 0 | E59: 0 | F59: 0 | G59: 0 | H59: 0 | I59: 0 | J59: 0 | K59: 0 | L59: 0 | M59: 0 | N59: 0 | O59: 0 | U59: Porte_conteneur_autres_liaisonsFioul_lourd_HFO | V59: Porte_conteneur_autres_liaisons | W59: Fioul_lourd_HFO | X59: kg | Y59: 0.503 | Z59: 3.14 | AA59: 3.643 | AC59: 0.00076 | AD59: 0.0088 | AE59: 0.00956
B60: 0 | C60: 0 | D60: 0 | E60: 0 | F60: 0 | G60: 0 | H60: 0 | I60: 0 | J60: 0 | K60: 0 | L60: 0 | M60: 0 | N60: 0 | O60: 0 | U60: Porte_conteneur_autres_liaisonsGazole_MGO | V60: Porte_conteneur_autres_liaisons | W60: Gazole_MGO | X60: kg | Y60: 0.676 | Z60: 3.17 | AA60: 3.846 | AC60: 0.00076 | AD60: 0.0088 | AE60: =AB60+AC60+AD60 -> 0.00956 | AG60: Oui
B61: 0 | C61: 0 | D61: 0 | E61: 0 | F61: 0 | G61: 0 | H61: 0 | I61: 0 | J61: 0 | K61: 0 | L61: 0 | M61: 0 | N61: 0 | O61: 0 | U61: Porte_conteneur_autres_liaisonsGaz_naturel_liquéfié_GNL | V61: Porte_conteneur_autres_liaisons | W61: Gaz_naturel_liquéfié_GNL | X61: kg | Y61: 0.609 | Z61: 2.49 | AA61: 3.099 | AC61: 0.00076 | AD61: 0.0088 | AE61: 0.00956 | AG61: Non
B62: 0 | C62: 0 | D62: 0 | E62: 0 | F62: 0 | G62: 0 | H62: 0 | I62: 0 | J62: 0 | K62: 0 | L62: 0 | M62: 0 | N62: 0 | O62: 0
B63: 0 | C63: 0 | D63: 0 | E63: 0 | F63: 0 | G63: 0 | H63: 0 | I63: 0 | J63: 0 | K63: 0 | L63: 0 | M63: 0 | N63: 0 | O63: 0
B64: 0 | C64: 0 | D64: 0 | E64: 0 | F64: 0 | G64: 0 | H64: 0 | I64: 0 | J64: 0 | K64: 0 | L64: 0 | M64: 0 | N64: 0 | O64: 0
B65: 0 | C65: 0 | D65: 0 | E65: 0 | F65: 0 | G65: 0 | H65: 0 | I65: 0 | J65: 0 | K65: 0 | L65: 0 | M65: 0 | N65: 0 | O65: 0
B66: 0 | C66: 0 | D66: 0 | E66: 0 | F66: 0 | G66: 0 | H66: 0 | I66: 0 | J66: 0 | K66: 0 | L66: 0 | M66: 0 | N66: 0 | O66: 0
B67: 0 | C67: 0 | D67: 0 | E67: 0 | F67: 0 | G67: 0 | H67: 0 | I67: 0 | J67: 0 | K67: 0 | L67: 0 | M67: 0 | N67: 0 | O67: 0
B68: 0 | C68: 0 | D68: 0 | E68: 0 | F68: 0 | G68: 0 | H68: 0 | I68: 0 | J68: 0 | K68: 0 | L68: 0 | M68: 0 | N68: 0 | O68: 0
B69: 0 | C69: 0 | D69: 0 | E69: 0 | F69: 0 | G69: 0 | H69: 0 | I69: 0 | J69: 0 | K69: 0 | L69: 0 | M69: 0 | N69: 0 | O69: 0
B70: 0 | C70: 0 | D70: 0 | E70: 0 | F70: 0 | G70: 0 | H70: 0 | I70: 0 | J70: 0 | K70: 0 | L70: 0 | M70: 0 | N70: 0 | O70: 0
B71: 0 | C71: 0 | D71: 0 | E71: 0 | F71: 0 | G71: 0 | H71: 0 | I71: =F71 -> 0 | J71: 0 | K71: 0 | L71: 0 | M71: 0 | N71: =I71+L71 -> 0 | O71: 0 | P71: =O71/N71 -> 
B72: 0 | C72: 0 | D72: 0 | E72: 0 | F72: 0 | G72: 0 | H72: 0 | I72: 0 | J72: 0 | K72: 0 | L72: 0 | M72: 0 | N72: 0 | O72: 0
B73: 0 | C73: 0 | D73: 0 | E73: 0 | F73: 0 | G73: 0 | H73: 0 | I73: 0 | J73: 0 | K73: 0 | L73: 0 | M73: 0 | N73: 0 | O73: 0
B74: 0 | C74: 0 | D74: 0 | E74: 0 | F74: 0 | G74: 0 | H74: 0 | I74: 0 | J74: 0 | K74: 0 | L74: 0 | M74: 0 | N74: 0 | O74: 0
B75: 0 | C75: 0 | D75: 0 | E75: 0 | F75: 0 | G75: 0 | H75: 0 | I75: 0 | J75: 0 | K75: 0 | L75: 0 | M75: 0 | N75: 0 | O75: 0
B76: 0 | C76: 0 | D76: 0 | E76: 0 | F76: 0 | G76: 0 | H76: 0 | I76: 0 | J76: 0 | K76: 0 | L76: 0 | M76: 0 | N76: 0 | O76: 0
B77: 0 | C77: 0 | D77: 0 | E77: 0 | F77: 0 | G77: 0 | H77: 0 | I77: 0 | J77: 0 | K77: 0 | L77: 0 | M77: 0 | N77: 0 | O77: 0
B78: 0 | C78: 0 | D78: 0 | E78: 0 | F78: 0 | G78: 0 | H78: 0 | I78: 0 | J78: 0 | K78: 0 | L78: 0 | M78: 0 | N78: 0 | O78: 0
B79: 0 | C79: 0 | D79: 0 | E79: 0 | F79: 0 | G79: 0 | H79: 0 | I79: 0 | J79: 0 | K79: 0 | L79: 0 | M79: 0 | N79: 0 | O79: 0
B80: 0 | C80: 0 | D80: 0 | E80: 0 | F80: 0 | G80: 0 | H80: 0 | I80: 0 | J80: 0 | K80: 0 | L80: 0 | M80: 0 | N80: 0 | O80: 0
B81: 0 | C81: 0 | D81: 0 | E81: 0 | F81: 0 | G81: 0 | H81: 0 | I81: 0 | J81: 0 | K81: 0 | L81: 0 | M81: 0 | N81: 0 | O81: 0
B82: =B44 -> 0 | C82: 0 | D82: 0 | E82: 0 | F82: 0 | G82: 0 | H82: 0 | I82: 0 | J82: 0 | K82: 0 | L82: 0 | M82: 0 | N82: 0 | O82: 0
B84: TOTAL | F84: =SUM(F57:F82) -> 0 | G84: 0 | H84: 0 | I84: 0 | J84: 0 | K84: 0 | L84: 0 | M84: 0 | N84: 0 | O84: 0 | P84: =O84/N84 -> 

Sheet 6_Aérien tkm
D1: DÉTERMINATION DES ÉMISSIONS DE GAZ À EFFET DE SERRE GÉNÉRÉES PAR LES PRESTATIONS DE TRANSPORT AERIEN MOBILISÉES DANS LE MARCHÉ
B5: Raison sociale du titulaire | C5: ='1_Infos générales'!$C$9:$J$9 -> 0
B7: Période de référence | C7: ='1_Infos générales'!$C$15 -> Année
B11: DONNÉES A REMPLIR
K15: TOTAL (kgCO2e)
K16: =SUM(K19:K27) -> 0
C18: Ville et Pays de départ [optionnel] | D18: Ville et Pays d'arrivée [optionnel] | E18: Type d'appareil | F18: Type de carburant | G18: Facteur d'émission de GES * (kgCO2e/tkm) | H18: Distance parcourue lors de ce trajet (en km) | I18: Masse de marchandises transportées lors de ce trajet (en tonnes) | J18: Nombre de répétitions de ce trajet (avec la même masse transportée) [optionnel] | K18: Calcul ** des émissions de GES pour ce transport (en kgCO2e) | L18: Quels moyens de preuves pourriez-vous donner ?
G19: =_xlfn.XLOOKUP(Tableau_prestations_atkm[[#This Row],[Type d''appareil]]&Tableau_prestations_atkm[[#This Row],[Type de carburant]], $V$29:$V$70&$W$29:$W$70, $AE$29:$AE$70, 0, 0, ) -> 0 | K19: =IF(ISBLANK(J19),G19*H19*I19,G19*H19*I19*J19) -> 0
G20: =_xlfn.XLOOKUP(Tableau_prestations_atkm[[#This Row],[Type d''appareil]]&Tableau_prestations_atkm[[#This Row],[Type de carburant]], $V$29:$V$70&$W$29:$W$70, $AE$29:$AE$70, 0, 0, ) -> 0 | K20: 0
G21: =_xlfn.XLOOKUP(Tableau_prestations_atkm[[#This Row],[Type d''appareil]]&Tableau_prestations_atkm[[#This Row],[Type de carburant]], $V$29:$V$70&$W$29:$W$70, $AE$29:$AE$70, 0, 0, ) -> 0 | K21: 0
G22: =_xlfn.XLOOKUP(Tableau_prestations_atkm[[#This Row],[Type d''appareil]]&Tableau_prestations_atkm[[#This Row],[Type de carburant]], $V$29:$V$70&$W$29:$W$70, $AE$29:$AE$70, 0, 0, ) -> 0 | K22: 0
G23: =_xlfn.XLOOKUP(Tableau_prestations_atkm[[#This Row],[Type d''appareil]]&Tableau_prestations_atkm[[#This Row],[Type de carburant]], $V$29:$V$70&$W$29:$W$70, $AE$29:$AE$70, 0, 0, ) -> 0 | K23: 0
G24: =_xlfn.XLOOKUP(Tableau_prestations_atkm[[#This Row],[Type d''appareil]]&Tableau_prestations_atkm[[#This Row],[Type de carburant]], $V$29:$V$70&$W$29:$W$70, $AE$29:$AE$70, 0, 0, ) -> 0 | K24: 0
G25: =_xlfn.XLOOKUP(Tableau_prestations_atkm[[#This Row],[Type d''appareil]]&Tableau_prestations_atkm[[#This Row],[Type de carburant]], $V$29:$V$70&$W$29:$W$70, $AE$29:$AE$70, 0, 0, ) -> 0 | K25: 0
G26: =_xlfn.XLOOKUP(Tableau_prestations_atkm[[#This Row],[Type d''appareil]]&Tableau_prestations_atkm[[#This Row],[Type de carburant]], $V$29:$V$70&$W$29:$W$70, $AE$29:$AE$70, 0, 0, ) -> 0 | K26: =IF(ISBLANK(J26),G26*H26*I26,G26*H26*I26*J26) -> 0
G27: =_xlfn.XLOOKUP(Tableau_prestations_atkm[[#This Row],[Type d''appareil]]&Tableau_prestations_atkm[[#This Row],[Type de carburant]], $V$29:$V$70&$W$29:$W$70, $AE$29:$AE$70, 0, 0, ) -> 0 | K27: =IF(ISBLANK(J27),G27*H27*I27,G27*H27*I27*J27) -> 0
V28: Type d'appareil | W28: Type de carburant | X28: Unité | Y28: Facteur d'émission (WTT) (kgCO2e/unité) | Z28: Facteur d'émission (TTW) (kgCO2e/unité) | AA28: Facteur d'émission (WTW) (kgCO2e/unité) | AB28: Intensité des émissions issues de la fabrication (kgCO2e/tkm) | AC28: Intensité des émissions WTT de GES (kgCO2e/tkm) | AD28: Intensité des émissions TTW de GES (kgCO2e/tkm) | AE28: Intensité des émissions de GES (WTW + fabrication) (kgCO2e/tkm) | AH28: Passagers≤50p_D≤1000km | AI28: Passagers≤50p_D≤3500km | AJ28: Passagers≤100p_D≤1000km | AK28: Passagers≤100p_D≤3500km | AL28: Passagers≤220p_D≤1000km | AM28: Passagers≤220p_D≤3500km | AN28: Passagers≤220p_Dmin_3501km | AO28: Passagers_min_221p_D≤3500km | AP28: Passagers_min_221p_Dmin_3501km | AQ28: Cargo_capacité≤25t | AR28: Cargo_capacité≤100t | AS28: Cargo_capacité_sup_100t_D≤1000km | AT28: Cargo_capacité_sup_100t_D≤3500km | AU28: Cargo_capacité_sup_100t_Dmin_3501km
V29: Passagers≤50p_D≤1000km | W29: Kérosène_Jet_A1_A | X29: l | Y29: 0.532 | Z29: 2.53 | AA29: =Y29+Z29 -> 3.062 | AB29: 0.00475 | AC29: 0.384 | AD29: 1.85 | AE29: =AB29+AC29+AD29 -> 2.23875 | AG29: Passagers≤50p_D≤1000km | AH29: Kérosène_Jet_A1_A | AI29: Kérosène_Jet_A1_A | AJ29: Kérosène_Jet_A1_A | AK29: Kérosène_Jet_A1_A | AL29: Kérosène_Jet_A1_A | AM29: Kérosène_Jet_A1_A | AN29: Kérosène_Jet_A1_A | AO29: Kérosène_Jet_A1_A | AP29: Kérosène_Jet_A1_A | AQ29: Kérosène_Jet_A1_A | AR29: Kérosène_Jet_A1_A | AS29: Kérosène_Jet_A1_A | AT29: Kérosène_Jet_A1_A | AU29: Kérosène_Jet_A1_A
V30: Passagers≤50p_D≤1000km | W30: Carburéacteur_Jet_B | X30: l | Y30: 0.535 | Z30: 2.48 | AA30: =Y30+Z30 -> 3.015 | AB30: 0.00475 | AC30: 0.384 | AD30: 1.85 | AE30: =AB30+AC30+AD30 -> 2.23875 | AG30: Passagers≤50p_D≤3500km | AH30: Carburéacteur_Jet_B | AI30: Carburéacteur_Jet_B | AJ30: Carburéacteur_Jet_B | AK30: Carburéacteur_Jet_B | AL30: Carburéacteur_Jet_B | AM30: Carburéacteur_Jet_B | AN30: Carburéacteur_Jet_B | AO30: Carburéacteur_Jet_B | AP30: Carburéacteur_Jet_B | AQ30: Carburéacteur_Jet_B | AR30: Carburéacteur_Jet_B | AS30: Carburéacteur_Jet_B | AT30: Carburéacteur_Jet_B | AU30: Carburéacteur_Jet_B
V31: Passagers≤50p_D≤1000km | W31: Essence_AvGas | X31: l | Y31: 0.535 | Z31: 2.48 | AA31: 3.015 | AB31: 0.00475 | AC31: 0.384 | AD31: 1.85 | AE31: 2.23875 | AG31: Passagers≤100p_D≤1000km | AH31: Essence_AvGas | AI31: Essence_AvGas | AJ31: Essence_AvGas | AK31: Essence_AvGas | AL31: Essence_AvGas | AM31: Essence_AvGas | AN31: Essence_AvGas | AO31: Essence_AvGas | AP31: Essence_AvGas | AQ31: Essence_AvGas | AR31: Essence_AvGas | AS31: Essence_AvGas | AT31: Essence_AvGas | AU31: Essence_AvGas
V32: Passagers≤50p_D≤3500km | W32: Kérosène_Jet_A1_A | X32: l | Y32: 0.532 | Z32: 2.53 | AA32: =Y32+Z32 -> 3.062 | AB32: 0.00493 | AC32: 0.487 | AD32: 2.35 | AE32: 2.84193 | AG32: Passagers≤100p_D≤3500km
V33: Passagers≤50p_D≤3500km | W33: Carburéacteur_Jet_B | X33: l | Y33: 0.535 | Z33: 2.48 | AA33: =Y33+Z33 -> 3.015 | AB33: 0.00493 | AC33: 0.487 | AD33: 2.35 | AE33: 2.84193 | AG33: Passagers≤220p_D≤1000km
V34: Passagers≤50p_D≤3500km | W34: Essence_AvGas | X34: l | Y34: 0.535 | Z34: 2.48 | AA34: 3.015 | AB34: 0.00493 | AC34: 0.487 | AD34: 2.35 | AE34: 2.84193 | AG34: Passagers≤220p_D≤3500km
V35: Passagers≤100p_D≤1000km | W35: Kérosène_Jet_A1_A | X35: l | Y35: 0.532 | Z35: 2.53 | AA35: =Y35+Z35 -> 3.062 | AB35: 0.00429 | AC35: 0.315 | AD35: 1.52 | AE35: 1.83929 | AG35: Passagers≤220p_Dmin_3501km
V36: Passagers≤100p_D≤1000km | W36: Carburéacteur_Jet_B | X36: l | Y36: 0.535 | Z36: 2.48 | AA36: =Y36+Z36 -> 3.015 | AB36: 0.00429 | AC36: 0.315 | AD36: 1.52 | AE36: 1.83929 | AG36: Passagers_min_221p_D≤3500km
V37: Passagers≤100p_D≤1000km | W37: Essence_AvGas | X37: l | Y37: 0.535 | Z37: 2.48 | AA37: 3.015 | AB37: 0.00429 | AC37: 0.315 | AD37: 1.52 | AE37: 1.83929 | AG37: Passagers_min_221p_Dmin_3501km
V38: Passagers≤100p_D≤3500km | W38: Kérosène_Jet_A1_A | X38: l | Y38: 0.532 | Z38: 2.53 | AA38: =Y38+Z38 -> 3.062 | AB38: 0.00334 | AC38: 0.25 | AD38: 1.2 | AE38: 1.45334 | AG38: Cargo_capacité≤25t
V39: Passagers≤100p_D≤3500km | W39: Carburéacteur_Jet_B | X39: l | Y39: 0.535 | Z39: 2.48 | AA39: =Y39+Z39 -> 3.015 | AB39: 0.00334 | AC39: 0.25 | AD39: 1.2 | AE39: 1.45334 | AG39: Cargo_capacité≤100t
V40: Passagers≤100p_D≤3500km | W40: Essence_AvGas | X40: l | Y40: 0.535 | Z40: 2.48 | AA40: 3.015 | AB40: 0.00334 | AC40: 0.25 | AD40: 1.2 | AE40: 1.45334 | AG40: Cargo_capacité_sup_100t_D≤1000km
V41: Passagers≤220p_D≤1000km | W41: Kérosène_Jet_A1_A | X41: l | Y41: 0.532 | Z41: 2.53 | AA41: =Y41+Z41 -> 3.062 | AB41: 0.00353 | AC41: 0.216 | AD41: 1.04 | AE41: 1.25953 | AG41: Cargo_capacité_sup_100t_D≤3500km
V42: Passagers≤220p_D≤1000km | W42: Carburéacteur_Jet_B | X42: l | Y42: 0.535 | Z42: 2.48 | AA42: =Y42+Z42 -> 3.015 | AB42: 0.00353 | AC42: 0.216 | AD42: 1.04 | AE42: 1.25953 | AG42: Cargo_capacité_sup_100t_Dmin_3501km
V43: Passagers≤220p_D≤1000km | W43: Essence_AvGas | X43: l | Y43: 0.535 | Z43: 2.48 | AA43: 3.015 | AB43: 0.00353 | AC43: 0.216 | AD43: 1.04 | AE43: 1.25953
V44: Passagers≤220p_D≤3500km | W44: Kérosène_Jet_A1_A | X44: l | Y44: 0.532 | Z44: 2.53 | AA44: =Y44+Z44 -> 3.062 | AB44: 0.00366 | AC44: 0.175 | AD44: 0.841 | AE44: 1.01966
V45: Passagers≤220p_D≤3500km | W45: Carburéacteur_Jet_B | X45: l | Y45: 0.535 | Z45: 2.48 | AA45: =Y45+Z45 -> 3.015 | AB45: 0.00366 | AC45: 0.175 | AD45: 0.841 | AE45: 1.01966 | AG45: Non
V46: Passagers≤220p_D≤3500km | W46: Essence_AvGas | X46: l | Y46: 0.535 | Z46: 2.48 | AA46: 3.015 | AB46: 0.00366 | AC46: 0.175 | AD46: 0.841 | AE46: 1.01966
V47: Passagers≤220p_Dmin_3501km | W47: Kérosène_Jet_A1_A | X47: l | Y47: 0.532 | Z47: 2.53 | AA47: =Y47+Z47 -> 3.062 | AB47: 0.00261 | AC47: 0.197 | AD47: 0.949 | AE47: 1.14861
V48: Passagers≤220p_Dmin_3501km | W48: Carburéacteur_Jet_B | X48: l | Y48: 0.535 | Z48: 2.48 | AA48: =Y48+Z48 -> 3.015 | AB48: 0.00261 | AC48: 0.197 | AD48: 0.949 | AE48: 1.14861
V49: Passagers≤220p_Dmin_3501km | W49: Essence_AvGas | X49: l | Y49: 0.535 | Z49: 2.48 | AA49: 3.015 | AB49: 0.00261 | AC49: 0.197 | AD49: 0.949 | AE49: 1.14861 | AH49: Passagers≤50p_D≤1000km | AI49: Passagers≤50p_D≤3500km | AJ49: Passagers≤100p_D≤1000km | AK49: Passagers≤100p_D≤3500km | AL49: Passagers≤220p_D≤1000km | AM49: Passagers≤220p_D≤3500km | AN49: Passagers≤220p_Dmin_3501km | AO49: Passagers_min_221p_D≤3500km | AP49: Passagers_min_221p_Dmin_3501km | AQ49: Cargo_capacité≤25t | AR49: Cargo_capacité≤100t | AS49: Cargo_capacité_sup_100t_D≤1000km | AT49: Cargo_capacité_sup_100t_D≤3500km | AU49: Cargo_capacité_sup_100t_Dmin_3501km
V50: Passagers_min_221p_D≤3500km | W50: Kérosène_Jet_A1_A | X50: l | Y50: 0.532 | Z50: 2.53 | AA50: =Y50+Z50 -> 3.062 | AB50: 0.00323 | AC50: 0.167 | AD50: 0.807 | AE50: 0.97723 | AG50: Passagers≤50p_D≤1000km | AH50: Kérosène_Jet_A1_A | AI50: Kérosène_Jet_A1_A | AJ50: Kérosène_Jet_A1_A | AK50: Kérosène_Jet_A1_A | AL50: Kérosène_Jet_A1_A | AM50: Kérosène_Jet_A1_A | AN50: Kérosène_Jet_A1_A | AO50: Kérosène_Jet_A1_A | AP50: Kérosène_Jet_A1_A | AQ50: Kérosène_Jet_A1_A | AR50: Kérosène_Jet_A1_A | AS50: Kérosène_Jet_A1_A | AT50: Kérosène_Jet_A1_A | AU50: Kérosène_Jet_A1_A
V51: Passagers_min_221p_D≤3500km | W51: Carburéacteur_Jet_B | X51: l | Y51: 0.535 | Z51: 2.48 | AA51: =Y51+Z51 -> 3.015 | AB51: 0.00323 | AC51: 0.167 | AD51: 0.807 | AE51: 0.97723 | AG51: Passagers≤50p_D≤3500km | AH51: Carburéacteur_Jet_B | AI51: Carburéacteur_Jet_B | AJ51: Carburéacteur_Jet_B | AK51: Carburéacteur_Jet_B | AL51: Carburéacteur_Jet_B | AM51: Carburéacteur_Jet_B | AN51: Carburéacteur_Jet_B | AO51: Carburéacteur_Jet_B | AP51: Carburéacteur_Jet_B | AQ51: Carburéacteur_Jet_B | AR51: Carburéacteur_Jet_B | AS51: Carburéacteur_Jet_B | AT51: Carburéacteur_Jet_B | AU51: Carburéacteur_Jet_B
V52: Passagers_min_221p_D≤3500km | W52: Essence_AvGas | X52: l | Y52: 0.535 | Z52: 2.48 | AA52: 3.015 | AB52: 0.00323 | AC52: 0.167 | AD52: 0.807 | AE52: 0.97723 | AG52: Passagers≤100p_D≤1000km | AH52: Essence_AvGas | AI52: Essence_AvGas | AJ52: Essence_AvGas | AK52: Essence_AvGas | AL52: Essence_AvGas | AM52: Essence_AvGas | AN52: Essence_AvGas | AO52: Essence_AvGas | AP52: Essence_AvGas | AQ52: Essence_AvGas | AR52: Essence_AvGas | AS52: Essence_AvGas | AT52: Essence_AvGas | AU52: Essence_AvGas
V53: Passagers_min_221p_Dmin_3501km | W53: Kérosène_Jet_A1_A | X53: l | Y53: 0.532 | Z53: 2.53 | AA53: =Y53+Z53 -> 3.062 | AB53: 0.00239 | AC53: 0.142 | AD53: 0.686 | AE53: 0.83039 | AG53: Passagers≤100p_D≤3500km
V54: Passagers_min_221p_Dmin_3501km | W54: Carburéacteur_Jet_B | X54: l | Y54: 0.535 | Z54: 2.48 | AA54: =Y54+Z54 -> 3.015 | AB54: 0.00239 | AC54: 0.142 | AD54: 0.686 | AE54: 0.83039 | AG54: Passagers≤220p_D≤1000km
V55: Passagers_min_221p_Dmin_3501km | W55: Essence_AvGas | X55: l | Y55: 0.535 | Z55: 2.48 | AA55: 3.015 | AB55: 0.00239 | AC55: 0.142 | AD55: 0.686 | AE55: 0.83039 | AG55: Passagers≤220p_D≤3500km
V56: Cargo_capacité≤25t | W56: Kérosène_Jet_A1_A | X56: l | Y56: 0.532 | Z56: 2.53 | AA56: =Y56+Z56 -> 3.062 | AB56: 0.00229 | AC56: 0.31 | AD56: 1.59 | AE56: 1.90229 | AG56: Passagers≤220p_Dmin_3501km
V57: Cargo_capacité≤25t | W57: Carburéacteur_Jet_B | X57: l | Y57: 0.535 | Z57: 2.48 | AA57: =Y57+Z57 -> 3.015 | AB57: 0.00229 | AC57: 0.31 | AD57: 1.59 | AE57: 1.90229 | AG57: Passagers_min_221p_D≤3500km
V58: Cargo_capacité≤25t | W58: Essence_AvGas | X58: l | Y58: 0.535 | Z58: 2.48 | AA58: 3.015 | AB58: 0.00229 | AC58: 0.31 | AD58: 1.59 | AE58: 1.90229 | AG58: Passagers_min_221p_Dmin_3501km
V59: Cargo_capacité≤100t | W59: Kérosène_Jet_A1_A | X59: l | Y59: 0.532 | Z59: 2.53 | AA59: =Y59+Z59 -> 3.062 | AB59: 0.00145 | AC59: 0.306 | AD59: 1.58 | AE59: 1.88745 | AG59: Cargo_capacité≤25t
V60: Cargo_capacité≤100t | W60: Carburéacteur_Jet_B | X60: l | Y60: 0.535 | Z60: 2.48 | AA60: =Y60+Z60 -> 3.015 | AB60: 0.00145 | AC60: 0.306 | AD60: 1.58 | AE60: 1.88745 | AG60: Cargo_capacité≤100t
V61: Cargo_capacité≤100t | W61: Essence_AvGas | X61: l | Y61: 0.535 | Z61: 2.48 | AA61: 3.015 | AB61: 0.00145 | AC61: 0.306 | AD61: 1.58 | AE61: 1.88745 | AG61: Cargo_capacité_sup_100t_D≤1000km
V62: Cargo_capacité_sup_100t_D≤1000km | W62: Kérosène_Jet_A1_A | X62: l | Y62: 0.532 | Z62: 2.53 | AA62: =Y62+Z62 -> 3.062 | AB62: 0.00115 | AC62: 0.228 | AD62: 1.17 | AE62: 1.39915 | AG62: Cargo_capacité_sup_100t_D≤3500km
V63: Cargo_capacité_sup_100t_D≤1000km | W63: Carburéacteur_Jet_B | X63: l | Y63: 0.535 | Z63: 2.48 | AA63: =Y63+Z63 -> 3.015 | AB63: 0.00115 | AC63: 0.228 | AD63: 1.17 | AE63: 1.39915 | AG63: Cargo_capacité_sup_100t_Dmin_3501km
V64: Cargo_capacité_sup_100t_D≤1000km | W64: Essence_AvGas | X64: l | Y64: 0.535 | Z64: 2.48 | AA64: 3.015 | AB64: 0.00115 | AC64: 0.228 | AD64: 1.17 | AE64: 1.39915
V65: Cargo_capacité_sup_100t_D≤3500km | W65: Kérosène_Jet_A1_A | X65: l | Y65: 0.532 | Z65: 2.53 | AA65: =Y65+Z65 -> 3.062 | AB65: 0.00115 | AC65: 0.154 | AD65: 0.796 | AE65: 0.95115
V66: Cargo_capacité_sup_100t_D≤3500km | W66: Carburéacteur_Jet_B | X66: l | Y66: 0.535 | Z66: 2.48 | AA66: =Y66+Z66 -> 3.015 | AB66: 0.00115 | AC66: 0.154 | AD66: 0.796 | AE66: 0.95115
V67: Cargo_capacité_sup_100t_D≤3500km | W67: Essence_AvGas | X67: l | Y67: 0.535 | Z67: 2.48 | AA67: 3.015 | AB67: 0.00115 | AC67: 0.154 | AD67: 0.796 | AE67: 0.95115
V68: Cargo_capacité_sup_100t_Dmin_3501km | W68: Kérosène_Jet_A1_A | X68: l | Y68: 0.532 | Z68: 2.53 | AA68: =Y68+Z68 -> 3.062 | AB68: 0.00115 | AC68: 0.0958 | AD68: 0.494 | AE68: 0.59095
V69: Cargo_capacité_sup_100t_Dmin_3501km | W69: Carburéacteur_Jet_B | X69: l | Y69: 0.535 | Z69: 2.48 | AA69: =Y69+Z69 -> 3.015 | AB69: 0.00115 | AC69: 0.0958 | AD69: 0.494 | AE69: 0.59095
V70: Cargo_capacité_sup_100t_Dmin_3501km | W70: Essence_AvGas | X70: l | Y70: 0.535 | Z70: 2.48 | AA70: 3.015 | AB70: 0.00115 | AC70: 0.0958 | AD70: 0.494 | AE70: 0.59095

Sheet 6_Aérien carburant
D1: DÉTERMINATION DES ÉMISSIONS DE GAZ À EFFET DE SERRE GÉNÉRÉES PAR LES PRESTATIONS DE TRANSPORT AERIEN MOBILISÉES DANS LE MARCHÉ
B5: Raison sociale du titulaire | C5: ='1_Infos générales'!$C$9:$J$9 -> 0
B7: Période de référence | C7: ='1_Infos générales'!$C$15 -> Année
B11: DONNÉES A REMPLIR
J15: TOTAL (kgCO2e)
J16: =SUM(J19:J25) -> 0
C18: Ville et Pays de départ [optionnel] | D18: Ville et Pays d'arrivée [optionnel] | E18: Type d'appareil | F18: Type de carburant | G18: Facteur d'émission de GES * (kgCO2e/tkm) | H18: Quantité de carburant consommé lors de ce trajet (en L) | I18: Nombre de répétitions de ce trajet (avec la même consommation de carburant) [optionnel] | J18: Calcul ** des émissions de GES pour ce transport (en kgCO2e) | K18: Quels moyens de preuves pourriez-vous donner ?
G19: =_xlfn.XLOOKUP(Tableau_prestations_ac[[#This Row],[Type d''appareil]]&Tableau_prestations_ac[[#This Row],[Type de carburant]], $U$31:$U$72&$V$31:$V$72, $Z$31:$Z$72, 0, 0, ) -> 0 | J19: =IF(ISBLANK(I19),G19*H19,G19*H19*I19) -> 0
G20: =_xlfn.XLOOKUP(Tableau_prestations_ac[[#This Row],[Type d''appareil]]&Tableau_prestations_ac[[#This Row],[Type de carburant]], $U$31:$U$72&$V$31:$V$72, $Z$31:$Z$72, 0, 0, ) -> 0 | J20: 0
G21: =_xlfn.XLOOKUP(Tableau_prestations_ac[[#This Row],[Type d''appareil]]&Tableau_prestations_ac[[#This Row],[Type de carburant]], $U$31:$U$72&$V$31:$V$72, $Z$31:$Z$72, 0, 0, ) -> 0 | J21: 0
G22: =_xlfn.XLOOKUP(Tableau_prestations_ac[[#This Row],[Type d''appareil]]&Tableau_prestations_ac[[#This Row],[Type de carburant]], $U$31:$U$72&$V$31:$V$72, $Z$31:$Z$72, 0, 0, ) -> 0 | J22: 0
G23: =_xlfn.XLOOKUP(Tableau_prestations_ac[[#This Row],[Type d''appareil]]&Tableau_prestations_ac[[#This Row],[Type de carburant]], $U$31:$U$72&$V$31:$V$72, $Z$31:$Z$72, 0, 0, ) -> 0 | J23: 0
G24: =_xlfn.XLOOKUP(Tableau_prestations_ac[[#This Row],[Type d''appareil]]&Tableau_prestations_ac[[#This Row],[Type de carburant]], $U$31:$U$72&$V$31:$V$72, $Z$31:$Z$72, 0, 0, ) -> 0 | J24: 0
G25: =_xlfn.XLOOKUP(Tableau_prestations_ac[[#This Row],[Type d''appareil]]&Tableau_prestations_ac[[#This Row],[Type de carburant]], $U$31:$U$72&$V$31:$V$72, $Z$31:$Z$72, 0, 0, ) -> 0 | J25: =IF(ISBLANK(I25),G25*H25,G25*H25*I25) -> 0
U30: Type d'appareil | V30: Type de carburant | W30: Unité | X30: Facteur d'émission (WTT) (kgCO2e/unité) | Y30: Facteur d'émission (TTW) (kgCO2e/unité) | Z30: Facteur d'émission (WTW) (kgCO2e/unité) | AA30: Intensité des émissions issues de la fabrication (kgCO2e/tkm) | AB30: Intensité des émissions WTT de GES (kgCO2e/tkm) | AC30: Intensité des émissions TTW de GES (kgCO2e/tkm) | AD30: Intensité des émissions de GES (WTW + fabrication) (kgCO2e/tkm) | AG30: Passagers≤50p_D≤1000km | AH30: Passagers≤50p_D≤3500km | AI30: Passagers≤100p_D≤1000km | AJ30: Passagers≤100p_D≤3500km | AK30: Passagers≤220p_D≤1000km | AL30: Passagers≤220p_D≤3500km | AM30: Passagers≤220p_Dmin_3501km | AN30: Passagers_min_221p_D≤3500km | AO30: Passagers_min_221p_Dmin_3501km | AP30: Cargo_capacité≤25t | AQ30: Cargo_capacité≤100t | AR30: Cargo_capacité_sup_100t_D≤1000km | AS30: Cargo_capacité_sup_100t_D≤3500km | AT30: Cargo_capacité_sup_100t_Dmin_3501km
U31: Passagers≤50p_D≤1000km | V31: Kérosène_Jet_A1_A | W31: l | X31: 0.532 | Y31: 2.53 | Z31: =X31+Y31 -> 3.062 | AA31: 0.00475 | AB31: 0.384 | AC31: 1.85 | AD31: =AA31+AB31+AC31 -> 2.23875 | AF31: Passagers≤50p_D≤1000km | AG31: Kérosène_Jet_A1_A | AH31: Kérosène_Jet_A1_A | AI31: Kérosène_Jet_A1_A | AJ31: Kérosène_Jet_A1_A | AK31: Kérosène_Jet_A1_A | AL31: Kérosène_Jet_A1_A | AM31: Kérosène_Jet_A1_A | AN31: Kérosène_Jet_A1_A | AO31: Kérosène_Jet_A1_A | AP31: Kérosène_Jet_A1_A | AQ31: Kérosène_Jet_A1_A | AR31: Kérosène_Jet_A1_A | AS31: Kérosène_Jet_A1_A | AT31: Kérosène_Jet_A1_A
U32: Passagers≤50p_D≤1000km | V32: Carburéacteur_Jet_B | W32: l | X32: 0.531 | Y32: 2.48 | Z32: =X32+Y32 -> 3.011 | AA32: 0.00475 | AB32: 0.384 | AC32: 1.85 | AD32: =AA32+AB32+AC32 -> 2.23875 | AF32: Passagers≤50p_D≤3500km | AG32: Carburéacteur_Jet_B | AH32: Carburéacteur_Jet_B | AI32: Carburéacteur_Jet_B | AJ32: Carburéacteur_Jet_B | AK32: Carburéacteur_Jet_B | AL32: Carburéacteur_Jet_B | AM32: Carburéacteur_Jet_B | AN32: Carburéacteur_Jet_B | AO32: Carburéacteur_Jet_B | AP32: Carburéacteur_Jet_B | AQ32: Carburéacteur_Jet_B | AR32: Carburéacteur_Jet_B | AS32: Carburéacteur_Jet_B | AT32: Carburéacteur_Jet_B
U33: Passagers≤50p_D≤1000km | V33: Essence_AvGas | W33: l | X33: 0.531 | Y33: 2.48 | Z33: 3.011 | AA33: 0.00475 | AB33: 0.384 | AC33: 1.85 | AD33: 2.23875 | AF33: Passagers≤100p_D≤1000km | AG33: Essence_AvGas | AH33: Essence_AvGas | AI33: Essence_AvGas | AJ33: Essence_AvGas | AK33: Essence_AvGas | AL33: Essence_AvGas | AM33: Essence_AvGas | AN33: Essence_AvGas | AO33: Essence_AvGas | AP33: Essence_AvGas | AQ33: Essence_AvGas | AR33: Essence_AvGas | AS33: Essence_AvGas | AT33: Essence_AvGas
U34: Passagers≤50p_D≤3500km | V34: Kérosène_Jet_A1_A | W34: l | X34: 0.532 | Y34: 2.53 | Z34: =X34+Y34 -> 3.062 | AA34: 0.00493 | AB34: 0.487 | AC34: 2.35 | AD34: 2.84193 | AF34: Passagers≤100p_D≤3500km
U35: Passagers≤50p_D≤3500km | V35: Carburéacteur_Jet_B | W35: l | X35: 0.531 | Y35: 2.48 | Z35: =X35+Y35 -> 3.011 | AA35: 0.00493 | AB35: 0.487 | AC35: 2.35 | AD35: 2.84193 | AF35: Passagers≤220p_D≤1000km
U36: Passagers≤50p_D≤3500km | V36: Essence_AvGas | W36: l | X36: 0.531 | Y36: 2.48 | Z36: 3.011 | AA36: 0.00493 | AB36: 0.487 | AC36: 2.35 | AD36: 2.84193 | AF36: Passagers≤220p_D≤3500km
U37: Passagers≤100p_D≤1000km | V37: Kérosène_Jet_A1_A | W37: l | X37: 0.532 | Y37: 2.53 | Z37: =X37+Y37 -> 3.062 | AA37: 0.00429 | AB37: 0.315 | AC37: 1.52 | AD37: 1.83929 | AF37: Passagers≤220p_Dmin_3501km
U38: Passagers≤100p_D≤1000km | V38: Carburéacteur_Jet_B | W38: l | X38: 0.531 | Y38: 2.48 | Z38: =X38+Y38 -> 3.011 | AA38: 0.00429 | AB38: 0.315 | AC38: 1.52 | AD38: 1.83929 | AF38: Passagers_min_221p_D≤3500km
U39: Passagers≤100p_D≤1000km | V39: Essence_AvGas | W39: l | X39: 0.531 | Y39: 2.48 | Z39: 3.011 | AA39: 0.00429 | AB39: 0.315 | AC39: 1.52 | AD39: 1.83929 | AF39: Passagers_min_221p_Dmin_3501km
U40: Passagers≤100p_D≤3500km | V40: Kérosène_Jet_A1_A | W40: l | X40: 0.532 | Y40: 2.53 | Z40: =X40+Y40 -> 3.062 | AA40: 0.00334 | AB40: 0.25 | AC40: 1.2 | AD40: 1.45334 | AF40: Cargo_capacité≤25t
U41: Passagers≤100p_D≤3500km | V41: Carburéacteur_Jet_B | W41: l | X41: 0.531 | Y41: 2.48 | Z41: =X41+Y41 -> 3.011 | AA41: 0.00334 | AB41: 0.25 | AC41: 1.2 | AD41: 1.45334 | AF41: Cargo_capacité≤100t
U42: Passagers≤100p_D≤3500km | V42: Essence_AvGas | W42: l | X42: 0.531 | Y42: 2.48 | Z42: 3.011 | AA42: 0.00334 | AB42: 0.25 | AC42: 1.2 | AD42: 1.45334 | AF42: Cargo_capacité_sup_100t_D≤1000km
U43: Passagers≤220p_D≤1000km | V43: Kérosène_Jet_A1_A | W43: l | X43: 0.532 | Y43: 2.53 | Z43: =X43+Y43 -> 3.062 | AA43: 0.00353 | AB43: 0.216 | AC43: 1.04 | AD43: 1.25953 | AF43: Cargo_capacité_sup_100t_D≤3500km
U44: Passagers≤220p_D≤1000km | V44: Carburéacteur_Jet_B | W44: l | X44: 0.531 | Y44: 2.48 | Z44: =X44+Y44 -> 3.011 | AA44: 0.00353 | AB44: 0.216 | AC44: 1.04 | AD44: 1.25953 | AF44: Cargo_capacité_sup_100t_Dmin_3501km
U45: Passagers≤220p_D≤1000km | V45: Essence_AvGas | W45: l | X45: 0.531 | Y45: 2.48 | Z45: 3.011 | AA45: 0.00353 | AB45: 0.216 | AC45: 1.04 | AD45: 1.25953
U46: Passagers≤220p_D≤3500km | V46: Kérosène_Jet_A1_A | W46: l | X46: 0.532 | Y46: 2.53 | Z46: =X46+Y46 -> 3.062 | AA46: 0.00366 | AB46: 0.175 | AC46: 0.841 | AD46: 1.01966
U47: Passagers≤220p_D≤3500km | V47: Carburéacteur_Jet_B | W47: l | X47: 0.531 | Y47: 2.48 | Z47: =X47+Y47 -> 3.011 | AA47: 0.00366 | AB47: 0.175 | AC47: 0.841 | AD47: 1.01966 | AF47: Non
U48: Passagers≤220p_D≤3500km | V48: Essence_AvGas | W48: l | X48: 0.531 | Y48: 2.48 | Z48: 3.011 | AA48: 0.00366 | AB48: 0.175 | AC48: 0.841 | AD48: 1.01966
U49: Passagers≤220p_Dmin_3501km | V49: Kérosène_Jet_A1_A | W49: l | X49: 0.532 | Y49: 2.53 | Z49: =X49+Y49 -> 3.062 | AA49: 0.00261 | AB49: 0.197 | AC49: 0.949 | AD49: 1.14861
U50: Passagers≤220p_Dmin_3501km | V50: Carburéacteur_Jet_B | W50: l | X50: 0.531 | Y50: 2.48 | Z50: =X50+Y50 -> 3.011 | AA50: 0.00261 | AB50: 0.197 | AC50: 0.949 | AD50: 1.14861
U51: Passagers≤220p_Dmin_3501km | V51: Essence_AvGas | W51: l | X51: 0.531 | Y51: 2.48 | Z51: 3.011 | AA51: 0.00261 | AB51: 0.197 | AC51: 0.949 | AD51: 1.14861 | AG51: Passagers≤50p_D≤1000km | AH51: Passagers≤50p_D≤3500km | AI51: Passagers≤100p_D≤1000km | AJ51: Passagers≤100p_D≤3500km | AK51: Passagers≤220p_D≤1000km | AL51: Passagers≤220p_D≤3500km | AM51: Passagers≤220p_Dmin_3501km | AN51: Passagers_min_221p_D≤3500km | AO51: Passagers_min_221p_Dmin_3501km | AP51: Cargo_capacité≤25t | AQ51: Cargo_capacité≤100t | AR51: Cargo_capacité_sup_100t_D≤1000km | AS51: Cargo_capacité_sup_100t_D≤3500km | AT51: Cargo_capacité_sup_100t_Dmin_3501km
U52: Passagers_min_221p_D≤3500km | V52: Kérosène_Jet_A1_A | W52: l | X52: 0.532 | Y52: 2.53 | Z52: =X52+Y52 -> 3.062 | AA52: 0.00323 | AB52: 0.167 | AC52: 0.807 | AD52: 0.97723 | AF52: Passagers≤50p_D≤1000km | AG52: Kérosène_Jet_A1_A | AH52: Kérosène_Jet_A1_A | AI52: Kérosène_Jet_A1_A | AJ52: Kérosène_Jet_A1_A | AK52: Kérosène_Jet_A1_A | AL52: Kérosène_Jet_A1_A | AM52: Kérosène_Jet_A1_A | AN52: Kérosène_Jet_A1_A | AO52: Kérosène_Jet_A1_A | AP52: Kérosène_Jet_A1_A | AQ52: Kérosène_Jet_A1_A | AR52: Kérosène_Jet_A1_A | AS52: Kérosène_Jet_A1_A | AT52: Kérosène_Jet_A1_A
U53: Passagers_min_221p_D≤3500km | V53: Carburéacteur_Jet_B | W53: l | X53: 0.531 | Y53: 2.48 | Z53: =X53+Y53 -> 3.011 | AA53: 0.00323 | AB53: 0.167 | AC53: 0.807 | AD53: 0.97723 | AF53: Passagers≤50p_D≤3500km | AG53: Carburéacteur_Jet_B | AH53: Carburéacteur_Jet_B | AI53: Carburéacteur_Jet_B | AJ53: Carburéacteur_Jet_B | AK53: Carburéacteur_Jet_B | AL53: Carburéacteur_Jet_B | AM53: Carburéacteur_Jet_B | AN53: Carburéacteur_Jet_B | AO53: Carburéacteur_Jet_B | AP53: Carburéacteur_Jet_B | AQ53: Carburéacteur_Jet_B | AR53: Carburéacteur_Jet_B | AS53: Carburéacteur_Jet_B | AT53: Carburéacteur_Jet_B
U54: Passagers_min_221p_D≤3500km | V54: Essence_AvGas | W54: l | X54: 0.531 | Y54: 2.48 | Z54: 3.011 | AA54: 0.00323 | AB54: 0.167 | AC54: 0.807 | AD54: 0.97723 | AF54: Passagers≤100p_D≤1000km | AG54: Essence_AvGas | AH54: Essence_AvGas | AI54: Essence_AvGas | AJ54: Essence_AvGas | AK54: Essence_AvGas | AL54: Essence_AvGas | AM54: Essence_AvGas | AN54: Essence_AvGas | AO54: Essence_AvGas | AP54: Essence_AvGas | AQ54: Essence_AvGas | AR54: Essence_AvGas | AS54: Essence_AvGas | AT54: Essence_AvGas
U55: Passagers_min_221p_Dmin_3501km | V55: Kérosène_Jet_A1_A | W55: l | X55: 0.532 | Y55: 2.53 | Z55: =X55+Y55 -> 3.062 | AA55: 0.00239 | AB55: 0.142 | AC55: 0.686 | AD55: 0.83039 | AF55: Passagers≤100p_D≤3500km
U56: Passagers_min_221p_Dmin_3501km | V56: Carburéacteur_Jet_B | W56: l | X56: 0.531 | Y56: 2.48 | Z56: =X56+Y56 -> 3.011 | AA56: 0.00239 | AB56: 0.142 | AC56: 0.686 | AD56: 0.83039 | AF56: Passagers≤220p_D≤1000km
U57: Passagers_min_221p_Dmin_3501km | V57: Essence_AvGas | W57: l | X57: 0.531 | Y57: 2.48 | Z57: 3.011 | AA57: 0.00239 | AB57: 0.142 | AC57: 0.686 | AD57: 0.83039 | AF57: Passagers≤220p_D≤3500km
U58: Cargo_capacité≤25t | V58: Kérosène_Jet_A1_A | W58: l | X58: 0.532 | Y58: 2.53 | Z58: =X58+Y58 -> 3.062 | AA58: 0.00229 | AB58: 0.31 | AC58: 1.59 | AD58: 1.90229 | AF58: Passagers≤220p_Dmin_3501km
U59: Cargo_capacité≤25t | V59: Carburéacteur_Jet_B | W59: l | X59: 0.531 | Y59: 2.48 | Z59: =X59+Y59 -> 3.011 | AA59: 0.00229 | AB59: 0.31 | AC59: 1.59 | AD59: 1.90229 | AF59: Passagers_min_221p_D≤3500km
U60: Cargo_capacité≤25t | V60: Essence_AvGas | W60: l | X60: 0.531 | Y60: 2.48 | Z60: 3.011 | AA60: 0.00229 | AB60: 0.31 | AC60: 1.59 | AD60: 1.90229 | AF60: Passagers_min_221p_Dmin_3501km
U61: Cargo_capacité≤100t | V61: Kérosène_Jet_A1_A | W61: l | X61: 0.532 | Y61: 2.53 | Z61: =X61+Y61 -> 3.062 | AA61: 0.00145 | AB61: 0.306 | AC61: 1.58 | AD61: 1.88745 | AF61: Cargo_capacité≤25t
U62: Cargo_capacité≤100t | V62: Carburéacteur_Jet_B | W62: l | X62: 0.531 | Y62: 2.48 | Z62: =X62+Y62 -> 3.011 | AA62: 0.00145 | AB62: 0.306 | AC62: 1.58 | AD62: 1.88745 | AF62: Cargo_capacité≤100t
U63: Cargo_capacité≤100t | V63: Essence_AvGas | W63: l | X63: 0.531 | Y63: 2.48 | Z63: 3.011 | AA63: 0.00145 | AB63: 0.306 | AC63: 1.58 | AD63: 1.88745 | AF63: Cargo_capacité_sup_100t_D≤1000km
U64: Cargo_capacité_sup_100t_D≤1000km | V64: Kérosène_Jet_A1_A | W64: l | X64: 0.532 | Y64: 2.53 | Z64: =X64+Y64 -> 3.062 | AA64: 0.00115 | AB64: 0.228 | AC64: 1.17 | AD64: 1.39915 | AF64: Cargo_capacité_sup_100t_D≤3500km
U65: Cargo_capacité_sup_100t_D≤1000km | V65: Carburéacteur_Jet_B | W65: l | X65: 0.531 | Y65: 2.48 | Z65: =X65+Y65 -> 3.011 | AA65: 0.00115 | AB65: 0.228 | AC65: 1.17 | AD65: 1.39915 | AF65: Cargo_capacité_sup_100t_Dmin_3501km
U66: Cargo_capacité_sup_100t_D≤1000km | V66: Essence_AvGas | W66: l | X66: 0.531 | Y66: 2.48 | Z66: 3.011 | AA66: 0.00115 | AB66: 0.228 | AC66: 1.17 | AD66: 1.39915
U67: Cargo_capacité_sup_100t_D≤3500km | V67: Kérosène_Jet_A1_A | W67: l | X67: 0.532 | Y67: 2.53 | Z67: =X67+Y67 -> 3.062 | AA67: 0.00115 | AB67: 0.154 | AC67: 0.796 | AD67: 0.95115
U68: Cargo_capacité_sup_100t_D≤3500km | V68: Carburéacteur_Jet_B | W68: l | X68: 0.531 | Y68: 2.48 | Z68: =X68+Y68 -> 3.011 | AA68: 0.00115 | AB68: 0.154 | AC68: 0.796 | AD68: 0.95115
U69: Cargo_capacité_sup_100t_D≤3500km | V69: Essence_AvGas | W69: l | X69: 0.531 | Y69: 2.48 | Z69: 3.011 | AA69: 0.00115 | AB69: 0.154 | AC69: 0.796 | AD69: 0.95115
U70: Cargo_capacité_sup_100t_Dmin_3501km | V70: Kérosène_Jet_A1_A | W70: l | X70: 0.532 | Y70: 2.53 | Z70: =X70+Y70 -> 3.062 | AA70: 0.00115 | AB70: 0.0958 | AC70: 0.494 | AD70: 0.59095
U71: Cargo_capacité_sup_100t_Dmin_3501km | V71: Carburéacteur_Jet_B | W71: l | X71: 0.531 | Y71: 2.48 | Z71: =X71+Y71 -> 3.011 | AA71: 0.00115 | AB71: 0.0958 | AC71: 0.494 | AD71: 0.59095
U72: Cargo_capacité_sup_100t_Dmin_3501km | V72: Essence_AvGas | W72: l | X72: 0.531 | Y72: 2.48 | Z72: 3.011 | AA72: 0.00115 | AB72: 0.0958 | AC72: 0.494 | AD72: 0.59095

Sheet 6_Aerien (hidden)
B2: DÉTERMINATION DES ÉMISSIONS DE GAZ À EFFET DE SERRE GÉNÉRÉES PAR LES PRESTATIONS DE TRANSPORT AÉRIEN MOBILISÉES DANS LE MARCHÉ
B4: Raison sociale du titulaire | C4: ='1_Infos générales'!$C$9:$J$9 -> 0
B6: Période de référence | C6: ='1_Infos générales'!$C$15 -> Année
B8: DONNÉES D'ENTRÉE
B10: Le titulaire est invité à renseigner les cellules jaunes ci-dessous | I10: Les données primaires sont les données mesurées ou obtenues par calcul à la suite de mesure
B11: Les cellules bleues sont automatiquement complétées et ne peuvent être manuellement modifiées | I11: En cellule J17, le titulaire indique s'il dispose de données primaires de suivi des consommations de la flotte détenue pour les prestations de transport internalisées
I12: → Si oui, le titulaire renseigne les consommations en colonne I ; si non, il laisse la colonne I vide et les calculs seront réalisés selon des modélisations par défaut
B13: Le titulaire peut regrouper à sa convenance les prestations de transport répondant à des caractéristiques communes (ex. externalisé, par type d'appareil et carburant commun) | I13: En cellule N17, le titulaire indique s'il dispose de données primaires de suivi des consommations des flottes mobilisées pour les prestations externalisées
B14: Le nombre de lignes disponibles dans le tableau ci-dessous est limité sans possibilité d'ajouter de ligne supplémentaire ; | I14: → Si oui, le titulaire renseigne les consommations en colonne M ; si non, il laisse la colonne M vide et les calculs seront réalisés selon des modélisations par défaut
B15: le titulaire est donc invité à réduire aux maximum le nombre de lignes utilisées
F16: Prestations de transport internalisées (réalisées avec des véhicules appartenant au titulaire) | K16: Prestations de transport externalisées
B17: La colonne B sert à donner un intitulé (nom, numéro, etc. au choix du titulaire) à la ligne de données renseignée | F17: Informations sur l'activité de la flotte interne pour les prestations de transport visées | I17: Données primaires? | J17: Oui | K17: Informations sur l'activité externalisée pour les prestations de transport visées | M17: Données primaires? | N17: Oui
B18: Prestation de transport (agrégation possible à la convenance du titulaire - ex. une ligne regroupant tous les vols par avion cargo de moins de 25 t sur l'année) | C18: Type d'appareil | D18: Type de carburant | E18: (Réservé) | F18: (Réservé) | G18: Distance totale cumulée (km) | H18: Masse totale de marchandises transportées (t) | I18: Quantité totale d'énergie consommée | J18: Unité | K18: Distance totale cumulée (km) | L18: Masse totale de marchandises transportées (t) | M18: Quantité totale d'énergie consommée | N18: Unité | V18: Type d'appareil | W18: Type de carburant | X18: Unité | Y18: Facteur d'émission (WTT) (kgCO2e/unité) | Z18: Facteur d'émission (TTW) (kgCO2e/unité) | AA18: Facteur d'émission (WTW) (kgCO2e/unité) | AB18: Intensité des émissions issues de la fabrication (kgCO2e/tkm) | AC18: Intensité des émissions WTT de GES (kgCO2e/tkm) | AD18: Intensité des émissions TTW de GES (kgCO2e/tkm) | AE18: Intensité des émissions de GES (WTW + fabrication) (kgCO2e/tkm) | AH18: Passagers≤50p_D≤1000km | AI18: Passagers≤50p_D≤3500km | AJ18: Passagers≤100p_D≤1000km | AK18: Passagers≤100p_D≤3500km | AL18: Passagers≤220p_D≤1000km | AM18: Passagers≤220p_D≤3500km | AN18: Passagers≤220p_Dmin_3501km | AO18: Passagers_min_221p_D≤3500km | AP18: Passagers_min_221p_Dmin_3501km | AQ18: Cargo_capacité≤25t | AR18: Cargo_capacité≤100t | AS18: Cargo_capacité_sup_100t_D≤1000km | AT18: Cargo_capacité_sup_100t_D≤3500km | AU18: Cargo_capacité_sup_100t_Dmin_3501km
J19: =IF(ISBLANK(D19),"",VLOOKUP($D19,$AG$49:$AH$51,2,FALSE)) ->  | N19: =J19 ->  | U19: =V19&W19 -> Passagers≤50p_D≤1000kmKérosène_Jet_A1_A | V19: Passagers≤50p_D≤1000km | W19: Kérosène_Jet_A1_A | X19: l | Y19: 0.532 | Z19: 2.53 | AA19: =Y19+Z19 -> 3.062 | AB19: 0.00475 | AC19: 0.384 | AD19: 1.85 | AE19: =AB19+AC19+AD19 -> 2.23875 | AG19: Passagers≤50p_D≤1000km | AH19: Kérosène_Jet_A1_A | AI19: Kérosène_Jet_A1_A | AJ19: Kérosène_Jet_A1_A | AK19: Kérosène_Jet_A1_A | AL19: Kérosène_Jet_A1_A | AM19: Kérosène_Jet_A1_A | AN19: Kérosène_Jet_A1_A | AO19: Kérosène_Jet_A1_A | AP19: Kérosène_Jet_A1_A | AQ19: Kérosène_Jet_A1_A | AR19: Kérosène_Jet_A1_A | AS19: Kérosène_Jet_A1_A | AT19: Kérosène_Jet_A1_A | AU19: Kérosène_Jet_A1_A
J20: =IF(ISBLANK(D20),"",VLOOKUP($D20,$AG$49:$AH$51,2,FALSE)) ->  | N20: =J20 ->  | U20: =V20&W20 -> Passagers≤50p_D≤1000kmCarburéacteur_Jet_B | V20: Passagers≤50p_D≤1000km | W20: Carburéacteur_Jet_B | X20: l | Y20: 0.535 | Z20: 2.48 | AA20: =Y20+Z20 -> 3.015 | AB20: 0.00475 | AC20: 0.384 | AD20: 1.85 | AE20: =AB20+AC20+AD20 -> 2.23875 | AG20: Passagers≤50p_D≤3500km | AH20: Carburéacteur_Jet_B | AI20: Carburéacteur_Jet_B | AJ20: Carburéacteur_Jet_B | AK20: Carburéacteur_Jet_B | AL20: Carburéacteur_Jet_B | AM20: Carburéacteur_Jet_B | AN20: Carburéacteur_Jet_B | AO20: Carburéacteur_Jet_B | AP20: Carburéacteur_Jet_B | AQ20: Carburéacteur_Jet_B | AR20: Carburéacteur_Jet_B | AS20: Carburéacteur_Jet_B | AT20: Carburéacteur_Jet_B | AU20: Carburéacteur_Jet_B
U21: Passagers≤50p_D≤1000kmEssence_AvGas | V21: Passagers≤50p_D≤1000km | W21: Essence_AvGas | X21: l | Y21: 0.535 | Z21: 2.48 | AA21: 3.015 | AB21: 0.00475 | AC21: 0.384 | AD21: 1.85 | AE21: 2.23875 | AG21: Passagers≤100p_D≤1000km | AH21: Essence_AvGas | AI21: Essence_AvGas | AJ21: Essence_AvGas | AK21: Essence_AvGas | AL21: Essence_AvGas | AM21: Essence_AvGas | AN21: Essence_AvGas | AO21: Essence_AvGas | AP21: Essence_AvGas | AQ21: Essence_AvGas | AR21: Essence_AvGas | AS21: Essence_AvGas | AT21: Essence_AvGas | AU21: Essence_AvGas
U22: Passagers≤50p_D≤3500kmKérosène_Jet_A1_A | V22: Passagers≤50p_D≤3500km | W22: Kérosène_Jet_A1_A | X22: l | Y22: 0.532 | Z22: 2.53 | AA22: =Y22+Z22 -> 3.062 | AB22: 0.00493 | AC22: 0.487 | AD22: 2.35 | AE22: =AB22+AC22+AD22 -> 2.84193 | AG22: Passagers≤100p_D≤3500km
U23: Passagers≤50p_D≤3500kmCarburéacteur_Jet_B | V23: Passagers≤50p_D≤3500km | W23: Carburéacteur_Jet_B | X23: l | Y23: 0.535 | Z23: 2.48 | AA23: =Y23+Z23 -> 3.015 | AB23: 0.00493 | AC23: 0.487 | AD23: 2.35 | AE23: =AB23+AC23+AD23 -> 2.84193 | AG23: Passagers≤220p_D≤1000km
U24: Passagers≤50p_D≤3500kmEssence_AvGas | V24: Passagers≤50p_D≤3500km | W24: Essence_AvGas | X24: l | Y24: 0.535 | Z24: 2.48 | AA24: 3.015 | AB24: 0.00493 | AC24: 0.487 | AD24: 2.35 | AE24: 2.84193 | AG24: Passagers≤220p_D≤3500km
U25: Passagers≤100p_D≤1000kmKérosène_Jet_A1_A | V25: Passagers≤100p_D≤1000km | W25: Kérosène_Jet_A1_A | X25: l | Y25: 0.532 | Z25: 2.53 | AA25: =Y25+Z25 -> 3.062 | AB25: 0.00429 | AC25: 0.315 | AD25: 1.52 | AE25: 1.83929 | AG25: Passagers≤220p_Dmin_3501km
U26: Passagers≤100p_D≤1000kmCarburéacteur_Jet_B | V26: Passagers≤100p_D≤1000km | W26: Carburéacteur_Jet_B | X26: l | Y26: 0.535 | Z26: 2.48 | AA26: =Y26+Z26 -> 3.015 | AB26: 0.00429 | AC26: 0.315 | AD26: 1.52 | AE26: =AB26+AC26+AD26 -> 1.83929 | AG26: Passagers_min_221p_D≤3500km
U27: Passagers≤100p_D≤1000kmEssence_AvGas | V27: Passagers≤100p_D≤1000km | W27: Essence_AvGas | X27: l | Y27: 0.535 | Z27: 2.48 | AA27: 3.015 | AB27: 0.00429 | AC27: 0.315 | AD27: 1.52 | AE27: 1.83929 | AG27: Passagers_min_221p_Dmin_3501km
U28: Passagers≤100p_D≤3500kmKérosène_Jet_A1_A | V28: Passagers≤100p_D≤3500km | W28: Kérosène_Jet_A1_A | X28: l | Y28: 0.532 | Z28: 2.53 | AA28: =Y28+Z28 -> 3.062 | AB28: 0.00334 | AC28: 0.25 | AD28: 1.2 | AE28: 1.45334 | AG28: Cargo_capacité≤25t
U29: Passagers≤100p_D≤3500kmCarburéacteur_Jet_B | V29: Passagers≤100p_D≤3500km | W29: Carburéacteur_Jet_B | X29: l | Y29: 0.535 | Z29: 2.48 | AA29: =Y29+Z29 -> 3.015 | AB29: 0.00334 | AC29: 0.25 | AD29: 1.2 | AE29: =AB29+AC29+AD29 -> 1.45334 | AG29: Cargo_capacité≤100t
U30: Passagers≤100p_D≤3500kmEssence_AvGas | V30: Passagers≤100p_D≤3500km | W30: Essence_AvGas | X30: l | Y30: 0.535 | Z30: 2.48 | AA30: 3.015 | AB30: 0.00334 | AC30: 0.25 | AD30: 1.2 | AE30: 1.45334 | AG30: Cargo_capacité_sup_100t_D≤1000km
U31: Passagers≤220p_D≤1000kmKérosène_Jet_A1_A | V31: Passagers≤220p_D≤1000km | W31: Kérosène_Jet_A1_A | X31: l | Y31: 0.532 | Z31: 2.53 | AA31: =Y31+Z31 -> 3.062 | AB31: 0.00353 | AC31: 0.216 | AD31: 1.04 | AE31: 1.25953 | AG31: Cargo_capacité_sup_100t_D≤3500km
U32: Passagers≤220p_D≤1000kmCarburéacteur_Jet_B | V32: Passagers≤220p_D≤1000km | W32: Carburéacteur_Jet_B | X32: l | Y32: 0.535 | Z32: 2.48 | AA32: =Y32+Z32 -> 3.015 | AB32: 0.00353 | AC32: 0.216 | AD32: 1.04 | AE32: 1.25953 | AG32: Cargo_capacité_sup_100t_Dmin_3501km
U33: Passagers≤220p_D≤1000kmEssence_AvGas | V33: Passagers≤220p_D≤1000km | W33: Essence_AvGas | X33: l | Y33: 0.535 | Z33: 2.48 | AA33: 3.015 | AB33: 0.00353 | AC33: 0.216 | AD33: 1.04 | AE33: 1.25953
U34: Passagers≤220p_D≤3500kmKérosène_Jet_A1_A | V34: Passagers≤220p_D≤3500km | W34: Kérosène_Jet_A1_A | X34: l | Y34: 0.532 | Z34: 2.53 | AA34: =Y34+Z34 -> 3.062 | AB34: 0.00366 | AC34: 0.175 | AD34: 0.841 | AE34: 1.01966
U35: Passagers≤220p_D≤3500kmCarburéacteur_Jet_B | V35: Passagers≤220p_D≤3500km | W35: Carburéacteur_Jet_B | X35: l | Y35: 0.535 | Z35: 2.48 | AA35: =Y35+Z35 -> 3.015 | AB35: 0.00366 | AC35: 0.175 | AD35: 0.841 | AE35: 1.01966
U36: Passagers≤220p_D≤3500kmEssence_AvGas | V36: Passagers≤220p_D≤3500km | W36: Essence_AvGas | X36: l | Y36: 0.535 | Z36: 2.48 | AA36: 3.015 | AB36: 0.00366 | AC36: 0.175 | AD36: 0.841 | AE36: 1.01966
U37: Passagers≤220p_Dmin_3501kmKérosène_Jet_A1_A | V37: Passagers≤220p_Dmin_3501km | W37: Kérosène_Jet_A1_A | X37: l | Y37: 0.532 | Z37: 2.53 | AA37: =Y37+Z37 -> 3.062 | AB37: 0.00261 | AC37: 0.197 | AD37: 0.949 | AE37: 1.14861
U38: Passagers≤220p_Dmin_3501kmCarburéacteur_Jet_B | V38: Passagers≤220p_Dmin_3501km | W38: Carburéacteur_Jet_B | X38: l | Y38: 0.535 | Z38: 2.48 | AA38: =Y38+Z38 -> 3.015 | AB38: 0.00261 | AC38: 0.197 | AD38: 0.949 | AE38: 1.14861
U39: Passagers≤220p_Dmin_3501kmEssence_AvGas | V39: Passagers≤220p_Dmin_3501km | W39: Essence_AvGas | X39: l | Y39: 0.535 | Z39: 2.48 | AA39: 3.015 | AB39: 0.00261 | AC39: 0.197 | AD39: 0.949 | AE39: 1.14861
U40: Passagers_min_221p_D≤3500kmKérosène_Jet_A1_A | V40: Passagers_min_221p_D≤3500km | W40: Kérosène_Jet_A1_A | X40: l | Y40: 0.532 | Z40: 2.53 | AA40: =Y40+Z40 -> 3.062 | AB40: 0.00323 | AC40: 0.167 | AD40: 0.807 | AE40: 0.97723
U41: Passagers_min_221p_D≤3500kmCarburéacteur_Jet_B | V41: Passagers_min_221p_D≤3500km | W41: Carburéacteur_Jet_B | X41: l | Y41: 0.535 | Z41: 2.48 | AA41: =Y41+Z41 -> 3.015 | AB41: 0.00323 | AC41: 0.167 | AD41: 0.807 | AE41: =AB41+AC41+AD41 -> 0.97723
U42: Passagers_min_221p_D≤3500kmEssence_AvGas | V42: Passagers_min_221p_D≤3500km | W42: Essence_AvGas | X42: l | Y42: 0.535 | Z42: 2.48 | AA42: 3.015 | AB42: 0.00323 | AC42: 0.167 | AD42: 0.807 | AE42: 0.97723
U43: Passagers_min_221p_Dmin_3501kmKérosène_Jet_A1_A | V43: Passagers_min_221p_Dmin_3501km | W43: Kérosène_Jet_A1_A | X43: l | Y43: 0.532 | Z43: 2.53 | AA43: =Y43+Z43 -> 3.062 | AB43: 0.00239 | AC43: 0.142 | AD43: 0.686 | AE43: 0.83039
U44: Passagers_min_221p_Dmin_3501kmCarburéacteur_Jet_B | V44: Passagers_min_221p_Dmin_3501km | W44: Carburéacteur_Jet_B | X44: l | Y44: 0.535 | Z44: 2.48 | AA44: =Y44+Z44 -> 3.015 | AB44: 0.00239 | AC44: 0.142 | AD44: 0.686 | AE44: =AB44+AC44+AD44 -> 0.83039
U45: Passagers_min_221p_Dmin_3501kmEssence_AvGas | V45: Passagers_min_221p_Dmin_3501km | W45: Essence_AvGas | X45: l | Y45: 0.535 | Z45: 2.48 | AA45: 3.015 | AB45: 0.00239 | AC45: 0.142 | AD45: 0.686 | AE45: 0.83039
B46: RÉSULTATS | U46: Cargo_capacité≤25tKérosène_Jet_A1_A | V46: Cargo_capacité≤25t | W46: Kérosène_Jet_A1_A | X46: l | Y46: 0.532 | Z46: 2.53 | AA46: =Y46+Z46 -> 3.062 | AB46: 0.00229 | AC46: 0.31 | AD46: 1.59 | AE46: 1.90229
U47: Cargo_capacité≤25tCarburéacteur_Jet_B | V47: Cargo_capacité≤25t | W47: Carburéacteur_Jet_B | X47: l | Y47: 0.535 | Z47: 2.48 | AA47: =Y47+Z47 -> 3.015 | AB47: 0.00229 | AC47: 0.31 | AD47: 1.59 | AE47: 1.90229
B48: Scope 1 : émissions directes de GES | J48: TTW (tank-to-wheel) = émissions "du réservoir à la roue" (combustion) | U48: Cargo_capacité≤25tEssence_AvGas | V48: Cargo_capacité≤25t | W48: Essence_AvGas | X48: l | Y48: 0.535 | Z48: 2.48 | AA48: 3.015 | AB48: 0.00229 | AC48: 0.31 | AD48: 1.59 | AE48: 1.90229
B49: Scope 2 : émissions indirectes de GES issues de l'électricité consommée | J49: WTT (well-to-tank) = émissions "du puits au réservoir" (production de l'énergie en amont) | U49: Cargo_capacité≤100tKérosène_Jet_A1_A | V49: Cargo_capacité≤100t | W49: Kérosène_Jet_A1_A | X49: l | Y49: 0.532 | Z49: 2.53 | AA49: =Y49+Z49 -> 3.062 | AB49: 0.00145 | AC49: 0.306 | AD49: 1.58 | AE49: 1.88745 | AG49: Kérosène_Jet_A1_A | AH49: l
B50: Scope 3 : autres émissions indirectes de GES - incluent les émissions amont de production des carburants et des véhicules ainsi que toutes les émissions du transport externalisé | J50: WTW (well-to-wheel) = émissions "du puits à la roue" (cycle de vie complet de l'énergie) | U50: Cargo_capacité≤100tCarburéacteur_Jet_B | V50: Cargo_capacité≤100t | W50: Carburéacteur_Jet_B | X50: l | Y50: 0.535 | Z50: 2.48 | AA50: =Y50+Z50 -> 3.015 | AB50: 0.00145 | AC50: 0.306 | AD50: 1.58 | AE50: 1.88745 | AG50: Carburéacteur_Jet_B | AH50: l
U51: Cargo_capacité≤100tEssence_AvGas | V51: Cargo_capacité≤100t | W51: Essence_AvGas | X51: l | Y51: 0.535 | Z51: 2.48 | AA51: 3.015 | AB51: 0.00145 | AC51: 0.306 | AD51: 1.58 | AE51: 1.88745 | AG51: Essence_AvGas | AH51: l
U52: Cargo_capacité_sup_100t_D≤1000kmKérosène_Jet_A1_A | V52: Cargo_capacité_sup_100t_D≤1000km | W52: Kérosène_Jet_A1_A | X52: l | Y52: 0.532 | Z52: 2.53 | AA52: =Y52+Z52 -> 3.062 | AB52: 0.00115 | AC52: 0.228 | AD52: 1.17 | AE52: 1.39915
U53: Cargo_capacité_sup_100t_D≤1000kmCarburéacteur_Jet_B | V53: Cargo_capacité_sup_100t_D≤1000km | W53: Carburéacteur_Jet_B | X53: l | Y53: 0.535 | Z53: 2.48 | AA53: =Y53+Z53 -> 3.015 | AB53: 0.00115 | AC53: 0.228 | AD53: 1.17 | AE53: 1.39915
F54: Prestations de transport internalisées | L54: Prestations de transport externalisées | N54: BILAN GLOBAL | U54: Cargo_capacité_sup_100t_D≤1000kmEssence_AvGas | V54: Cargo_capacité_sup_100t_D≤1000km | W54: Essence_AvGas | X54: l | Y54: 0.535 | Z54: 2.48 | AA54: 3.015 | AB54: 0.00115 | AC54: 0.228 | AD54: 1.17 | AE54: 1.39915
F55: Scope 1 | H55: Scope 2 | I55: Scope 3 | U55: Cargo_capacité_sup_100t_D≤3500kmKérosène_Jet_A1_A | V55: Cargo_capacité_sup_100t_D≤3500km | W55: Kérosène_Jet_A1_A | X55: l | Y55: 0.532 | Z55: 2.53 | AA55: =Y55+Z55 -> 3.062 | AB55: 0.00115 | AC55: 0.154 | AD55: 0.796 | AE55: 0.95115
B56: Prestation de transport | C56: Type d'appareil | D56: Type de carburant | E56: (Réservé) | F56: Activité totale de transport internalisée (tkm) | G56: Émissions directes (TTW) de GES (kgCO2e) | H56: Émissions indirectes (WTT) de GES issues de l'électricité consommée (kgCO2e) | I56: Rappel activité totale de transport internalisée (tkm) | J56: Émissions indirectes de GES issues de la fabrication des véhicules (kgCO2e) | K56: Émissions indirectes (WTT) de GES issues du carburant consommé (kgCO2e) | L56: Activité totale de transport externalisée (tkm) | M56: Émissions de GES (WTW + fabrication) (kgCO2e) | N56: Activité totale de transport (tkm) | O56: Émissions de GES (kgCO2e) | P56: Intensité des émissions de GES (kgCO2e/tkm) | U56: Cargo_capacité_sup_100t_D≤3500kmCarburéacteur_Jet_B | V56: Cargo_capacité_sup_100t_D≤3500km | W56: Carburéacteur_Jet_B | X56: l | Y56: 0.535 | Z56: 2.48 | AA56: =Y56+Z56 -> 3.015 | AB56: 0.00115 | AC56: 0.154 | AD56: 0.796 | AE56: =AB56+AC56+AD56 -> 0.95115
B57: =B19 -> 0 | C57: 0 | D57: 0 | E57: 0 | F57: =G19*H19 -> 0 | G57: =IF(OR($C57=0,$D57=0),0,IF($J$17="Oui",$I19*VLOOKUP($C57&$D57,$U$19:$AE$61,6,FALSE),$F57*VLOOKUP($C57&$D57,$U$19:$AE$61,10,FALSE))) -> 0 | H57: =IF($D57<>"Électricité",0,IF($J$17="Oui",$I19*VLOOKUP($C57&$D57,$U$19:$AE$61,5,FALSE),$F57*VLOOKUP($C57&$D57,$U$19:$AE$61,9,FALSE))) -> 0 | I57: =F57 -> 0 | J57: =IF(OR($C57=0,$D57=0),0,$F57*VLOOKUP($C57&$D57,$U$19:$AE$61,8,FALSE)) -> 0 | K57: =IF(OR($C57=0,$D57=0),0,IF($D57="Électricité",0,IF($J$17="Oui",$I19*VLOOKUP($C57&$D57,$U$19:$AE$61,5,FALSE),$F57*VLOOKUP($C57&$D57,$U$19:$AE$61,9,FALSE)))) -> 0 | L57: =K19*L19 -> 0 | M57: =IF(OR($C57=0,$D57=0),0,IF($N$17="Oui",$M19*VLOOKUP($C57&$D57,$U$19:$AE$61,7,FALSE)+$L57*VLOOKUP(C57&D57,$U$19:$AE$61,8,FALSE),$L57*VLOOKUP($C57&$D57,$U$19:$AE$61,11,FALSE))) -> 0 | N57: =I57+L57 -> 0 | O57: =G57+H57+J57+K57+M57 -> 0 | P57: =O57/N57 ->  | U57: Cargo_capacité_sup_100t_D≤3500kmEssence_AvGas | V57: Cargo_capacité_sup_100t_D≤3500km | W57: Essence_AvGas | X57: l | Y57: 0.535 | Z57: 2.48 | AA57: 3.015 | AB57: 0.00115 | AC57: 0.154 | AD57: 0.796 | AE57: 0.95115
B58: 0 | C58: 0 | D58: 0 | E58: 0 | F58: 0 | G58: =IF(OR($C58=0,$D58=0),0,IF($J$17="Oui",$I20*VLOOKUP($C58&$D58,$U$19:$AE$61,6,FALSE),$F58*VLOOKUP($C58&$D58,$U$19:$AE$61,10,FALSE))) -> 0 | H58: 0 | I58: =F58 -> 0 | J58: =IF(OR($C58=0,$D58=0),0,$F58*VLOOKUP($C58&$D58,$U$19:$AE$61,8,FALSE)) -> 0 | K58: =IF(OR($C58=0,$D58=0),0,IF($D58="Électricité",0,IF($J$17="Oui",$I20*VLOOKUP($C58&$D58,$U$19:$AE$61,5,FALSE),$F58*VLOOKUP($C58&$D58,$U$19:$AE$61,9,FALSE)))) -> 0 | L58: 0 | M58: =IF(OR($C58=0,$D58=0),0,IF($N$17="Oui",$M20*VLOOKUP($C58&$D58,$U$19:$AE$61,7,FALSE)+$L58*VLOOKUP(C58&D58,$U$19:$AE$61,8,FALSE),$L58*VLOOKUP($C58&$D58,$U$19:$AE$61,11,FALSE))) -> 0 | N58: =I58+L58 -> 0 | O58: =G58+H58+J58+K58+M58 -> 0 | P58: =O58/N58 ->  | U58: Cargo_capacité_sup_100t_Dmin_3501kmKérosène_Jet_A1_A | V58: Cargo_capacité_sup_100t_Dmin_3501km | W58: Kérosène_Jet_A1_A | X58: l | Y58: 0.532 | Z58: 2.53 | AA58: =Y58+Z58 -> 3.062 | AB58: 0.00115 | AC58: 0.0958 | AD58: 0.494 | AE58: 0.59095
B59: 0 | C59: 0 | D59: 0 | E59: 0 | F59: 0 | G59: 0 | H59: 0 | I59: 0 | J59: 0 | K59: 0 | L59: 0 | M59: 0 | N59: 0 | O59: 0 | U59: Cargo_capacité_sup_100t_Dmin_3501kmCarburéacteur_Jet_B | V59: Cargo_capacité_sup_100t_Dmin_3501km | W59: Carburéacteur_Jet_B | X59: l | Y59: 0.535 | Z59: 2.48 | AA59: =Y59+Z59 -> 3.015 | AB59: 0.00115 | AC59: 0.0958 | AD59: 0.494 | AE59: =AB59+AC59+AD59 -> 0.59095
B60: 0 | C60: 0 | D60: 0 | E60: 0 | F60: 0 | G60: 0 | H60: 0 | I60: 0 | J60: 0 | K60: 0 | L60: 0 | M60: 0 | N60: 0 | O60: 0 | U60: Cargo_capacité_sup_100t_Dmin_3501kmEssence_AvGas | V60: Cargo_capacité_sup_100t_Dmin_3501km | W60: Essence_AvGas | X60: l | Y60: 0.535 | Z60: 2.48 | AA60: 3.015 | AB60: 0.00115 | AC60: 0.0958 | AD60: 0.494 | AE60: 0.59095 | AG60: Oui
B61: 0 | C61: 0 | D61: 0 | E61: 0 | F61: 0 | G61: 0 | H61: 0 | I61: 0 | J61: 0 | K61: 0 | L61: 0 | M61: 0 | N61: 0 | O61: 0 | AG61: Non
B62: 0 | C62: 0 | D62: 0 | E62: 0 | F62: 0 | G62: 0 | H62: 0 | I62: 0 | J62: 0 | K62: 0 | L62: 0 | M62: 0 | N62: 0 | O62: 0
B63: 0 | C63: 0 | D63: 0 | E63: 0 | F63: 0 | G63: 0 | H63: 0 | I63: 0 | J63: 0 | K63: 0 | L63: 0 | M63: 0 | N63: 0 | O63: 0
B64: 0 | C64: 0 | D64: 0 | E64: 0 | F64: 0 | G64: 0 | H64: 0 | I64: 0 | J64: 0 | K64: 0 | L64: 0 | M64: 0 | N64: 0 | O64: 0
B65: 0 | C65: 0 | D65: 0 | E65: 0 | F65: 0 | G65: 0 | H65: 0 | I65: 0 | J65: 0 | K65: 0 | L65: 0 | M65: 0 | N65: 0 | O65: 0
B66: 0 | C66: 0 | D66: 0 | E66: 0 | F66: 0 | G66: 0 | H66: 0 | I66: 0 | J66: 0 | K66: 0 | L66: 0 | M66: 0 | N66: 0 | O66: 0
B67: 0 | C67: 0 | D67: 0 | E67: 0 | F67: 0 | G67: 0 | H67: 0 | I67: 0 | J67: 0 | K67: 0 | L67: 0 | M67: 0 | N67: 0 | O67: 0
B68: 0 | C68: 0 | D68: 0 | E68: 0 | F68: 0 | G68: 0 | H68: 0 | I68: 0 | J68: 0 | K68: 0 | L68: 0 | M68: 0 | N68: 0 | O68: 0
B69: 0 | C69: 0 | D69: 0 | E69: 0 | F69: 0 | G69: 0 | H69: 0 | I69: 0 | J69: 0 | K69: 0 | L69: 0 | M69: 0 | N69: 0 | O69: 0
B70: 0 | C70: 0 | D70: 0 | E70: 0 | F70: 0 | G70: 0 | H70: 0 | I70: 0 | J70: 0 | K70: 0 | L70: 0 | M70: 0 | N70: 0 | O70: 0
B71: 0 | C71: 0 | D71: 0 | E71: 0 | F71: 0 | G71: 0 | H71: 0 | I71: 0 | J71: 0 | K71: 0 | L71: 0 | M71: 0 | N71: 0 | O71: 0
B72: 0 | C72: 0 | D72: 0 | E72: 0 | F72: 0 | G72: 0 | H72: 0 | I72: 0 | J72: 0 | K72: 0 | L72: 0 | M72: 0 | N72: 0 | O72: 0
B73: 0 | C73: 0 | D73: 0 | E73: 0 | F73: 0 | G73: 0 | H73: 0 | I73: 0 | J73: 0 | K73: 0 | L73: 0 | M73: 0 | N73: 0 | O73: 0
B74: 0 | C74: 0 | D74: 0 | E74: 0 | F74: 0 | G74: 0 | H74: 0 | I74: 0 | J74: 0 | K74: 0 | L74: 0 | M74: 0 | N74: 0 | O74: 0
B75: 0 | C75: 0 | D75: 0 | E75: 0 | F75: 0 | G75: 0 | H75: 0 | I75: 0 | J75: 0 | K75: 0 | L75: 0 | M75: 0 | N75: 0 | O75: 0
B76: 0 | C76: 0 | D76: 0 | E76: 0 | F76: 0 | G76: 0 | H76: 0 | I76: 0 | J76: 0 | K76: 0 | L76: 0 | M76: 0 | N76: 0 | O76: 0
B77: 0 | C77: 0 | D77: 0 | E77: 0 | F77: 0 | G77: 0 | H77: 0 | I77: 0 | J77: 0 | K77: 0 | L77: 0 | M77: 0 | N77: 0 | O77: 0
B78: 0 | C78: 0 | D78: 0 | E78: 0 | F78: 0 | G78: 0 | H78: 0 | I78: 0 | J78: 0 | K78: 0 | L78: 0 | M78: 0 | N78: 0 | O78: 0
B79: 0 | C79: 0 | D79: 0 | E79: 0 | F79: 0 | G79: 0 | H79: 0 | I79: 0 | J79: 0 | K79: 0 | L79: 0 | M79: 0 | N79: 0 | O79: 0
B80: 0 | C80: 0 | D80: 0 | E80: 0 | F80: 0 | G80: 0 | H80: 0 | I80: 0 | J80: 0 | K80: 0 | L80: 0 | M80: 0 | N80: 0 | O80: 0
B81: 0 | C81: 0 | D81: 0 | E81: 0 | F81: 0 | G81: 0 | H81: 0 | I81: 0 | J81: 0 | K81: 0 | L81: 0 | M81: 0 | N81: 0 | O81: 0
B82: =B44 -> 0 | C82: 0 | D82: 0 | E82: 0 | F82: 0 | G82: 0 | H82: 0 | I82: 0 | J82: 0 | K82: 0 | L82: 0 | M82: 0 | N82: 0 | O82: 0
B84: TOTAL | F84: =SUM(F57:F82) -> 0 | G84: 0 | H84: 0 | I84: 0 | J84: 0 | K84: 0 | L84: 0 | M84: 0 | N84: 0 | O84: 0 | P84: =O84/N84 -> 

Sheet 0_SYNTHESE
D2: SYNTHESE
B8: SYNTHÈSE
B10: Les cellules sont automatiquement complétées et ne sont pas modifiables manuellement. Pour apporter des modifications, se reporter aux onglets concernés.
B12: Raison sociale du titulaire : | C12: =IF(NOT(ISBLANK('1_Infos générales'!C9)), '1_Infos générales'!$C$9, "A renseigner") -> A renseigner
B14: Adresse du titulaire : | C14: ='1_Infos générales'!$C$11:$J$11 -> (Adresse)
C15: ='1_Infos générales'!$C$12:$J$12 -> (complément d'adresse)
C16: ='1_Infos générales'!$C$13:$J$13 -> (code postal, ville et pays)
B18: Période de référence : | C18: ='1_Infos générales'!C15 -> Année
B20: Couverture de la déclaration : | C20: =IF('1_Infos générales'!J18>0, '1_Infos générales'!J18, "A renseigner") -> A renseigner | D20: Chaîne d'approvisionnement (Logistique amont)
C21: =IF('1_Infos générales'!J19>0, '1_Infos générales'!J19>0, "A renseigner") -> A renseigner | D21: Activités de transport intégrées dans les prestations de services logistiques mobilisées par le marché (Logistique intermédiaire)
C22: =IF('1_Infos générales'!J20>0, '1_Infos générales'!J20>0, "A renseigner") -> A renseigner | D22: Activités de livraison par les transporteurs finaux (Logistique aval)
B24: TOTAL DES ÉMISSIONS DE GAZ À EFFET DE SERRE : | F24: ='2_Routier carburant'!$J$16+'2_Routier tkm'!$K$16+'3_Ferroviaire tkm'!$K$16+'3_Ferroviaire carburant'!$J$16+'4_Fluvial tkm'!$K$16+'4_Fluvial carburant'!$J$16+'5_Maritime tkm'!$K$16+'5_Maritime carburant'!$J$16+'6_Aérien tkm'!$K$16+'6_Aérien carburant'!$J$16 -> 0 | G24: kgCO2e
B26: Scope 1 : émissions directes de GES | F26: ='2_Routier'!G84+'3_Ferroviaire'!G84+'4_Fluvial'!G84+'5_Maritime'!G84+'6_Aerien'!G84+#REF! ->  | G26: kgCO2e
B27: Scope 2 : émissions indirectes de GES issues de l'électricité consommée | F27: ='2_Routier'!H84+'3_Ferroviaire'!H84+'4_Fluvial'!H84+'5_Maritime'!H84+'6_Aerien'!H84+#REF! ->  | G27: kgCO2e
B28: Scope 3 : autres émissions indirectes de GES, dont
B29: - les émissions amont de production des carburants
B30: - les émissions amont de production des véhicules
B31: Scope 2 : émissions indirectes de GES issues de l'électricité consommée | F31: ='2_Routier'!H88+'3_Ferroviaire'!H88+'4_Fluvial'!H88+'5_Maritime'!H88+'6_Aerien'!H88+#REF! ->  | G31: kgCO2e
B33: INTENSITÉ TOTALE DES ÉMISSIONS DE GAZ À EFFET DE SERRE | F33: =F24/('2_Routier'!N84+'3_Ferroviaire'!N84+'4_Fluvial'!N84+'5_Maritime'!N84+'6_Aerien'!N84) -> 0 | G33: kgCO2e/tkm | H33: (hors sites logistiques)
B35: Répartition des émissions de GES
B37: Élément de la chaîne de transport / mode de transport | E37: Émissions de GES (kgCO2e) | F37: % du total d'émissions de GES | G37: Type de données
B38: Routier | E38: ='2_Routier tkm'!$K$16+'2_Routier carburant'!$J$16 -> 0 | F38: =IF(F24=0,0,$E38/$F$24) -> 0 | G38: =IF('2_Routier tkm'!K16 > 0, "Tonnes kilométriques", IF('2_Routier carburant'!J16 > 0, "Carburant consommé", "Aucune")) -> Aucune
B39: Ferroviaire | E39: ='3_Ferroviaire tkm'!$K$16+'3_Ferroviaire carburant'!$J$16 -> 0 | F39: =IF(F24=0,0,$E39/$F$24) -> 0 | G39: =IF('3_Ferroviaire tkm'!K16 > 0, "Tonnes kilométriques", IF('3_Ferroviaire carburant'!J16 > 0, "Carburant consommé", "Aucune")) -> Aucune
B40: Fluvial | E40: ='4_Fluvial tkm'!$K$16+'4_Fluvial carburant'!$J$16 -> 0 | F40: =IF(F24=0,0,$E40/$F$24) -> 0 | G40: =IF('4_Fluvial tkm'!K16 > 0, "Tonnes kilométriques", IF('4_Fluvial carburant'!J16 > 0, "Carburant consommé", "Aucune")) -> Aucune
B41: Maritime | E41: ='5_Maritime tkm'!$K$16+'5_Maritime carburant'!$J$16 -> 0 | F41: =IF(F24=0,0,$E41/$F$24) -> 0 | G41: =IF('5_Maritime tkm'!K16 > 0, "Tonnes kilométriques", IF('5_Maritime carburant'!J16 > 0, "Carburant consommé", "Aucune")) -> Aucune
B42: Aérien | E42: ='6_Aérien tkm'!$K$16+'6_Aérien carburant'!$J$16 -> 0 | F42: =IF(F24=0,0,$E42/$F$24) -> 0 | G42: =IF('6_Aérien tkm'!K16 > 0, "Tonnes kilométriques", IF('6_Aérien carburant'!J16 > 0, "Carburant consommé", "Aucune")) -> Aucune
B44: Vérification des données par un tiers indépendant ?
C46: =IF('1_Infos générales'!$C$25>0, '1_Infos générales'!$C$25, "A renseigner") -> A renseigner
C48: Raison sociale du tiers indépendant et référentiel méthodologique appliqué pour la vérification :
C49: =IF(ISBLANK('1_Infos générales'!$C$28:$J$28),"",'1_Infos générales'!$C$28:$J$28) -> 

Sheet Lexique
B1: LEXIQUE
A12: Références listes | B12: Signification
A14: Routier
A15: Véhicule_utilitaire_léger_VUL_PTAC≤3,5t | B15: Véhicule utilitaire léger de poids total autorisé en charge (PTAC) maximal de 3,5 tonnes
A16: Camion_rigide_PL_PTAC≤7,5t | B16: Camion porteur rigide de PTAC compris entre 3,6 et 7,5 tonnes
A17: Camion_rigide_PL_PTAC≤12t | B17: Camion porteur rigide de PTAC compris entre 7,6 et 12 tonnes
A18: Camion_rigide_PL_PTAC≤20t | B18: Camion porteur rigide de PTAC compris entre 13 et 20 tonnes
A19: Camion_rigide_PL_PTAC≤26t | B19: Camion porteur rigide de PTAC compris entre 21 et 26 tonnes
A20: Camion_rigide_PL_PTAC≤32t | B20: Camion porteur rigide de PTAC compris entre 27 et 32 tonnes
A21: Ensemble_articulé_PL_PTRA≤34t | B21: Ensemble routier de poids total roulant autorisé (PTRA) maximal de 34 tonnes
A22: Ensemble_articulé_PL_PTRA≤40t | B22: Ensemble routier de PTRA compris entre 35 et 40 tonnes
A23: Ensemble_articulé_PL_PTRA≤44t | B23: Ensemble routier de PTRA compris entre 41 et 44 tonnes
A24: Ensemble_articulé_PL_PTRA≤60t | B24: Ensemble routier de PTRA compris entre 45 et 60 tonnes
A25: Ensemble_articulé_PL_PTRA≤72t | B25: Ensemble routier de PTRA compris entre 61 et 72 tonnes
A26: Vélo | B26: Vélo sans assistance électrique, y compris à remorque ou vélo-cargo
A27: Vélo_électrique | B27: Vélo avec assistance électrique, y compris à remorque ou vélo-cargo
A29: Ferroviaire
A30: Mixte_Basse_densité | B30: Chargement mixte de densité inférieure ou égale à 249 kg/m3
A31: Mixte_Moyenne_densité | B31: Chargement mixte de densité comprise entre 250 et 399 kg/m3
A32: Mixte_Densité_élevée | B32: Chargement mixte de densité supérieure ou égale à 400 kg/m3
A33: Conteneur | B33: Chargement spécifique conteneur
A34: Automobiles | B34: Chargement spécifique automobiles
A35: Produits_chimiques | B35: Chargement spécifique produits chimiques
A36: Charbon_Acier | B36: Chargement spécifique charbon et acier
A37: Matériels_Matériaux_Construction | B37: Chargement spécifique matériels et matériaux de construction
A38: Produits_manufacturés | B38: Chargement divers produits manufacturés
A39: Céréales | B39: Chargement spécifique céréales
A40: Ensemble_articulé_camion_remorque | B40: Chargement spécifique camion + remorque à bord
A41: Remorque_seule | B41: Chargement spécifique remorque seule à bord
A43: Fluvial
A44: Bateau_motorisé_capacité≤399tpl | B44: Bateau automoteur de capacité inférieure ou égale à 399 tonnes de port en lourd
A45: Bateau_motorisé_capacité≤649tpl | B45: Bateau automoteur de capacité comprise entre 400 et 649 tonnes de port en lourd
A46: Bateau_motorisé_capacité≤999tpl | B46: Bateau automoteur de capacité comprise entre 650 et 999 tonnes de port en lourd
A47: Bateau_motorisé_capacité≤1499tpl | B47: Bateau automoteur de capacité comprise entre 1000 et 1499 tonnes de port en lourd
A48: Bateau_motorisé_capacité≤2999tpl | B48: Bateau automoteur de capacité comprise entre 1500 et 2999 tonnes de port en lourd
A49: Bateau_motorisé_capacité_sup_3000tpl | B49: Bateau automoteur de capacité supérieure ou égale à 3000 tonnes de port en lourd
A50: Pousseur_avec_barge_P≤879kW | B50: Bateau pousseur avec barge de puissance inférieure ou égale à 879 kilowatts
A51: Pousseur_avec_barge_Pmin_880kW | B51: Bateau pousseur avec barge de puissance supérieure ou égale à 880 kilowatts
A53: Maritime
A54: Pétrolier_capacité≤5000tpl | B54: Pétrolier de capacité inférieure ou égale à 5000 tonnes de port en lourd
A55: Pétrolier_capacité≤60000tpl | B55: Pétrolier de capacité comprise entre 5001 et 60000 tonnes de port en lourd
A56: Pétrolier_capacité≤200000tpl | B56: Pétrolier de capacité comprise entre 60001 et 200000 tonnes de port en lourd
A57: Pétrolier_capacité_sup_200000tpl | B57: Pétrolier de capacité strictement supérieure à 200000 tonnes de port en lourd
A58: Cargo_divers_capacité≤10000tpl | B58: Cargo de marchandises diverses de capacité inférieure ou égale à 10000 tonnes de port en lourd
A59: Cargo_divers_capacité≤20000tpl | B59: Cargo de marchandises diverses de capacité comprise entre 10001 et 20000 tonnes de port en lourd
A60: Vraquier_capacité≤10000tpl | B60: Vraquier de capacité inférieure ou égale à 10000 tonnes de port en lourd
A61: Vraquier_capacité≤100000tpl | B61: Vraquier de capacité comprise entre 10001 et 100000 tonnes de port en lourd
A62: Vraquier_capacité_sup_100000tpl | B62: Vraquier de capacité strictement supérieure à 100000 tonnes de port en lourd
A63: Roulier_mixte_RoPax | B63: Roulier mixte "Ro-Pax"
A64: Roulier_RoRo_Moyen | B64: Roulier "Ro-Ro" moyenne, marchandises uniquement
A65: Roulier_RoRo_Camions_Remorques | B65: Roulier "Ro-Ro" camion + remorque à bord
A66: Roulier_RoRo_Remorques_seules | B66: Roulier "Ro-Ro" remorque seule à bord
A67: Porte_conteneur_Panama_commercial | B67: Porte-conteneur - Ligne commerciale Panama
A68: Porte_conteneur_Transatlantique | B68: Porte-conteneur - Ligne commerciale transatlantique
A69: Porte_conteneur_Trans-Suez | B69: Porte-conteneur - Ligne commerciale trans-Suez
A70: Porte_conteneur_Transpacifique | B70: Porte-conteneur - Ligne commerciale transpacifique
A71: Porte_conteneur_autres_liaisons | B71: Porte-conteneur - Autres lignes commerciales majeures
A73: Aérien
A74: Passagers≤50p_D≤1000km | B74: Avion mixte passagers-fret de 50 sièges max pour une distance inférieure ou égale à 1000 km
A75: Passagers≤50p_D≤3500km | B75: Avion mixte passagers-fret de 50 sièges max pour une distance comprise entre 1001 et 3500 km
A76: Passagers≤100p_D≤1000km | B76: Avion mixte passagers-fret de 51 à 100 sièges pour une distance inférieure ou égale à 1000 km
A77: Passagers≤100p_D≤3500km | B77: Avion mixte passagers-fret de 51 à 100 sièges max pour une distance comprise entre 1001 et 3500 km
A78: Passagers≤220p_D≤1000km | B78: Avion mixte passagers-fret de 101 à 220 sièges pour une distance inférieure ou égale à 1000 km
A79: Passagers≤220p_D≤3500km | B79: Avion mixte passagers-fret de 101 à 220 sièges pour une distance comprise entre 1001 et 3500 km
A80: Passagers≤220p_Dmin_3501km | B80: Avion mixte passagers-fret de 101 à 220 sièges pour une distance strictement supérieure à 3500 km
A81: Passagers_min_221p_D≤3500km | B81: Avion mixte passagers-fret de plus de 220 sièges pour une distance inférieure ou égale à 3500 km
A82: Passagers_min_221p_Dmin_3501km | B82: Avion mixte passagers-fret de plus de 220 sièges pour une distance strictement supérieure à 3500 km
A83: Cargo_capacité≤25t | B83: Avion cargo uniquement de capacité inférieure ou égale à 25 tonnes
A84: Cargo_capacité≤100t | B84: Avion cargo uniquement de capacité comprise entre 26 et 100 tonnes
A85: Cargo_capacité_sup_100t_D≤1000km | B85: Avion cargo uniquement de capacité strictement supérieure à 100 tonnes pour une distance inférieure ou égale à 1000 km
A86: Cargo_capacité_sup_100t_D≤3500km | B86: Avion cargo uniquement de capacité strictement supérieure à 100 tonnes pour une distance comprise entre 1001 et 3500 km
A87: Cargo_capacité_sup_100t_Dmin_3501km | B87: Avion cargo uniquement de capacité strictement supérieure à 100 tonnes pour une distance strictement supérieure à 3500 km
A89: Sites logistiques
A90: Transbordement | B90: Site uniquement de transbordement (manipulation d'une marchandise pour passer d'un mode/moyen de transport à un autre)
A91: Stockage_transbordement | B91: Site proposant des installations de stockage et de transbordement

Sheet 1_Infos_generales_OLD (hidden)
B2: DÉCLARATION DES ÉMISSIONS DE GAZ À EFFET DE SERRE GÉNÉRÉES PAR LES PRESTATIONS DE TRANSPORT MOBILISÉES DANS LE MARCHÉ
B4: INFORMATIONS GÉNÉRALES
B6: Le titulaire est invité à renseigner les cellules jaunes
B8: Raison sociale du titulaire
B10: Adresse du titulaire | C10: (numéro et rue)
C11: (complément d'adresse)
C12: (code postal et ville)
B14: Période de référence | C14: Année 2023
B16: Couverture de la déclaration | C16: Sélectionner
D17: Services de transport payés (amont du fournisseur) | H17: Oui
D18: Toutes les activités de transport intégrées dans les prestations de services logistiques mobilisées par le marché (aval du fournisseur) | H18: Non
D19: Uniquement l'activité de transport fournie par les transporteurs finaux (aval du fournisseur)
D20: Émissions provenant des sites logistiques
B22: Vérification des données par un tiers indépendant ?
C24: Sélectionner
C27: Si oui, préciser la raison sociale du tiers indépendant et le référentiel méthodologique appliqué pour la vérification

Sheet Routier_v1 (hidden)
E8: Prestations de transport internalisées | J8: Prestations de transport externalisées
E9: Informations sur le parc de véhicules routiers détenus en flotte propre | H9: Données primaires? | I9: Oui | J9: Informations sur l'activité externalisée | L9: Données primaires? | M9: Oui
B10: Type de véhicule | C10: Type de carburant | D10: Transport sous température dirigée? | E10: Nombre de véhicules | F10: Distance totale cumulée (km) | G10: Masse totale de marchandises transportées (t) | H10: Quantité totale d'énergie consommée | I10: Unité | J10: Distance totale cumulée (km) | K10: Masse totale de marchandises transportées (t) | L10: Quantité totale d'énergie consommée | M10: Unité | U10: Type de véhicule | V10: Type de carburant | W10: Unité | X10: Facteur d'émission (WTT) (kgCO2e/unité) | Y10: Facteur d'émission (TTW) (kgCO2e/unité) | Z10: Facteur d'émission (WTW) (kgCO2e/unité) | AA10: Intensité des émissions issues de la fabrication (kgCO2e/tkm) | AB10: Intensité des émissions WTT de GES (kgCO2e/tkm) | AC10: Intensité des émissions TTW de GES (kgCO2e/tkm) | AD10: Intensité des émissions de GES (WTW + fabrication) (kgCO2e/tkm)
B11: Véhicule utilitaire léger (VUL) - PTAC ≤ 3,5 t | C11: Gazole | D11: Non | F11: 2800 | G11: 26 | H11: 1420 | I11: l | J11: 3200 | K11: 50 | L11: 1500 | M11: l | T11: =U11&V11 -> Véhicule utilitaire léger (VUL) - PTAC ≤ 3,5 tGazole | U11: Véhicule utilitaire léger (VUL) - PTAC ≤ 3,5 t | V11: Gazole | W11: l | X11: 0.609 | Y11: 2.49 | Z11: =X11+Y11 -> 3.099 | AA11: 0.153 | AB11: 0.132 | AC11: 0.541 | AD11: =AA11+AB11+AC11 -> 0.826
B12: Véhicule utilitaire léger (VUL) - PTAC ≤ 3,5 t | C12: Essence | D12: Oui | F12: 2800 | G12: 26 | H12: 1420 | I12: l | J12: 3200 | K12: 50 | L12: 1500 | M12: l | T12: =U12&V12 -> Véhicule utilitaire léger (VUL) - PTAC ≤ 3,5 tEssence | U12: Véhicule utilitaire léger (VUL) - PTAC ≤ 3,5 t | V12: Essence | W12: l | X12: 0.494 | Y12: 2.2 | Z12: =X12+Y12 -> 2.694 | AA12: 0.153 | AB12: 0.16 | AC12: 0.85 | AD12: =AA12+AB12+AC12 -> 1.163
B13: Véhicule utilitaire léger (VUL) - PTAC ≤ 3,5 t | C13: Gaz naturel comprimé (GNC) | I13: kg | M13: kg | T13: Véhicule utilitaire léger (VUL) - PTAC ≤ 3,5 tGaz naturel comprimé (GNC) | U13: Véhicule utilitaire léger (VUL) - PTAC ≤ 3,5 t | V13: Gaz naturel comprimé (GNC) | W13: kg | X13: 0.55 | Y13: 2.41 | Z13: 2.96 | AA13: 0.153 | AB13: 0.08 | AC13: 0.54 | AD13: 0.773
B14: Véhicule utilitaire léger (VUL) - PTAC ≤ 3,5 t | C14: Gaz de pétrole liquéfié (GPL) | I14: l | M14: l | T14: Véhicule utilitaire léger (VUL) - PTAC ≤ 3,5 tGaz de pétrole liquéfié (GPL) | U14: Véhicule utilitaire léger (VUL) - PTAC ≤ 3,5 t | V14: Gaz de pétrole liquéfié (GPL) | W14: l | X14: 0.262 | Y14: 1.6 | Z14: 1.862 | AA14: 0.153 | AB14: 0.07 | AC14: 0.59 | AD14: 0.813
B15: Véhicule utilitaire léger (VUL) - PTAC ≤ 3,5 t | C15: Électricité | D15: Non | F15: 2800 | G15: 26 | H15: 153 | I15: kWh | J15: 3200 | K15: 50 | L15: 294 | M15: kWh | T15: Véhicule utilitaire léger (VUL) - PTAC ≤ 3,5 tÉlectricité | U15: Véhicule utilitaire léger (VUL) - PTAC ≤ 3,5 t | V15: Électricité | W15: kWh | X15: 0.0567 | Y15: 0 | Z15: 0.0567 | AA15: 0.153 | AB15: =1.1*X15 -> 0.06237 | AC15: 0 | AD15: 0.21537
B16: Véhicule utilitaire léger (VUL) - PTAC ≤ 3,5 t | C16: Hydrogène | I16: kg | M16: kg | T16: Véhicule utilitaire léger (VUL) - PTAC ≤ 3,5 tHydrogène | U16: Véhicule utilitaire léger (VUL) - PTAC ≤ 3,5 t | V16: Hydrogène | W16: kg | X16: 13.7 | Y16: 0 | Z16: 13.7 | AA16: 0.0883 | AB16: 0.303 | AC16: 0 | AD16: 0.3913
B17: Camion rigide (PL) - 3,5 t < PTAC ≤ 7,5 t | C17: Gazole | I17: l | M17: l | T17: Camion rigide (PL) - 3,5 t < PTAC ≤ 7,5 tGazole | U17: Camion rigide (PL) - 3,5 t < PTAC ≤ 7,5 t | V17: Gazole | W17: l | X17: 0.609 | Y17: 2.49 | Z17: 3.099 | AA17: 0.0113 | AB17: 0.0719 | AC17: 0.294 | AD17: 0.3772
B18: Camion rigide (PL) - 3,5 t < PTAC ≤ 7,5 t | C18: Gaz naturel comprimé (GNC) | I18: kg | M18: kg | T18: Camion rigide (PL) - 3,5 t < PTAC ≤ 7,5 tGaz naturel comprimé (GNC) | U18: Camion rigide (PL) - 3,5 t < PTAC ≤ 7,5 t | V18: Gaz naturel comprimé (GNC) | W18: kg | X18: 0.55 | Y18: 2.41 | Z18: 2.96 | AA18: 0.0113 | AB18: 0.045 | AC18: 0.31 | AD18: 0.3663
B19: Camion rigide (PL) - 3,5 t < PTAC ≤ 7,5 t | C19: Hybride électricité-gazole | I19: l | M19: l | T19: Camion rigide (PL) - 3,5 t < PTAC ≤ 7,5 tHybride électricité-gazole | U19: Camion rigide (PL) - 3,5 t < PTAC ≤ 7,5 t | V19: Hybride électricité-gazole | W19: l | X19: 0.548 | Y19: 2.24 | Z19: 2.788 | AA19: 0.0113 | AB19: 0.0475 | AC19: 0.24 | AD19: 0.2988
B20: Camion rigide (PL) - 3,5 t < PTAC ≤ 7,5 t | C20: Électricité | I20: kWh | M20: kWh | T20: Camion rigide (PL) - 3,5 t < PTAC ≤ 7,5 tÉlectricité | U20: Camion rigide (PL) - 3,5 t < PTAC ≤ 7,5 t | V20: Électricité | W20: kWh | X20: 0.0567 | Y20: 0 | Z20: 0.0567 | AA20: 0.0113 | AB20: 0.0467 | AC20: 0 | AD20: 0.058
B21: Camion rigide (PL) - 7,5 t < PTAC ≤ 12 t | C21: Gazole | I21: l | M21: l | T21: Camion rigide (PL) - 7,5 t < PTAC ≤ 12 tGazole | U21: Camion rigide (PL) - 7,5 t < PTAC ≤ 12 t | V21: Gazole | W21: l | X21: 0.609 | Y21: 2.49 | Z21: 3.099 | AA21: 0.0097 | AB21: 0.0455 | AC21: 0.186 | AD21: 0.2412
B22: Camion rigide (PL) - 7,5 t < PTAC ≤ 12 t | C22: Gaz naturel comprimé (GNC) | I22: kg | M22: kg | T22: Camion rigide (PL) - 7,5 t < PTAC ≤ 12 tGaz naturel comprimé (GNC) | U22: Camion rigide (PL) - 7,5 t < PTAC ≤ 12 t | V22: Gaz naturel comprimé (GNC) | W22: kg | X22: 0.55 | Y22: 2.41 | Z22: 2.96 | AA22: 0.0097 | AB22: 0.028 | AC22: 0.19 | AD22: 0.2277
B23: Camion rigide (PL) - 12 t < PTAC ≤ 20 t | C23: Gazole | I23: l | M23: l | T23: Camion rigide (PL) - 12 t < PTAC ≤ 20 tGazole | U23: Camion rigide (PL) - 12 t < PTAC ≤ 20 t | V23: Gazole | W23: l | X23: 0.609 | Y23: 2.49 | Z23: 3.099 | AA23: 0.0105 | AB23: 0.0293 | AC23: 0.12 | AD23: 0.1598
B24: Camion rigide (PL) - 12 t < PTAC ≤ 20 t | C24: Gaz naturel comprimé (GNC) | I24: kg | M24: kg | T24: Camion rigide (PL) - 12 t < PTAC ≤ 20 tGaz naturel comprimé (GNC) | U24: Camion rigide (PL) - 12 t < PTAC ≤ 20 t | V24: Gaz naturel comprimé (GNC) | W24: kg | X24: 0.55 | Y24: 2.41 | Z24: 2.96 | AA24: 0.0105 | AB24: 0.015 | AC24: 0.13 | AD24: 0.1555
B25: Camion rigide (PL) - 12 t < PTAC ≤ 20 t | C25: Gaz naturel liquéfié (GNL) | I25: kg | M25: kg | T25: Camion rigide (PL) - 12 t < PTAC ≤ 20 tGaz naturel liquéfié (GNL) | U25: Camion rigide (PL) - 12 t < PTAC ≤ 20 t | V25: Gaz naturel liquéfié (GNL) | W25: kg | X25: 0.697 | Y25: 2.58 | Z25: 3.277 | AA25: 0.0105 | AB25: 0.046 | AC25: 0.13 | AD25: 0.1865
B26: Camion rigide (PL) - 20 t < PTAC ≤ 26 t | C26: Gazole | I26: l | M26: l | T26: Camion rigide (PL) - 20 t < PTAC ≤ 26 tGazole | U26: Camion rigide (PL) - 20 t < PTAC ≤ 26 t | V26: Gazole | W26: l | X26: 0.609 | Y26: 2.49 | Z26: 3.099 | AA26: 0.0113 | AB26: 0.0242 | AC26: 0.0991 | AD26: 0.1346
B27: Camion rigide (PL) - 20 t < PTAC ≤ 26 t | C27: Gaz naturel comprimé (GNC) | I27: kg | M27: kg | T27: Camion rigide (PL) - 20 t < PTAC ≤ 26 tGaz naturel comprimé (GNC) | U27: Camion rigide (PL) - 20 t < PTAC ≤ 26 t | V27: Gaz naturel comprimé (GNC) | W27: kg | X27: 0.55 | Y27: 2.41 | Z27: 2.96 | AA27: 0.0113 | AB27: 0.015 | AC27: 0.12 | AD27: 0.1463
B28: Camion rigide (PL) - 20 t < PTAC ≤ 26 t | C28: Gaz naturel liquéfié (GNL) | I28: kg | M28: kg | T28: Camion rigide (PL) - 20 t < PTAC ≤ 26 tGaz naturel liquéfié (GNL) | U28: Camion rigide (PL) - 20 t < PTAC ≤ 26 t | V28: Gaz naturel liquéfié (GNL) | W28: kg | X28: 0.697 | Y28: 2.58 | Z28: 3.277 | AA28: 0.0113 | AB28: 0.036 | AC28: 0.14 | AD28: 0.1873
B29: Camion rigide (PL) - 26 t < PTAC ≤ 32 t | C29: Gazole | I29: l | M29: l | T29: Camion rigide (PL) - 26 t < PTAC ≤ 32 tGazole | U29: Camion rigide (PL) - 26 t < PTAC ≤ 32 t | V29: Gazole | W29: l | X29: 0.609 | Y29: 2.49 | Z29: 3.099 | AA29: 0.008 | AB29: 0.0191 | AC29: 0.0781 | AD29: 0.1052
B30: Ensemble articulé (PL) - PTRA ≤ 34 t | C30: Gazole | I30: l | M30: l | T30: Ensemble articulé (PL) - PTRA ≤ 34 tGazole | U30: Ensemble articulé (PL) - PTRA ≤ 34 t | V30: Gazole | W30: l | X30: 0.609 | Y30: 2.49 | Z30: 3.099 | AA30: 0.0037 | AB30: 0.0176 | AC30: 0.064 | AD30: 0.0853
B31: Ensemble articulé (PL) - 34 t < PTRA ≤ 40 t | C31: Gazole | I31: l | M31: l | T31: Ensemble articulé (PL) - 34 t < PTRA ≤ 40 tGazole | U31: Ensemble articulé (PL) - 34 t < PTRA ≤ 40 t | V31: Gazole | W31: l | X31: 0.609 | Y31: 2.49 | Z31: 3.099 | AA31: 0.0038 | AB31: 0.0154 | AC31: 0.0631 | AD31: 0.0823
B32: Ensemble articulé (PL) - 34 t < PTRA ≤ 40 t | C32: Gaz naturel comprimé (GNC) | I32: kg | M32: kg | T32: Ensemble articulé (PL) - 34 t < PTRA ≤ 40 tGaz naturel comprimé (GNC) | U32: Ensemble articulé (PL) - 34 t < PTRA ≤ 40 t | V32: Gaz naturel comprimé (GNC) | W32: kg | X32: 0.55 | Y32: 2.41 | Z32: 2.96 | AA32: 0.0038 | AB32: 0.01 | AC32: 0.066 | AD32: 0.0798
B33: Ensemble articulé (PL) - 34 t < PTRA ≤ 40 t | C33: Gaz naturel liquéfié (GNL) | I33: kg | M33: kg | T33: Ensemble articulé (PL) - 34 t < PTRA ≤ 40 tGaz naturel liquéfié (GNL) | U33: Ensemble articulé (PL) - 34 t < PTRA ≤ 40 t | V33: Gaz naturel liquéfié (GNL) | W33: kg | X33: 0.697 | Y33: 2.58 | Z33: 3.277 | AA33: 0.0038 | AB33: 0.023 | AC33: 0.065 | AD33: 0.0918
B34: Ensemble articulé (PL) - 40 t < PTRA ≤ 44 t | C34: Gazole | I34: l | M34: l | T34: Ensemble articulé (PL) - 40 t < PTRA ≤ 44 tGazole | U34: Ensemble articulé (PL) - 40 t < PTRA ≤ 44 t | V34: Gazole | W34: l | X34: 0.609 | Y34: 2.49 | Z34: 3.099 | AA34: 0.0038 | AB34: 0.0132 | AC34: 0.0541 | AD34: 0.0711
B35: Ensemble articulé (PL) - 44 t < PTRA ≤ 60 t | C35: Gazole | I35: l | M35: l | T35: Ensemble articulé (PL) - 44 t < PTRA ≤ 60 tGazole | U35: Ensemble articulé (PL) - 44 t < PTRA ≤ 60 t | V35: Gazole | W35: l | X35: 0.609 | Y35: 2.49 | Z35: 3.099 | AA35: 0.0039 | AB35: 0.0125 | AC35: 0.0511 | AD35: 0.0675
B36: Ensemble articulé (PL) - 60 t < PTRA ≤ 72 t | C36: Gazole | I36: l | M36: l | T36: Ensemble articulé (PL) - 60 t < PTRA ≤ 72 tGazole | U36: Ensemble articulé (PL) - 60 t < PTRA ≤ 72 t | V36: Gazole | W36: l | X36: 0.609 | Y36: 2.49 | Z36: 3.099 | AA36: 0.004 | AB36: 0.0125 | AC36: 0.0511 | AD36: 0.0676
E40: Prestations de transport internalisées | K40: Prestations de transport externalisées | M40: BILAN GLOBAL
E41: Scope 1 | G41: Scope 2 | H41: Scope 3
B42: Type de véhicule | C42: Type de carburant | D42: Transport sous température dirigée? | E42: Activité totale de transport internalisée (tkm) | F42: Émissions directes (TTW) de GES (kgCO2e) | G42: Émissions indirectes (WTT) de GES issues de l'électricité consommée (kgCO2e) | H42: Rappel activité totale de transport internalisée (tkm) | I42: Émissions indirectes de GES issues de la fabrication des véhicules (kgCO2e) | J42: Émissions indirectes (WTT) de GES issues du carburant consommé (kgCO2e) | K42: Activité totale de transport externalisée (tkm) | L42: Émissions de GES (WTW + fabrication) (kgCO2e) | M42: Activité totale de transport (tkm) | N42: Émissions de GES (kgCO2e) | O42: Intensité des émissions de GES (kgCO2e/tkm)
B43: =B11 -> Véhicule utilitaire léger (VUL) - PTAC ≤ 3,5 t | C43: =C11 -> Gazole | D43: =D11 -> Non | E43: =F11*G11 -> 72800 | F43: =IF($I$9="Oui",$H11*VLOOKUP($B43&$C43,$T$11:$AD$36,6,FALSE),$E43*VLOOKUP($B43&$C43,$T$11:$AD$36,10,FALSE)) -> 3535.8 | G43: =IF($C43<>"Électricité",0,IF($I$9="Oui",$H11*VLOOKUP($B43&$C43,$T$11:$AD$36,5,FALSE),$E43*VLOOKUP($B43&$C43,$T$11:$AD$36,9,FALSE))) -> 0 | H43: =E43 -> 72800 | I43: =$E43*VLOOKUP($B43&$C43,$T$11:$AD$36,8,FALSE) -> 11138.4 | J43: =IF($C43="Électricité",0,IF($I$9="Oui",$H11*VLOOKUP($B43&$C43,$T$11:$AD$36,5,FALSE),$E43*VLOOKUP($B43&$C43,$T$11:$AD$36,9,FALSE))) -> 864.78 | K43: =J11*K11 -> 160000 | L43: =IF($M$9="Oui",$L11*VLOOKUP($B43&$C43,$T$11:$AD$36,7,FALSE)+$K43*VLOOKUP(B43&C43,$T$11:$AD$36,8,FALSE),$K43*VLOOKUP($B43&$C43,$T$11:$AD$36,11,FALSE)) -> 29128.5 | M43: =H43+K43 -> 232800 | N43: =IF(D43="Non",F43+G43+I43+J43+L43,1.15*(F43+G43+I43+J43+L43)) -> 44667.48 | O43: =N43/M43 -> 0.1918706186
B44: =B12 -> Véhicule utilitaire léger (VUL) - PTAC ≤ 3,5 t | C44: Essence | D44: Oui | E44: =F12*G12 -> 72800 | F44: =IF($I$9="Oui",H12*VLOOKUP(B44&C44,$T$11:$AD$36,6,FALSE),E44*VLOOKUP(B44&C44,$T$11:$AD$36,10,FALSE)) -> 3124 | G44: =IF($C44<>"Électricité",0,IF($I$9="Oui",$H12*VLOOKUP($B44&$C44,$T$11:$AD$36,5,FALSE),$E44*VLOOKUP($B44&$C44,$T$11:$AD$36,9,FALSE))) -> 0 | H44: =E44 -> 72800 | I44: =$E44*VLOOKUP($B44&$C44,$T$11:$AD$36,8,FALSE) -> 11138.4 | J44: =IF($C44="Électricité",0,IF($I$9="Oui",$H12*VLOOKUP($B44&$C44,$T$11:$AD$36,5,FALSE),$E44*VLOOKUP($B44&$C44,$T$11:$AD$36,9,FALSE))) -> 701.48 | K44: =J12*K12 -> 160000 | L44: =IF($M$9="Oui",$L12*VLOOKUP($B44&$C44,$T$11:$AD$36,7,FALSE)+$K44*VLOOKUP(B44&C44,$T$11:$AD$36,8,FALSE),$K44*VLOOKUP($B44&$C44,$T$11:$AD$36,11,FALSE)) -> 28521 | M44: =H44+K44 -> 232800 | N44: =IF(D44="Non",F44+G44+I44+J44+L44,1.15*(F44+G44+I44+J44+L44)) -> 50007.612 | O44: =N44/M44 -> 0.2148093299
B45: Véhicule utilitaire léger (VUL) - PTAC ≤ 3,5 t | C45: Gaz naturel comprimé (GNC) | D45: 0 | E45: 0 | F45: 0 | G45: 0 | H45: 0 | I45: 0 | J45: 0 | K45: 0 | L45: 0 | M45: 0 | N45: 0
B46: Véhicule utilitaire léger (VUL) - PTAC ≤ 3,5 t | C46: Gaz de pétrole liquéfié (GPL) | D46: 0 | E46: 0 | F46: 0 | G46: 0 | H46: 0 | I46: 0 | J46: 0 | K46: 0 | L46: 0 | M46: 0 | N46: 0
B47: Véhicule utilitaire léger (VUL) - PTAC ≤ 3,5 t | C47: Électricité | D47: Non | E47: 72800 | F47: 0 | G47: 8.6751 | H47: 72800 | I47: 11138.4 | J47: 0 | K47: 160000 | L47: 24496.6698 | M47: 232800 | N47: 35643.7449 | O47: 0.1531088698
B48: Véhicule utilitaire léger (VUL) - PTAC ≤ 3,5 t | C48: Hydrogène | D48: 0 | E48: 0 | F48: 0 | G48: 0 | H48: 0 | I48: 0 | J48: 0 | K48: 0 | L48: 0 | M48: 0 | N48: 0
B49: Camion rigide (PL) - 3,5 t < PTAC ≤ 7,5 t | C49: Gazole | D49: 0 | E49: 0 | F49: 0 | G49: 0 | H49: 0 | I49: 0 | J49: 0 | K49: 0 | L49: 0 | M49: 0 | N49: 0
B50: Camion rigide (PL) - 3,5 t < PTAC ≤ 7,5 t | C50: Gaz naturel comprimé (GNC) | D50: 0 | E50: 0 | F50: 0 | G50: 0 | H50: 0 | I50: 0 | J50: 0 | K50: 0 | L50: 0 | M50: 0 | N50: 0
B51: Camion rigide (PL) - 3,5 t < PTAC ≤ 7,5 t | C51: Hybride électricité-gazole | D51: 0 | E51: 0 | F51: 0 | G51: 0 | H51: 0 | I51: 0 | J51: 0 | K51: 0 | L51: 0 | M51: 0 | N51: 0
B52: Camion rigide (PL) - 3,5 t < PTAC ≤ 7,5 t | C52: Électricité | D52: 0 | E52: 0 | F52: 0 | G52: 0 | H52: 0 | I52: 0 | J52: 0 | K52: 0 | L52: 0 | M52: 0 | N52: 0
B53: Camion rigide (PL) - 7,5 t < PTAC ≤ 12 t | C53: Gazole | D53: 0 | E53: 0 | F53: 0 | G53: 0 | H53: 0 | I53: 0 | J53: 0 | K53: 0 | L53: 0 | M53: 0 | N53: 0
B54: Camion rigide (PL) - 7,5 t < PTAC ≤ 12 t | C54: Gaz naturel comprimé (GNC) | D54: 0 | E54: 0 | F54: 0 | G54: 0 | H54: 0 | I54: 0 | J54: 0 | K54: 0 | L54: 0 | M54: 0 | N54: 0
B55: Camion rigide (PL) - 12 t < PTAC ≤ 20 t | C55: Gazole | D55: 0 | E55: 0 | F55: 0 | G55: 0 | H55: 0 | I55: 0 | J55: 0 | K55: 0 | L55: 0 | M55: 0 | N55: 0
B56: Camion rigide (PL) - 12 t < PTAC ≤ 20 t | C56: Gaz naturel comprimé (GNC) | D56: 0 | E56: 0 | F56: 0 | G56: 0 | H56: 0 | I56: 0 | J56: 0 | K56: 0 | L56: 0 | M56: 0 | N56: 0
B57: Camion rigide (PL) - 12 t < PTAC ≤ 20 t | C57: Gaz naturel liquéfié (GNL) | D57: 0 | E57: 0 | F57: 0 | G57: 0 | H57: 0 | I57: 0 | J57: 0 | K57: 0 | L57: 0 | M57: 0 | N57: 0
B58: Camion rigide (PL) - 20 t < PTAC ≤ 26 t | C58: Gazole | D58: 0 | E58: 0 | F58: 0 | G58: 0 | H58: 0 | I58: 0 | J58: 0 | K58: 0 | L58: 0 | M58: 0 | N58: 0
B59: Camion rigide (PL) - 20 t < PTAC ≤ 26 t | C59: Gaz naturel comprimé (GNC) | D59: 0 | E59: 0 | F59: 0 | G59: 0 | H59: 0 | I59: 0 | J59: 0 | K59: 0 | L59: 0 | M59: 0 | N59: 0
B60: Camion rigide (PL) - 20 t < PTAC ≤ 26 t | C60: Gaz naturel liquéfié (GNL) | D60: 0 | E60: 0 | F60: 0 | G60: 0 | H60: 0 | I60: 0 | J60: 0 | K60: 0 | L60: 0 | M60: 0 | N60: 0
B61: Camion rigide (PL) - 26 t < PTAC ≤ 32 t | C61: Gazole | D61: 0 | E61: 0 | F61: 0 | G61: 0 | H61: 0 | I61: 0 | J61: 0 | K61: 0 | L61: 0 | M61: 0 | N61: 0
B62: Ensemble articulé (PL) - PTRA ≤ 34 t | C62: Gazole | D62: 0 | E62: 0 | F62: 0 | G62: 0 | H62: 0 | I62: 0 | J62: 0 | K62: 0 | L62: 0 | M62: 0 | N62: 0
B63: Ensemble articulé (PL) - 34 t < PTRA ≤ 40 t | C63: Gazole | D63: 0 | E63: 0 | F63: 0 | G63: 0 | H63: 0 | I63: 0 | J63: 0 | K63: 0 | L63: 0 | M63: 0 | N63: 0
B64: Ensemble articulé (PL) - 34 t < PTRA ≤ 40 t | C64: Gaz naturel comprimé (GNC) | D64: 0 | E64: 0 | F64: 0 | G64: 0 | H64: 0 | I64: 0 | J64: 0 | K64: 0 | L64: 0 | M64: 0 | N64: 0
B65: Ensemble articulé (PL) - 34 t < PTRA ≤ 40 t | C65: Gaz naturel liquéfié (GNL) | D65: 0 | E65: 0 | F65: 0 | G65: 0 | H65: 0 | I65: 0 | J65: 0 | K65: 0 | L65: 0 | M65: 0 | N65: 0
B66: Ensemble articulé (PL) - 40 t < PTRA ≤ 44 t | C66: Gazole | D66: 0 | E66: 0 | F66: 0 | G66: 0 | H66: 0 | I66: 0 | J66: 0 | K66: 0 | L66: 0 | M66: 0 | N66: 0
B67: Ensemble articulé (PL) - 44 t < PTRA ≤ 60 t | C67: Gazole | D67: 0 | E67: 0 | F67: 0 | G67: 0 | H67: 0 | I67: 0 | J67: 0 | K67: 0 | L67: 0 | M67: 0 | N67: 0
B68: Ensemble articulé (PL) - 60 t < PTRA ≤ 72 t | C68: Gazole | D68: 0 | E68: 0 | F68: 0 | G68: 0 | H68: 0 | I68: 0 | J68: 0 | K68: 0 | L68: 0 | M68: 0 | N68: 0
B70: TOTAL | E70: =SUM(E43:E68) -> 218400 | F70: 6659.8 | G70: 8.6751 | H70: 218400 | I70: 33415.2 | J70: 1566.26 | K70: 480000 | L70: 82146.1698 | M70: 698400 | N70: 130318.8369 | O70: =N70/M70 -> 0.1865962728
